Workbook

Sheet Raw Data
A1: Identifier | B1: Display Name | C1: Device identifier | D1: Instance | E1: Submission Date | F1: Submitter | G1: Duration | H1: Form version | I1: Pais | J1: Departamento | K1: Fecha | L1: Municipio | M1: Distrito | N1: Comunidad | O1: Latitude | P1: Longitude | Q1: Elevation | R1: Fotografía del Sistema/Punto de Agua | S1: A cuantas comunidades abastece de agua el sistema de agua? | T1: Nombre de las comunidades a quienes abastece el sistema de agua | U1: Es una comunidad | V1: Quien financió la construcción de este sistema/punto de agua? | W1: ¿Cuantas familias están afiliadas a la comunidad? | X1: ¿Cuantas familias viven permanentemente en la comunidad? (indagar con el dirigente sobre las familias que viven en la comunidad y no la cantidad de afiliados) | Y1: ¿Cuantas familias tienen acceso al sistema de agua en la comunidad? | Z1: ¿Cuantas familias no tienen acceso al sistema de agua en la comunidad? | AA1: Numero de Usuarios | AB1: ¿Es este un sistema de agua mejorado? | AC1: ¿Qué tipo de sistema/punto de agua es este? | AD1: ¿Qué tipo de sistema/punto de agua es este?--OTHER-- | AE1: ¿Está protegida la fuente del sistema/punto de agua? | AF1: ¿Qué tipo de fuente de agua no mejorada es esta? | AG1: ¿Qué tipo de fuente de agua no mejorada es esta?--OTHER-- | AH1: ¿En qué año se construyó este sistema/punto de agua? | AI1: ¿Hay agua disponible del sistema/punto de agua hoy? (Pregunte: ¿Hubo agua disponible hoy más temprano o durante las horas normales de trabajo)? | AJ1: ¿Por qué no hay agua disponible? | AK1: ¿Por qué no hay agua disponible?--OTHER-- | AL1: En el último año, ¿El Sistema/punto de agua se daño o estuvo fuera de servicio por 2 días o mas? | AM1: ¿Cuantas veces el sistema/punto de agua se daño o estuvo fuera de servicio por 2 días o mas en el ultimo año? | AN1: En Promedio cada vez que se daño o estuvo fuera de servicio el sistema/punto de agua ¿cuántos días no hubo servicio de agua? | AO1: ¿Se realizaron pruebas de calidad del agua hoy o en los últimos 12 meses del sistema/punto de agua? | AP1: ¿Se realizó prueba de E. coli? | AQ1: ¿Cuál fue el resultado para E. Coli (CFU / 100ml)? | AR1: ¿Se realizó prueba de contaminación bacteriana? | AS1: ¿Cuál fue el resultado de la prueba de contaminación bacteriana? | AT1: ¿Se realizó prueba de cloro residual? | AU1: ¿Cuál fue el resultado del cloro residual? | AV1: ¿Se realizó prueba de turbidez? | AW1: ¿Cuál fue el resultado para turbidez? | AX1: ¿Hay contaminantes de preocupación presentes en este sistema/punto de agua? | AY1: ¿Qué contaminantes de preocupación están presentes en este sistema/punto de agua? | AZ1: ¿Qué contaminantes de preocupación están presentes en este sistema/punto de agua?--OTHER-- | BA1: ¿Se realizaron pruebas de los contaminantes de preocupación hoy o en los últimos 12 meses? | BB1: Resultados de la prueba de fluoruro | BC1: Resultados de la prueba de Arsénico | BD1: Resultados de la prueba de Hierro | BE1: ¿Cual es el aforo de la fuente de agua (en litros / segundo)? | BF1: Segundos que tarda en llenar un recipiente de 20 litros | BG1: ¿Cuántas horas por día está disponible el agua del sistema/punto de agua? | BH1: ¿Hay un macro medidor en este sistema/punto de agua? | BI1: ¿Cuántos litros proporciona este sistema / punto de agua por día según el macro medidor? | BJ1: ¿Cuántos recipientes de agua se recolectan por día? | BK1: ¿Cuál es el tamaño típico (en litros) de los recipientes utilizados para la recolección de agua? | BL1: ¿En Promedio cuántos recipientes de agua se recolecta una casa por día? | BM1: En promedio, ¿El sistema/punto de agua provee suficiente agua todos los días? | BN1: Califique el funcionamiento general del sistema/punto de agua (considere fallas, condición física, diseño, etc.) | BO1: Hay algún problema mayor o menor en algún componente del sistema de agua? | BP1: Describa los problemas | BQ1: Tienen un proyecto para construir su Sistema de Agua | BR1: Indique en que estado esta su proyecto y donde fue presentado al igual si esta o no aprobado | BS1: Que acciones van a realizar como comunidad por la falta de agua (indicar si van a priorizar en su POA la construcción de un Sistema de Agua u otras acciones) | BT1: ¿Su comunidad tiene servicio de energía eléctrica? | BU1: ¿Su comunidad tiene servicio de telefonía celular? | BV1: ¿De que empresa tienen el servicio de telefonía celular? | BW1: ¿Su comunidad tiene servicio de internet? | BX1: ¿Su comunidad tiene servicio de recojo de basura? | BY1: ¿Si no tienen servicio de recojo de basura, que hacen con la basura? | BZ1: ¿Hay señal de televisión en su comunidad? | CA1: ¿Qué canales son los mas vistos? | CB1: ¿Hay señal de radio en su comunidad? | CC1: ¿Qué radios son las mas escuchadas? | CD1: ¿Hay personas con discapacidad en su comunidad? | CE1: ¿Durante este año y el año pasado, han habido personas con COVID-19 en su comunidad?
A2: va02-ngd2-fdj3 | B2: Bolivia - Cochabamba - Arani - Arani - Arani OTB's Bolivar; Progreso; Ferroviaria; Gualberto Villarroel; Final Abaroa; Ingavi | C2: Boi | D2: 3193540135 | E2: 22-04-2021 13:45:54 UTC | F2: Antonio | G2: 00:19:15 | H2: 6 | I2: Bolivia | J2: Cochabamba | L2: Arani | M2: Arani | N2: Arani OTB's Bolivar; Progreso; Ferroviaria; Gualberto Villarroel; Final Abaroa; Ingavi | O2: -17.57652594242245 | P2: -65.76863743364811 | Q2: 2803.0 | R2: https://waterforpeople.s3.amazonaws.com/images/f19203eb-44ac-4b69-87e0-8efe6d002cc5.jpg | S2: 6 | T2: OTB'S Bolivar, Progreso, Ferroviaria, Gualberto Villarroel, Ingavi y Abaroa | U2: Concentrada | V2: Gobierno Nacional|Municipio | W2: 1745 | X2: 1715 | Y2: 1715 | Z2: 0 | AA2: =IF(Y2=0,"",(Y2*3)) -> 5145 | AB2: Si | AC2: Sistema por bombeo y gravedad | AE2: Si | AH2: 2015 | AI2: Si | AL2: Si | AM2: 1 | AN2: 4 | AO2: Si - se realizaron pruebas hoy | AP2: Si | AQ2: 0 | AR2: Si | AS2: Ausencia | AT2: Si | AU2: 0.03 | AV2: Si | AW2: 3 | AX2: No | AY2: Turbidez | BE2: 3.88 | BF2: =IF(BE2="","",(20/BE2)) -> 5.154639175 | BG2: 24 | BH2: No | BM2: Si | BN2: Bueno | BO2: No | BT2: Si | BU2: Si | BV2: Entel|Tigo|Viva | BW2: Si | BX2: Si | BZ2: Si | CA2: 41, 23, 50, 29, 8, 7 y 32 | CB2: Si | CC2: trigal, bella morena y kausachun coca | CD2: Si | CE2: Si | CF2: f0bbd3ae2c6a2f93fd74ec37afba4666
A3: 5hdu-vrdh-tge9 | B3: Bolivia - Cochabamba - Arani - Arani - Capellania | C3: BOI ARANI | D3: 3214310146 | E3: 22-04-2021 23:04:41 UTC | F3: Gonzalo Terrazas | G3: 00:07:14 | H3: 6 | I3: Bolivia | J3: Cochabamba | L3: Arani | M3: Arani | N3: Capellania | O3: -17.57228137 | P3: -65.7635061 | Q3: 2787.161376953125 | R3: https://waterforpeople.s3.amazonaws.com/images/9db350ba-706c-4a2b-ab22-9d65f0942153.jpg | S3: 1 | T3: Capellania | U3: Semi dispersa | V3: Municipio|Comité de Agua|Agua Para el Pueblo | W3: 48 | X3: 45 | Y3: 45 | Z3: 0 | AA3: 135 | AB3: Si | AC3: Sistema por bombeo y gravedad | AE3: Si | AH3: 2007 | AI3: Si | AL3: No | AO3: Si | AP3: Si | AQ3: 0 | AR3: No | AT3: Si | AU3: 0 | AV3: Si | AW3: 3.75 | AY3: Turbidez | BE3: 1.22 | BF3: 16.39344262 | BG3: 24 | BH3: No | BM3: Si | BN3: Bueno | BO3: No | BT3: Si | BU3: Si | BV3: Entel|Tigo | BW3: Si | BX3: Si | BZ3: Si | CA3: 23.10.34.50.41 | CB3: Si | CC3: trigal bella morena la calle | CD3: No | CE3: No | CF3: d13f2a5dabf3e3909fbc1fee4062b5ea
A4: wtvw-rghd-v1hr | B4: Bolivia - Cochabamba - Arani - Arani - Chinguri | C4: Boi | D4: 3193540136 | E4: 22-04-2021 13:47:10 UTC | F4: Antonio | G4: 00:08:29 | H4: 6 | I4: Bolivia | J4: Cochabamba | L4: Arani | M4: Arani | N4: Chinguri | O4: -17.577223903499544 | P4: -65.75819768942893 | Q4: 2812.0 | R4: https://waterforpeople.s3.amazonaws.com/images/e766dd24-3df7-4d5b-97bd-75b35ea5913a.jpg | S4: 1 | T4: Chinguri | U4: Concentrada | V4: Municipio|Comité de Agua | W4: 85 | X4: 85 | Y4: 85 | Z4: 0 | AA4: 255 | AB4: Si | AC4: Sistema por bombeo y gravedad | AE4: Si | AH4: 2014 | AI4: Si | AL4: No | AO4: No | AY4: Turbidez | BE4: 1.5 | BF4: 13.33333333 | BG4: 24 | BH4: No | BM4: Si | BN4: Bueno | BO4: No | BT4: Si | BU4: Si | BV4: Entel|Tigo|Viva | BW4: Si | BX4: Si | BZ4: Si | CA4: 41, 7, 8, 23 y 50 | CB4: Si | CC4: trigal, bella morena y kausachun coca | CD4: Si | CE4: Si | CF4: cc7080278029ed8c9df2a6cf651c81e6
A5: 8eh8-djwg-fnvr | B5: Bolivia - Cochabamba - Arani - Arani - Cuesta Pata | C5: Boi | D5: 3195290114 | E5: 22-04-2021 13:45:57 UTC | F5: Antonio | G5: 00:06:57 | H5: 6 | I5: Bolivia | J5: Cochabamba | L5: Arani | M5: Arani | N5: Cuesta Pata | O5: -17.582586770877242 | P5: -65.73817893862724 | Q5: 3124.0 | R5: https://waterforpeople.s3.amazonaws.com/images/8f81e6df-7e05-4b3c-84ae-70ffa44dca8d.jpg | S5: 1 | T5: Cuesta Pata | U5: Semi dispersa | V5: Municipio|Comité de Agua | W5: 9 | X5: 6 | Y5: 6 | Z5: 1 | AA5: 18 | AB5: Si | AC5: Sistema por gravedad | AE5: Si | AH5: 2012 | AI5: Si | AL5: No | AO5: Si | AP5: Si | AQ5: 0 | AR5: No | AT5: Si | AU5: 0 | AV5: Si | AW5: 1.18 | AY5: Turbidez | BE5: 0.2 | BF5: 100 | BG5: 24 | BH5: No | BM5: Si | BN5: Bueno | BO5: No | BT5: Si | BU5: Si | BV5: Entel|Tigo | BW5: Si | BX5: No | BY5: Queman|Entierran | BZ5: Si | CA5: 41, 50 | CB5: Si | CC5: trigal y kausachun coca | CD5: No | CE5: No | CF5: 6f4dd2c3c92feb1f255163e96375114c
A6: 6aje-s3ts-vqvu | B6: Bolivia - Cochabamba - Arani - Arani - Pocoata Baja | C6: Boi | D6: 3159990111 | E6: 22-04-2021 13:44:45 UTC | F6: Antonio | G6: 00:12:57 | H6: 6 | I6: Bolivia | J6: Cochabamba | L6: Arani | M6: Arani | N6: Pocoata Baja | O6: -17.582786763086915 | P6: -65.75915339402854 | Q6: 2827.0 | R6: https://waterforpeople.s3.amazonaws.com/images/cbaa915d-b279-4689-9cb7-dea25cc860fa.jpg | S6: 1 | T6: Pocoata Baja | U6: Concentrada | V6: Comité de Agua | W6: 85 | X6: 95 | Y6: 80 | Z6: 15 | AA6: 240 | AB6: Si | AC6: Sistema por gravedad | AE6: Si | AH6: 2012 | AI6: Si | AL6: No | AO6: Si | AP6: Si | AQ6: 0 | AR6: No | AT6: Si | AU6: 0 | AV6: Si | AW6: 0.64 | AY6: Turbidez | BE6: 0.3 | BF6: 66.66666667 | BG6: 24 | BH6: No | BM6: Si | BN6: Bueno | BO6: Si | BP6: 15 Familias sin agua potable | BT6: Si | BU6: Si | BV6: Entel|Tigo|Viva | BW6: Si | BX6: Si | BZ6: Si | CA6: 23, 41, 50, 8, y 7 | CB6: Si | CC6: Bella morena, trigal y kausachun coca | CD6: No | CE6: Si | CF6: 86c711774677b496eb3812cb1b81fe
A7: jee8-0q6g-kwxs | B7: Bolivia - Cochabamba - Arani - Arani - Villa Barrientos | C7: BOI ARANI | D7: 3208300240 | E7: 22-04-2021 23:04:36 UTC | F7: Gonzalo Terrazas | G7: 00:14:02 | H7: 6 | I7: Bolivia | J7: Cochabamba | L7: Arani | M7: Arani | N7: Villa Barrientos | O7: -17.55804569 | P7: -65.7635682 | Q7: 2878.509033203125 | R7: https://waterforpeople.s3.amazonaws.com/images/6b6ae174-f751-41f4-b750-5de81d4c1ffe.jpg | S7: 1 | T7: Villa Barrientos | U7: Semi dispersa | V7: Municipio|Comité de Agua | W7: 45 | X7: 34 | Y7: 34 | Z7: 0 | AA7: 102 | AB7: Si | AC7: Sistema por gravedad | AE7: Si | AH7: 2015 | AI7: Si | AL7: No | AO7: Si | AP7: Si | AQ7: 0 | AR7: No | AT7: Si | AU7: 0 | AV7: Si | AW7: 2.14 | AY7: Turbidez | BE7: 0.7 | BF7: 28.57142857 | BG7: 24 | BH7: No | BM7: Si | BN7: Bueno | BO7: No | BT7: Si | BU7: Si | BV7: Entel|Tigo|Viva | BW7: Si | BX7: No | BY7: Queman|Botan al rio, quebrada | BZ7: Si | CA7: 41, 50, 34. | CB7: Si | CC7: trigal.chiwalaque | CD7: No | CE7: Si | CF7: 08069ae4d39c3c49e9f18273c8b2a4e
A8: 2rbq-nw6s-v00k | B8: Bolivia - Cochabamba - Arani - Arani - Villa Flores | C8: BOI ARANI | D8: 3166920258 | E8: 22-04-2021 23:04:31 UTC | F8: Gonzalo Terrazas | G8: 00:13:38 | H8: 6 | I8: Bolivia | J8: Cochabamba | L8: Arani | M8: Arani | N8: Villa Flores | O8: -17.56722082 | P8: -65.75658795 | Q8: 2845.093017578125 | R8: https://waterforpeople.s3.amazonaws.com/images/587be421-0299-41aa-8efb-19c7c18a001d.jpg | S8: 1 | T8: Villa Flores | U8: Semi dispersa | V8: Municipio|Comité de Agua|Agua Para el Pueblo | W8: 31 | X8: 28 | Y8: 28 | Z8: 0 | AA8: 84 | AB8: Si | AC8: Sistema por bombeo y gravedad | AE8: Si | AH8: 2013 | AI8: Si | AL8: No | AO8: Si | AP8: Si | AQ8: 0 | AR8: No | AT8: Si | AU8: 0 | AV8: Si | AW8: 0.56 | AY8: Turbidez | BE8: 0.9 | BF8: 22.22222222 | BG8: 24 | BH8: No | BM8: Si | BN8: Bueno | BO8: No | BT8: Si | BU8: Si | BV8: Entel|Tigo|Viva | BW8: Si | BX8: No | BY8: Queman|Entierran | BZ8: Si | CA8: 41,50,7 | CB8: Si | CC8: trigal, radio centro | CD8: No | CE8: No | CF8: 424d29687cad460817bdde23820bcd8
A9: egss-cuwb-md4h | B9: Bolivia - Cochabamba - Arani - Collpa Ciaco - Balcón Pampa | C9: BOI ARANI | D9: 3197330106 | E9: 22-04-2021 23:04:25 UTC | F9: Gonzalo Terrazas | G9: 00:46:35 | H9: 6 | I9: Bolivia | J9: Cochabamba | L9: Arani | M9: Collpa Ciaco | N9: Balcón Pampa | O9: -17.60002567 | P9: -65.77770732 | Q9: 2776.32177734375 | R9: https://waterforpeople.s3.amazonaws.com/images/b846e4eb-cf78-4ebe-a90f-3e91045d632d.jpg | S9: 2 | T9: Balcon Pampa, Chullpa Orko | U9: Semi dispersa | V9: Municipio|Agua Para el Pueblo | W9: 45 | X9: 28 | Y9: 28 | Z9: 0 | AA9: 84 | AB9: Si | AC9: Sistema por bombeo y gravedad | AE9: Si | AH9: 2008 | AI9: Si | AL9: No | AO9: Si | AP9: Si | AQ9: 0 | AR9: No | AT9: Si | AU9: 0 | AV9: Si | AW9: 0.52 | AY9: Turbidez | BE9: 2 | BF9: 10 | BG9: 24 | BH9: No | BM9: Si | BN9: Bueno | BO9: No | BT9: Si | BU9: Si | BV9: Entel|Tigo | BW9: Si | BX9: No | BY9: Queman|Entierran | BZ9: Si | CA9: 41, 50, 7,10,29 | CB9: Si | CC9: trigal,bella morena | CD9: No | CE9: No | CF9: f75b55da5a79f7e5a2049c52797f2b
A10: s14u-4906-81np | B10: Bolivia - Cochabamba - Arani - Collpa Ciaco - Catachilla | C10: Boi | D10: 3189990171 | E10: 22-04-2021 13:47:23 UTC | F10: Antonio | G10: 00:14:29 | H10: 6 | I10: Bolivia | J10: Cochabamba | L10: Arani | M10: Collpa Ciaco | N10: Catachilla | O10: -17.613735096529126 | P10: -65.74710139073431 | Q10: 2825.0 | R10: https://waterforpeople.s3.amazonaws.com/images/05499f08-d7e9-4a73-926a-acd983f7932d.jpg | S10: 1 | T10: Catachilla | U10: Semi dispersa | V10: Municipio|Comité de Agua | W10: 16 | X10: 15 | Y10: 15 | Z10: 0 | AA10: 45 | AB10: Si | AC10: Sistema por bombeo y gravedad | AE10: Si | AH10: 2015 | AI10: Si | AL10: No | AO10: Si | AP10: Si | AQ10: 0 | AR10: No | AT10: Si | AU10: 0 | AV10: Si | AW10: 2.84 | AY10: Turbidez | BE10: 0.6 | BF10: 33.33333333 | BG10: 24 | BH10: No | BM10: Si | BN10: Bueno | BO10: No | BT10: Si | BU10: Si | BV10: Entel|Tigo | BW10: Si | BX10: No | BY10: Queman|Entierran | BZ10: Si | CA10: 41, 7, 8 y 50 | CB10: Si | CC10: trigal, bella morena y kausachun coca | CD10: No | CE10: No | CF10: c72d2c4022ed464998267bca33f21ac1
A11: 0fmq-eh39-whgp | B11: Bolivia - Cochabamba - Arani - Collpa Ciaco - Chullpa Orko | C11: BOI ARANI | D11: 3190010158 | E11: 22-04-2021 23:04:49 UTC | F11: Gonzalo Terrazas | G11: 00:11:17 | H11: 6 | I11: Bolivia | J11: Cochabamba | L11: Arani | M11: Collpa Ciaco | N11: Chullpa Orko | O11: -17.59790013 | P11: -65.77132302 | Q11: 2788.3203125 | R11: https://waterforpeople.s3.amazonaws.com/images/e1866376-5c78-4774-9d19-dd8c37472ce2.jpg | S11: 1 | T11: Chullpa Orko | U11: Semi dispersa | V11: Municipio|Agua Para el Pueblo | W11: 40 | X11: 36 | Y11: 36 | Z11: 0 | AA11: 108 | AB11: Si | AC11: Sistema por bombeo y gravedad | AE11: Si | AH11: 2018 | AI11: No | AJ11: Escasez Estacional | AL11: No | AO11: Si | AP11: Si | AQ11: 4 | AR11: No | AT11: Si | AU11: 0 | AV11: Si | AW11: 0.54 | AX11: No | AY11: Turbidez | BE11: 3 | BF11: 6.666666667 | BG11: 24 | BH11: No | BM11: Si | BN11: Bueno | BO11: No | BT11: Si | BU11: Si | BV11: Entel|Tigo | BW11: Si | BX11: No | BY11: Queman|Entierran|Botan al rio, quebrada | BZ11: Si | CA11: 41,29,7,20,23 | CB11: Si | CC11: trigal,chiwalaque y radio morena | CD11: No | CE11: No | CF11: 9c1a91a2db75f63c265c1b5a7513946
A12: p47b-qj97-0dve | B12: Bolivia - Cochabamba - Arani - Collpa Ciaco - Ciaco | C12: Boi | D12: 3193480245 | E12: 22-04-2021 13:47:19 UTC | F12: Antonio | G12: 00:13:47 | H12: 6 | I12: Bolivia | J12: Cochabamba | L12: Arani | M12: Collpa Ciaco | N12: Ciaco | O12: -17.60191736742854 | P12: -65.76759363524616 | Q12: 2818.0 | R12: https://waterforpeople.s3.amazonaws.com/images/292d436a-b2f2-43a4-98e2-ed1e9bfb064a.jpg | S12: 3 | T12: Ciaco, Sivingani, Collpa l | U12: Concentrada | V12: Gobierno Nacional|Municipio|Comité de Agua | W12: 54 | X12: 54 | Y12: 54 | Z12: 0 | AA12: 162 | AB12: Si | AC12: Sistema por bombeo y gravedad | AE12: Si | AH12: 2019 | AI12: Si | AL12: No | AO12: No | AY12: Turbidez | BE12: 4 | BF12: 5 | BG12: 24 | BH12: No | BM12: Si | BN12: Bueno | BO12: No | BT12: Si | BU12: Si | BV12: Entel|Tigo|Viva | BW12: Si | BX12: Si | BZ12: Si | CA12: 41, 8, 50 y 7 | CB12: Si | CC12: trigal, bella morena y kausachun coca | CD12: Si | CE12: Si | CF12: 865742ad1d5f51b830b2cbd9e6b2814
A13: c5me-ugaq-ha6k | B13: Bolivia - Cochabamba - Arani - Collpa Ciaco - Colca | C13: BOI ARANI | D13: 3178160083 | E13: 22-04-2021 23:02:53 UTC | F13: Gonzalo Terrazas | G13: 00:20:40 | H13: 6 | I13: Bolivia | J13: Cochabamba | L13: Arani | M13: Collpa Ciaco | N13: Colca | O13: -17.59154708 | P13: -65.77457531 | Q13: 2763.84375 | R13: https://waterforpeople.s3.amazonaws.com/images/85e2d635-9d4d-4304-9c07-541fbba7c7bd.jpg | S13: 1 | T13: Colca | U13: Semi dispersa | V13: Municipio | W13: 98 | X13: 95 | Y13: 95 | Z13: 0 | AA13: 285 | AB13: Si | AC13: Sistema por bombeo y gravedad | AE13: Si | AH13: 2012 | AI13: Si | AL13: No | AO13: Si | AP13: Si | AQ13: 0 | AR13: No | AT13: Si | AU13: 0 | AV13: Si | AW13: 0.48 | AY13: Turbidez | BE13: 1.33 | BF13: 15.03759398 | BG13: 24 | BH13: No | BM13: Si | BN13: Bueno | BO13: No | BT13: Si | BU13: Si | BV13: Entel|Tigo | BW13: Si | BX13: No | BY13: Queman|Entierran | BZ13: Si | CA13: 50,7, 29 | CB13: Si | CC13: Bella Norena | CD13: No | CE13: No | CF13: bb209416f561b20402adcab2b2a9743
A14: p47b-qj97-0dve | B14: Bolivia - Cochabamba - Arani - Collpa Ciaco - Ciaco | C14: Boi | D14: 3193480245 | E14: 22-04-2021 13:47:19 UTC | F14: Antonio | G14: 00:13:47 | H14: 6 | I14: Bolivia | J14: Cochabamba | L14: Arani | M14: Collpa Ciaco | N14: Collpa I | O14: -17.601206 | P14: -65.761206 | Q14: 2818.2 | R14: https://waterforpeople.s3.amazonaws.com/images/292d436a-b2f2-43a4-98e2-ed1e9bfb064a.jpg | S14: 3 | T14: Ciaco, Sivingani, Collpa l | U14: Concentrada | V14: Gobierno Nacional|Municipio|Comité de Agua | W14: 15 | X14: 15 | Y14: 15 | Z14: 0 | AA14: 45 | AB14: Si | AC14: Sistema por bombeo y gravedad | AE14: Si | AH14: 2019 | AI14: Si | AL14: No | AO14: No | AY14: Turbidez | BE14: 4 | BF14: 5 | BG14: 24 | BH14: No | BM14: Si | BN14: Bueno | BO14: No | BT14: Si | BU14: Si | BV14: Entel|Tigo|Viva | BW14: Si | BX14: Si | BZ14: Si | CA14: 41, 8, 50 y 7 | CB14: Si | CC14: trigal, bella morena y kausachun coca | CD14: Si | CE14: Si | CF14: 865742ad1d5f51b830b2cbd9e6b2814
A15: ahbw-pa2m-6gj7 | B15: Bolivia - Cochabamba - Arani - Collpa Ciaco - Collpa II | C15: BOI ARANI | D15: 3202840341 | E15: 22-04-2021 23:04:19 UTC | F15: Gonzalo Terrazas | G15: 00:11:51 | H15: 6 | I15: Bolivia | J15: Cochabamba | L15: Arani | M15: Collpa Ciaco | N15: Collpa II | O15: -17.59455908 | P15: -65.76595478 | Q15: 2791.12646484375 | R15: https://waterforpeople.s3.amazonaws.com/images/e9f72eb0-5da3-4870-851d-a6a70cf60c87.jpg | S15: 1 | T15: Collpa II | U15: Semi dispersa | V15: Municipio|Agua Para el Pueblo | W15: 82 | X15: 65 | Y15: 65 | Z15: 0 | AA15: 195 | AB15: Si | AC15: Sistema por bombeo y gravedad | AE15: Si | AH15: 2007 | AI15: Si | AL15: No | AO15: Si | AP15: Si | AQ15: 0 | AR15: No | AT15: Si | AU15: 0 | AV15: Si | AW15: 0.6 | AY15: Turbidez | BE15: 3 | BF15: 6.666666667 | BG15: 24 | BH15: No | BM15: Si | BN15: Bueno | BO15: No | BT15: Si | BU15: Si | BV15: Entel|Tigo | BW15: Si | BX15: Si | BZ15: Si | CA15: 23,41,50,29,7 | CB15: Si | CC15: trigal.bella morena, chiwalaque | CD15: No | CE15: No | CF15: 3dc6868c19842fe72e961b28c4a319bf
A16: eqn6-fg8e-9u99 | B16: Bolivia - Cochabamba - Arani - Collpa Ciaco - Monte Monte | C16: BOI ARANI | D16: 3195200265 | E16: 22-04-2021 23:04:14 UTC | F16: Gonzalo Terrazas | G16: 00:09:59 | H16: 6 | I16: Bolivia | J16: Cochabamba | L16: Arani | M16: Collpa Ciaco | N16: Monte Monte | O16: -17.6079902 | P16: -65.77499723 | Q16: 2787.705810546875 | R16: https://waterforpeople.s3.amazonaws.com/images/1d48d9bd-30f9-46cb-96aa-a2b0bb053ca2.jpg | S16: 1 | T16: Monte Monte | U16: Semi dispersa | V16: Municipio|Agua Para el Pueblo | W16: 12 | X16: 12 | Y16: 12 | Z16: 0 | AA16: 36 | AB16: Si | AC16: Sistema por bombeo y gravedad | AE16: Si | AH16: 2016 | AI16: Si | AL16: No | AO16: Si | AP16: Si | AQ16: 0 | AR16: No | AT16: Si | AU16: 0 | AV16: Si | AW16: 0.71 | AY16: Turbidez | BE16: 0.58 | BF16: 34.48275862 | BG16: 8 | BH16: No | BM16: Si | BN16: Bueno | BO16: No | BT16: Si | BU16: Si | BV16: Entel|Tigo | BW16: Si | BX16: No | BY16: Queman|Entierran | BZ16: Si | CA16: 23,41,7,34,38 | CB16: Si | CC16: trigal,radio centro,chiwalaque | CD16: No | CE16: No | CF16: baa3781e8a31c0daf6df31d14aec43ab
A17: a1he-8wa3-nvvc | B17: Bolivia - Cochabamba - Arani - Collpa Ciaco - Phajchapata | C17: BOI ARANI | D17: 3179890240 | E17: 22-04-2021 23:04:09 UTC | F17: Gonzalo Terrazas | G17: 00:17:31 | H17: 6 | I17: Bolivia | J17: Cochabamba | L17: Arani | M17: Collpa Ciaco | N17: Phajchapata | O17: -17.6019589 | P17: -65.75704783 | Q17: 2809.45556640625 | R17: https://waterforpeople.s3.amazonaws.com/images/4816c947-a985-49db-9ef2-58b3b10c9b05.jpg | S17: 1 | T17: Phajchapata | U17: Semi dispersa | V17: Municipio|Agua Para el Pueblo | W17: 37 | X17: 33 | Y17: 33 | Z17: 0 | AA17: 99 | AB17: Si | AC17: Sistema por bombeo y gravedad | AE17: Si | AH17: 2013 | AI17: Si | AL17: No | AO17: Si | AP17: Si | AQ17: 0 | AR17: No | AT17: Si | AU17: 0 | AV17: Si | AW17: 0.56 | AY17: Turbidez | BE17: 0.8 | BF17: 25 | BG17: 24 | BH17: No | BM17: Si | BN17: Bueno | BO17: No | BT17: Si | BU17: Si | BV17: Entel|Tigo | BW17: Si | BX17: No | BY17: Queman|Entierran | BZ17: Si | CA17: 41, 50, 7. | CB17: Si | CC17: trigal | CD17: Si | CE17: No | CF17: 31c6ac18f7fb45afc1831793e1d29ac
A18: r5s0-5xbv-qh5m | B18: Bolivia - Cochabamba - Arani - Collpa Ciaco - Puka Pampa | C18: Boi | D18: 3210300146 | E18: 22-04-2021 13:47:30 UTC | F18: Antonio | G18: 00:27:36 | H18: 6 | I18: Bolivia | J18: Cochabamba | L18: Arani | M18: Collpa Ciaco | N18: Puka Pampa | O18: -17.639064830727875 | P18: -65.73541366495192 | Q18: 3177.0 | R18: https://waterforpeople.s3.amazonaws.com/images/18e08724-6c69-4004-931d-e9debd9a57e0.jpg | S18: 1 | T18: Puka Pampa | U18: Semi dispersa | V18: Municipio|Comité de Agua | W18: 10 | X18: 5 | Y18: 5 | Z18: 0 | AA18: 15 | AB18: Si | AC18: Sistema por gravedad | AE18: No | AH18: 1996 | AI18: Si | AL18: No | AO18: No | AY18: Turbidez | BE18: 0.1 | BF18: 200 | BG18: 24 | BH18: No | BM18: Si | BN18: Malo | BO18: Si | BP18: Obra de toma y tanque de almacenamiento con un visible deterioro en la infraestructura | BT18: Si | BU18: Si | BV18: Entel | BW18: No | BX18: No | BY18: Queman|Entierran | BZ18: Si | CA18: 41 y 50 | CB18: Si | CC18: trigal, radio erbol, panamericana y kausachun coca | CD18: No | CE18: No | CF18: 16b42bd1e8ca70e96e66b62498708024
A19: t9e8-x0uc-ech1 | B19: Bolivia - Cochabamba - Arani - Collpa Ciaco - Puka Wasi | C19: Boi | D19: 3202850127 | E19: 22-04-2021 13:47:26 UTC | F19: Antonio | G19: 00:11:20 | H19: 6 | I19: Bolivia | J19: Cochabamba | L19: Arani | M19: Collpa Ciaco | N19: Puka Wasi | O19: -17.654369557276368 | P19: -65.72630857117474 | Q19: 3302.0 | R19: https://waterforpeople.s3.amazonaws.com/images/a09e94cb-0799-4f5f-9523-64ba8cac22b2.jpg | S19: 1 | T19: Puka Wasi | U19: Semi dispersa | V19: Municipio|Comité de Agua|Agua Para el Pueblo | W19: 59 | X19: 40 | Y19: 40 | Z19: 0 | AA19: 120 | AB19: Si | AC19: Sistema por gravedad | AE19: Si | AH19: 2017 | AI19: Si | AL19: No | AO19: Si | AP19: Si | AQ19: 0 | AR19: No | AT19: Si | AU19: 0 | AV19: Si | AW19: 0.61 | AY19: Turbidez | BE19: 0.4 | BF19: 50 | BG19: 24 | BH19: No | BM19: Si | BN19: Bueno | BO19: No | BT19: Si | BU19: Si | BV19: Entel|Tigo | BW19: Si | BX19: No | BY19: Queman|Entierran | BZ19: Si | CA19: 41 y 50 | CB19: Si | CC19: Trigal, panamericana, radio erbol y kausachun coca | CD19: No | CE19: No | CF19: ccdbbfe45def4762120f8a39dab3a
A20: p47b-qj97-0dve | B20: Bolivia - Cochabamba - Arani - Collpa Ciaco - Ciaco | C20: Boi | D20: 3193480245 | E20: 22-04-2021 13:47:19 UTC | F20: Antonio | G20: 00:13:47 | H20: 6 | I20: Bolivia | J20: Cochabamba | L20: Arani | M20: Collpa Ciaco | N20: Sivingani | O20: -17606698 | P20: -65760245 | Q20: 2818.1 | R20: https://waterforpeople.s3.amazonaws.com/images/292d436a-b2f2-43a4-98e2-ed1e9bfb064a.jpg | S20: 3 | T20: Ciaco, Sivingani, Collpa l | U20: Concentrada | V20: Gobierno Nacional|Municipio|Comité de Agua | W20: 69 | X20: 69 | Y20: 69 | Z20: 0 | AA20: 207 | AB20: Si | AC20: Sistema por bombeo y gravedad | AE20: Si | AH20: 2019 | AI20: Si | AL20: No | AO20: Si | AP20: Si | AQ20: 0 | AR20: No | AT20: Si | AU20: 0 | AV20: Si | AW20: 0.5 | AY20: Turbidez | BE20: 4 | BF20: 5 | BG20: 24 | BH20: No | BM20: Si | BN20: Bueno | BO20: No | BT20: Si | BU20: Si | BV20: Entel|Tigo|Viva | BW20: Si | BX20: Si | BZ20: Si | CA20: 41, 8, 50 y 7 | CB20: Si | CC20: trigal, bella morena y kausachun coca | CD20: Si | CE20: Si | CF20: 865742ad1d5f51b830b2cbd9e6b2814
A21: wrqj-nj0t-8r3x | B21: Bolivia - Cochabamba - Arani - Collpa Ciaco - Thola Thola | C21: Boi | D21: 3210290130 | E21: 22-04-2021 13:47:16 UTC | F21: Antonio | G21: 00:08:30 | H21: 6 | I21: Bolivia | J21: Cochabamba | L21: Arani | M21: Collpa Ciaco | N21: Thola Thola | O21: -17.650987249799073 | P21: -65.73583502322435 | Q21: 3246.0 | R21: https://waterforpeople.s3.amazonaws.com/images/fad3fed1-8f69-4f5a-9311-6af582f70d1a.jpg | S21: 1 | T21: Thola Thola | U21: Semi dispersa | V21: Comité de Agua|Otra ONG | W21: 11 | X21: 5 | Y21: 5 | Z21: 0 | AA21: 15 | AB21: Si | AC21: Sistema por gravedad | AE21: No | AH21: 2007 | AI21: Si | AL21: Si | AM21: 3 | AN21: 2 | AO21: No | AY21: Turbidez | BE21: 0.2 | BF21: 100 | BG21: 24 | BH21: No | BM21: Si | BN21: Malo | BO21: Si | BP21: Obra de toma desprotegida | BT21: Si | BU21: Si | BV21: Entel | BW21: No | BX21: No | BY21: Queman|Entierran | BZ21: Si | CA21: 41 y 50 | CB21: Si | CC21: trigal, kausachun coca, panamericana | CD21: No | CE21: No | CF21: 343ee54f98ffb69a2ae38b4b24c1ab
A22: jukd-qjcx-b995 | B22: Bolivia - Cochabamba - Arani - Molle Molle - Alto Alianza | C22: Boi | D22: 3208320216 | E22: 22-04-2021 13:44:57 UTC | F22: Antonio | G22: 00:20:54 | H22: 6 | I22: Bolivia | J22: Cochabamba | L22: Arani | M22: Molle Molle | N22: Alto Alianza | O22: -17.556988270953298 | P22: -65.80053711310029 | Q22: 2731.0 | R22: https://waterforpeople.s3.amazonaws.com/images/0a263b5d-43da-4441-beb0-e3c50e7b479b.jpg | S22: 2 | T22: Alto Alianza, Nueva Alianza | U22: Semi dispersa | V22: Municipio|Comité de Agua | W22: 50 | X22: 50 | Y22: 50 | Z22: 0 | AA22: 150 | AB22: Si | AC22: Sistema por bombeo y gravedad | AE22: Si | AH22: 2011 | AI22: Si | AL22: No | AO22: Si | AP22: Si | AQ22: 180 | AR22: No | AT22: Si | AU22: 0 | AV22: Si | AW22: 2.34 | AY22: Turbidez | BE22: 1.5 | BF22: 13.33333333 | BG22: 24 | BH22: No | BM22: Si | BN22: Bueno | BO22: No | BT22: Si | BU22: Si | BV22: Entel|Tigo|Viva | BW22: Si | BX22: Si | BZ22: Si | CA22: 23, 7, 8, 51 | CB22: Si | CC22: bella morena, trigal, kausachun coca, panamericana,fides y chiwalaque | CD22: No | CE22: No | CF22: c8fd3f53c1cedcec664b5289a98a23
A23: h60k-809p-cdc1 | B23: Bolivia - Cochabamba - Arani - Molle Molle - Arachaca | C23: BOI ARANI | D23: 3206320263 | E23: 22-04-2021 23:04:04 UTC | F23: Gonzalo Terrazas | G23: 00:08:48 | H23: 6 | I23: Bolivia | J23: Cochabamba | L23: Arani | M23: Molle Molle | N23: Arachaca | O23: -17.56135151 | P23: -65.77760829 | Q23: 2764.21728515625 | R23: https://waterforpeople.s3.amazonaws.com/images/827d408e-1ad5-4855-a07f-37ca38531860.jpg | S23: 1 | T23: Arachaca | U23: Semi dispersa | V23: Municipio|Agua Para el Pueblo | W23: 90 | X23: 80 | Y23: 80 | Z23: 0 | AA23: 240 | AB23: Si | AC23: Sistema por bombeo y gravedad | AE23: Si | AH23: 2018 | AI23: Si | AL23: No | AO23: Si | AP23: Si | AQ23: 2 | AR23: No | AT23: Si | AU23: 0 | AV23: Si | AW23: 39.3 | AY23: Turbidez | BE23: 0.8 | BF23: 25 | BG23: 24 | BH23: No | BM23: Si | BN23: Bueno | BO23: Si | BP23: 15 Familias sin agua por elevado ingreso al sistema de agua | BT23: Si | BU23: Si | BV23: Entel|Tigo | BW23: Si | BX23: Si | BZ23: Si | CA23: 50,20.41,7 | CB23: Si | CC23: trigal,chiwalaque | CD23: Si | CE23: No | CF23: e07c1316a6bb1c4af24f155cacda3a8f
A24: 6f62-dpuq-vffq | B24: Bolivia - Cochabamba - Arani - Molle Molle - Chequej Mayu | C24: BOI-SB2018 | D24: 3169140108 | E24: 24-02-2021 16:09:00 UTC | F24: Antonio | G24: 00:14:11 | H24: 6 | I24: Bolivia | J24: Cochabamba | L24: Arani | M24: Molle Molle | N24: Chequej Mayu | O24: -17.565281535498798 | P24: -65.79753572121263 | Q24: 2759.0 | R24: https://waterforpeople.s3.amazonaws.com/images/adc95f9e-ab75-4e0d-b581-e2491d1ade5b.jpg | S24: 1 | T24: Chequej Mayu | U24: Semi dispersa | V24: Municipio|Comité de Agua|Agua Para el Pueblo | W24: 44 | X24: 44 | Y24: 44 | Z24: 0 | AA24: 132 | AB24: Si | AC24: Sistema por bombeo y gravedad | AE24: Si | AH24: 2008 | AI24: Si | AL24: No | AO24: Si | AP24: Si | AQ24: 0 | AR24: No | AT24: Si | AU24: 0 | AV24: Si | AW24: 1.13 | AX24: No | AY24: Turbidez | BE24: 2.3 | BF24: 8.695652174 | BG24: 24 | BH24: No | BM24: Si | BN24: Bueno | BO24: No | BT24: Si | BU24: Si | BV24: Entel|Tigo|Viva | BW24: Si | BX24: No | BY24: Queman | BZ24: Si | CA24: 23, 41, 7,14, 20, 50 | CB24: Si | CC24: trigal, bella morena | CD24: No | CE24: No | CF24: ce322f22d37c8a90ec5f78799a4e9a
A25: eqyt-ch6b-x75y | B25: Bolivia - Cochabamba - Arani - Molle Molle - Germán Tardío | C25: BOI ARANI | D25: 3179870220 | E25: 22-04-2021 23:03:57 UTC | F25: Gonzalo Terrazas | G25: 00:07:59 | H25: 6 | I25: Bolivia | J25: Cochabamba | L25: Arani | M25: Molle Molle | N25: Germán Tardío | O25: -17.56225652 | P25: -65.7871639 | Q25: 2758.3876953125 | R25: https://waterforpeople.s3.amazonaws.com/images/78f0636c-3e53-47e3-88f5-c3e2c25b2d89.jpg | S25: 2 | T25: German Tardio,Villa Carmen | U25: Semi dispersa | V25: Municipio|Agua Para el Pueblo | W25: 70 | X25: 50 | Y25: 50 | Z25: 0 | AA25: 150 | AB25: Si | AC25: Sistema por bombeo y gravedad | AE25: Si | AH25: 2017 | AI25: Si | AL25: No | AO25: No | AY25: Turbidez | BE25: 2.5 | BF25: 8 | BG25: 24 | BH25: No | BM25: Si | BN25: Bueno | BO25: No | BT25: Si | BU25: Si | BV25: Entel|Tigo|Viva | BW25: Si | BX25: Si | BZ25: Si | CA25: 29.41,50,7,34 | CB25: Si | CC25: bella morena,chiwalaque,la calle | CD25: No | CE25: No | CF25: 911a42bb4caed35e626b5380585cfa
A26: v2fn-gd29-v4mv | B26: Bolivia - Cochabamba - Arani - Molle Molle - Juzgado | C26: Boi | D26: 3200710105 | E26: 22-04-2021 13:45:24 UTC | F26: Antonio | G26: 00:04:23 | H26: 6 | I26: Bolivia | J26: Cochabamba | L26: Arani | M26: Molle Molle | N26: Juzgado | O26: -17.57287859916687 | P26: -65.78560391440988 | Q26: 2769.0 | R26: https://waterforpeople.s3.amazonaws.com/images/86b820d2-2a0b-409c-a7cc-c9a70a3c602f.jpg | S26: 1 | T26: Juzgado | U26: Semi dispersa | V26: Gobierno Nacional|Comité de Agua | W26: 178 | X26: 170 | Y26: 170 | Z26: 0 | AA26: 510 | AB26: Si | AC26: Sistema por bombeo y gravedad | AE26: Si | AH26: 2015 | AI26: Si | AL26: No | AO26: Si | AP26: Si | AQ26: 0 | AR26: No | AT26: Si | AU26: 0 | AV26: Si | AW26: 2.2 | AY26: Turbidez | BE26: 2.5 | BF26: 8 | BG26: 24 | BH26: No | BM26: Si | BN26: Bueno | BO26: No | BT26: Si | BU26: Si | BV26: Entel|Tigo|Viva | BW26: Si | BX26: Si | BZ26: Si | CA26: 29, 41, 23 y 4 | CB26: Si | CC26: radio bella morena, kausachun coca y trigal | CD26: Si | CE26: Si | CF26: 1d7bb03d8b1751311bf9542144ee51
A27: r9wq-b4r3-3ahv | B27: Bolivia - Cochabamba - Arani - Molle Molle - Molle Molle | C27: Boi | D27: 3202860150 | E27: 22-04-2021 13:45:31 UTC | F27: Antonio | G27: 00:09:45 | H27: 6 | I27: Bolivia | J27: Cochabamba | L27: Arani | M27: Molle Molle | N27: Molle Molle | O27: -17.54867199808359 | P27: -65.80069527961314 | Q27: 2778.0 | R27: https://waterforpeople.s3.amazonaws.com/images/7bcbc4be-5975-4fc9-a957-98ed9fccd2c0.jpg | S27: 2 | T27: Molle Molle, Molle Molle Laguna I | U27: Semi dispersa | V27: Comité de Agua | W27: 35 | X27: 35 | Y27: 35 | Z27: 0 | AA27: 105 | AB27: Si | AC27: Sistema por bombeo y gravedad | AE27: Si | AH27: 2014 | AI27: Si | AL27: No | AO27: Si | AP27: Si | AQ27: 0 | AR27: No | AT27: Si | AU27: 0 | AV27: Si | AW27: 0.99 | AY27: Turbidez | BE27: 1.5 | BF27: 13.33333333 | BG27: 24 | BH27: No | BM27: Si | BN27: Bueno | BO27: No | BT27: Si | BU27: Si | BV27: Entel|Tigo|Viva | BW27: Si | BX27: Si | BZ27: Si | CA27: 23, 41, 50 y 8 | CB27: Si | CC27: trigal, bella morena y kausachun coca | CD27: Si | CE27: Si | CF27: 56c979324ef80d51dcd7258244c6dc7
A28: vnrn-k4d0-rk02 | B28: Bolivia - Cochabamba - Arani - Molle Molle - Molle Molle | C28: Boi | D28: 3200680229 | E28: 22-04-2021 13:45:28 UTC | F28: Antonio | G28: 00:09:49 | H28: 6 | I28: Bolivia | J28: Cochabamba | L28: Arani | M28: Molle Molle | N28: Molle Molle Laguna I | O28: -17.553288 | P28: -65.798596 | Q28: 2779.1 | R28: https://waterforpeople.s3.amazonaws.com/images/e5096ba3-8597-482b-93ee-d2118414a92c.jpg | S28: 2 | T28: Molle Molle, Molle Molle Laguna I | U28: Semi dispersa | V28: Comité de Agua | W28: 27 | X28: 27 | Y28: 27 | Z28: 0 | AA28: 81 | AB28: Si | AC28: Sistema por bombeo y gravedad | AE28: Si | AH28: 2020 | AI28: Si | AL28: No | AO28: Si | AP28: Si | AQ28: 0 | AR28: No | AT28: Si | AU28: 0 | AV28: Si | AW28: 0.99 | AY28: Turbidez | BE28: 2 | BF28: 10 | BG28: 24 | BH28: No | BM28: Si | BN28: Bueno | BO28: No | BT28: Si | BU28: Si | BV28: Entel|Tigo|Viva | BW28: Si | BX28: Si | BZ28: Si | CA28: 41, 8, 7, 50 y 23 | CB28: Si | CC28: bella morena | CD28: Si | CE28: No | CF28: 6ab34d60ef584e6867b9fc4ff4bdd1c
A29: vnrn-k4d0-rk02 | B29: Bolivia - Cochabamba - Arani - Molle Molle - Molle Molle | C29: Boi | D29: 3200680229 | E29: 22-04-2021 13:45:28 UTC | F29: Antonio | G29: 00:09:49 | H29: 6 | I29: Bolivia | J29: Cochabamba | L29: Arani | M29: Molle Molle | N29: Molle Molle Laguna II | O29: -17.550592040643096 | P29: -65.79978358000517 | Q29: 2779.0 | R29: https://waterforpeople.s3.amazonaws.com/images/e5096ba3-8597-482b-93ee-d2118414a92c.jpg | S29: 1 | T29: Molle Molle Laguna II | U29: Semi dispersa | V29: Comité de Agua | W29: 70 | X29: 70 | Y29: 70 | Z29: 0 | AA29: 210 | AB29: Si | AC29: Sistema por bombeo (hidropulmon/torre hidroneumática) | AE29: Si | AH29: 2020 | AI29: Si | AL29: No | AO29: Si | AP29: Si | AQ29: 0 | AR29: No | AT29: Si | AU29: 0 | AV29: Si | AW29: 78.9 | AY29: Turbidez | BE29: 2 | BF29: 10 | BG29: 24 | BH29: No | BM29: Si | BN29: Bueno | BO29: No | BT29: Si | BU29: Si | BV29: Entel|Tigo|Viva | BW29: Si | BX29: Si | BZ29: Si | CA29: 41, 8, 7, 50 y 23 | CB29: Si | CC29: bella morena | CD29: Si | CE29: No | CF29: 6ab34d60ef584e6867b9fc4ff4bdd1c
A30: jukd-qjcx-b995 | B30: Bolivia - Cochabamba - Arani - Molle Molle - Alto Alianza | C30: Boi | D30: 3208320216 | E30: 22-04-2021 13:44:57 UTC | F30: Antonio | G30: 00:20:54 | H30: 6 | I30: Bolivia | J30: Cochabamba | L30: Arani | M30: Molle Molle | N30: Nueva Alianza | O30: -17.560341 | P30: -65.800159 | Q30: 2731.1 | R30: https://waterforpeople.s3.amazonaws.com/images/0a263b5d-43da-4441-beb0-e3c50e7b479b.jpg | S30: 2 | T30: Alto Alianza, Nueva Alianza | U30: Semi dispersa | V30: Municipio|Comité de Agua | W30: 31 | X30: 31 | Y30: 31 | Z30: 0 | AA30: 93 | AB30: Si | AC30: Sistema por bombeo y gravedad | AE30: Si | AH30: 2011 | AI30: Si | AL30: No | AO30: Si | AP30: Si | AQ30: 180 | AR30: No | AT30: Si | AU30: 0 | AV30: Si | AW30: 2.34 | AY30: Turbidez | BE30: 1.5 | BF30: 13.33333333 | BG30: 24 | BH30: No | BM30: Si | BN30: Bueno | BO30: No | BT30: Si | BU30: Si | BV30: Entel|Tigo|Viva | BW30: Si | BX30: Si | BZ30: Si | CA30: 23, 7, 8, 51 | CB30: Si | CC30: bella morena, trigal, kausachun coca, panamericana,fides y chiwalaque | CD30: No | CE30: No | CF30: c8fd3f53c1cedcec664b5289a98a23
A31: g2hn-kvgc-19mx | B31: Bolivia - Cochabamba - Arani - Molle Molle - Sacsa | C31: BOI ARANI | D31: 3218180117 | E31: 22-04-2021 23:03:52 UTC | F31: Gonzalo Terrazas | G31: 00:11:07 | H31: 6 | I31: Bolivia | J31: Cochabamba | L31: Arani | M31: Molle Molle | N31: Sacsa | O31: -17.55930369 | P31: -65.76846404 | Q31: 2762.2041015625 | R31: https://waterforpeople.s3.amazonaws.com/images/ef30d605-7666-422c-a54c-e7e9ef679ac8.jpg | S31: 1 | T31: Sacsa | U31: Semi dispersa | V31: Municipio|Agua Para el Pueblo | W31: 36 | X31: 30 | Y31: 30 | Z31: 2 | AA31: 90 | AB31: Si | AC31: Sistema por bombeo y gravedad | AE31: No | AH31: 2019 | AI31: Si | AL31: No | AO31: Si | AP31: Si | AQ31: 0 | AR31: No | AT31: Si | AU31: 0 | AV31: Si | AW31: 2.62 | AY31: Turbidez | BE31: 0.5 | BF31: 40 | BG31: 24 | BH31: No | BM31: Si | BN31: Bueno | BO31: No | BT31: Si | BU31: Si | BV31: Entel|Tigo|Viva | BW31: Si | BX31: No | BY31: Queman|Entierran | BZ31: Si | CA31: 41,23,7,50 | CB31: Si | CC31: trigal,chiwalaque, | CD31: No | CE31: No | CF31: 18ec2337992bc544bea3a23ec32d2
A32: w2v6-x6b6-camv | B32: Bolivia - Cochabamba - Arani - Molle Molle - Tambillo Linde | C32: BOI ARANI | D32: 3166920235 | E32: 22-04-2021 23:02:58 UTC | F32: Gonzalo Terrazas | G32: 00:14:09 | H32: 6 | I32: Bolivia | J32: Cochabamba | L32: Arani | M32: Molle Molle | N32: Tambillo Linde | O32: -17.56289814 | P32: -65.80287166 | Q32: 2763.240234375 | R32: https://waterforpeople.s3.amazonaws.com/images/b8f58913-f62c-4008-b3d7-cdb0b7212116.jpg | S32: 1 | T32: Tambillo Linde | U32: Semi dispersa | V32: Comité de Agua | W32: 70 | X32: 65 | Y32: 65 | Z32: 0 | AA32: 195 | AB32: Si | AC32: Sistema por bombeo (hidropulmon o torre hidroneumatica) | AE32: No | AH32: 2021 | AI32: Si | AL32: No | AO32: Si | AP32: Si | AQ32: 0 | AR32: No | AT32: Si | AU32: 0 | AV32: Si | AW32: 0.85 | AY32: Turbidez | BE32: 0.9 | BF32: 22.22222222 | BG32: 24 | BH32: No | BM32: Si | BN32: Bueno | BO32: No | BT32: Si | BU32: Si | BV32: Entel|Tigo|Viva | BW32: Si | BX32: Si | BZ32: Si | CA32: 7,29,41 | CB32: Si | CC32: trigal,bella morena,chiwalaque,tormenta | CD32: Si | CE32: No | CF32: dc42604d9e90611cbad47785dafa1e76
A33: eqyt-ch6b-x75y | B33: Bolivia - Cochabamba - Arani - Molle Molle - Germán Tardío | C33: BOI ARANI | D33: 3179870220 | E33: 22-04-2021 23:03:57 UTC | F33: Gonzalo Terrazas | G33: 00:07:59 | H33: 6 | I33: Bolivia | J33: Cochabamba | L33: Arani | M33: Molle Molle | N33: Villa Carmen | O33: -17.563073 | P33: -65.784861 | Q33: 2758.3876953126 | R33: https://waterforpeople.s3.amazonaws.com/images/78f0636c-3e53-47e3-88f5-c3e2c25b2d89.jpg | S33: 2 | T33: German Tardio,Villa Carmen | U33: Semi dispersa | V33: Municipio|Agua Para el Pueblo | W33: 50 | X33: 50 | Y33: 50 | Z33: 0 | AA33: 150 | AB33: Si | AC33: Sistema por bombeo y gravedad | AE33: Si | AH33: 2017 | AI33: Si | AL33: No | AO33: Si | AP33: Si | AQ33: 0 | AR33: No | AT33: Si | AU33: 0 | AV33: Si | AW33: 1.16 | AY33: Turbidez | BE33: 2.5 | BF33: 8 | BG33: 24 | BH33: No | BM33: Si | BN33: Bueno | BO33: No | BT33: Si | BU33: Si | BV33: Entel|Tigo|Viva | BW33: Si | BX33: Si | BZ33: Si | CA33: 29.41,50,7,34 | CB33: Si | CC33: bella morena,chiwalaque,la calle | CD33: No | CE33: No | CF33: 911a42bb4caed35e626b5380585cfa
A34: m6r3-snmc-her0 | B34: Bolivia - Cochabamba - Arani - Molle Molle - Villa Evita | C34: Boi | D34: 3192160138 | E34: 22-04-2021 13:45:20 UTC | F34: Antonio | G34: 00:09:24 | H34: 6 | I34: Bolivia | J34: Cochabamba | L34: Arani | M34: Molle Molle | N34: Villa Evita | O34: -17.56405010819435 | P34: -65.79177333042026 | Q34: 2764.0 | R34: https://waterforpeople.s3.amazonaws.com/images/8d3cdfca-9cc0-4206-be33-c0d615e3c6cb.jpg | S34: 1 | T34: Villa Evita | U34: Semi dispersa | V34: Municipio|Comité de Agua|Agua Para el Pueblo | W34: 31 | X34: 25 | Y34: 25 | Z34: 0 | AA34: 75 | AB34: Si | AC34: Sistema por bombeo (hidropulmon/torre hidroneumática) | AE34: Si | AH34: 2019 | AI34: Si | AL34: No | AO34: Si | AP34: Si | AQ34: 0 | AR34: No | AT34: Si | AU34: 0 | AV34: Si | AW34: 0.77 | AY34: Turbidez | BE34: 1.5 | BF34: =IF(BE34="","",(20/BE34)) -> 13.33333333 | BG34: 24 | BH34: No | BM34: Si | BN34: Bueno | BO34: No | BT34: Si | BU34: Si | BV34: Entel|Tigo|Viva | BW34: Si | BX34: No | BY34: Queman|Entierran | BZ34: Si | CA34: 23, 41, 8 y 50 | CB34: Si | CC34: bella morena, trigal y kausachun coca | CD34: No | CE34: No | CF34: 4c0e8b8ff11d45dccc7fdfb33c274f
A35: dh4c-0b8n-gga1 | B35: Bolivia - Cochabamba - Arani - Pocoata - Cuchillera | C35: Boi | D35: 3178150127 | E35: 22-04-2021 13:45:50 UTC | F35: Antonio | G35: 00:04:22 | H35: 6 | I35: Bolivia | J35: Cochabamba | L35: Arani | M35: Pocoata | N35: Cuchillera | O35: -17.646281691268086 | P35: -65.69868517108262 | Q35: 3571.0 | R35: https://waterforpeople.s3.amazonaws.com/images/ceaea81e-83b0-414b-bf4b-9727cb725c0f.jpg | S35: 1 | T35: Cuchillera | U35: Dispersa | V35: Municipio|Comité de Agua|Agua Para el Pueblo | W35: 42 | X35: 39 | Y35: 39 | Z35: 0 | AA35: 117 | AB35: Si | AC35: Sistema por gravedad | AE35: Si | AH35: 2015 | AI35: Si | AL35: No | AO35: Si | AP35: Si | AQ35: 0 | AR35: No | AT35: Si | AU35: 0 | AV35: Si | AW35: 0.82 | AY35: Turbidez | BE35: 0.4 | BF35: 50 | BG35: 24 | BH35: No | BM35: Si | BN35: Bueno | BO35: No | BT35: Si | BU35: Si | BV35: Entel | BW35: Si | BX35: No | BY35: Queman|Entierran | BZ35: Si | CA35: 41 y 50 | CB35: Si | CC35: trigal y kausachun coca | CD35: Si | CE35: No | CF35: e4a6474ade23cad1308d6557c84315ef
A36: avqs-4yrx-y05e | B36: Bolivia - Cochabamba - Arani - Pocoata - Phuyu Phuyu Chico | C36: BOI ARANI | D36: 3206340115 | E36: 22-04-2021 23:02:47 UTC | F36: Gonzalo Terrazas | G36: 00:10:28 | H36: 6 | I36: Bolivia | J36: Cochabamba | L36: Arani | M36: Pocoata | N36: Phuyu Phuyu Chico | O36: -17.64159708 | P36: -65.66283786 | Q36: 3870.3984375 | R36: https://waterforpeople.s3.amazonaws.com/images/bcb5b91a-1b27-42e4-b277-c9f3172eceee.jpg | S36: 1 | T36: Phuyu Phuyu Chico | U36: Dispersa | V36: Municipio|Agua Para el Pueblo | W36: 30 | X36: 10 | Y36: 10 | Z36: 0 | AA36: 30 | AB36: Si | AC36: Sistema por gravedad | AE36: Si | AH36: 2019 | AI36: Si | AL36: No | AO36: Si | AP36: Si | AQ36: 0 | AR36: No | AT36: Si | AU36: 0 | AV36: Si | AW36: 1.02 | AY36: Turbidez | BE36: 0.3 | BF36: 66.66666667 | BG36: 24 | BH36: No | BM36: Si | BN36: Bueno | BO36: No | BT36: Si | BU36: Si | BV36: Entel | BW36: Si | BX36: No | BY36: Queman|Botan al rio, quebrada | BZ36: Si | CA36: 7, 23, 41 | CB36: Si | CC36: chiwalaque | CD36: No | CE36: No | CF36: 9fcaf3933a625eb6dcc81d50e4abb3
A37: am7y-61uj-dvd6 | B37: Bolivia - Cochabamba - Arani - Pocoata - Pila Pata | C37: BOI ARANI | D37: 3179890224 | E37: 22-04-2021 23:03:39 UTC | F37: Gonzalo Terrazas | G37: 00:12:10 | H37: 6 | I37: Bolivia | J37: Cochabamba | L37: Arani | M37: Pocoata | N37: Pila Pata | O37: -17.64965 | P37: -65.68020431 | Q37: 3734.1640625 | R37: https://waterforpeople.s3.amazonaws.com/images/05591906-8c10-4c90-9a5b-8fc305961dc0.jpg | S37: 1 | T37: Pila pata | U37: Dispersa | V37: Municipio|Agua Para el Pueblo | W37: 20 | X37: 10 | Y37: 10 | Z37: 0 | AA37: 30 | AB37: Si | AC37: Sistema por gravedad | AE37: No | AH37: 2013 | AI37: Si | AL37: No | AO37: Si | AP37: Si | AQ37: 2 | AR37: No | AT37: Si | AU37: 0 | AV37: Si | AW37: 0.78 | AY37: Turbidez | BE37: 1 | BF37: 20 | BG37: 24 | BH37: No | BM37: Si | BN37: Bueno | BO37: No | BT37: Si | BU37: Si | BV37: Entel | BW37: Si | BX37: No | BY37: Queman|Entierran | BZ37: Si | CA37: 10,4,20 | CB37: Si | CC37: chiwalaque | CD37: No | CE37: No | CF37: 8be49d2346d2454f26dc94071192a0
A38: sgvs-qupc-6c1j | B38: Bolivia - Cochabamba - Arani - Pocoata - Pocoata Alta | C38: Boi | D38: 3195280107 | E38: 22-04-2021 13:44:41 UTC | F38: Antonio | G38: 00:10:03 | H38: 6 | I38: Bolivia | J38: Cochabamba | L38: Arani | M38: Pocoata | N38: Pocoata Alta | O38: -17.61092150118202 | P38: -65.72063486091793 | Q38: 2990.0 | R38: https://waterforpeople.s3.amazonaws.com/images/cbcb9dcb-7634-4063-9a3e-44055799ae92.jpg | S38: 1 | T38: Pocoata Alta | U38: Concentrada | V38: Municipio|Comité de Agua | W38: 215 | X38: 189 | Y38: 189 | Z38: 0 | AA38: 567 | AB38: Si | AC38: Sistema por gravedad | AE38: Si | AH38: 2014 | AI38: Si | AL38: No | AO38: Si | AP38: Si | AQ38: 2 | AR38: No | AT38: Si | AU38: 0 | AV38: Si | AW38: 1.02 | AY38: Turbidez | BE38: 0.54 | BF38: 37.03703704 | BG38: 24 | BH38: No | BM38: Si | BN38: Bueno | BO38: No | BT38: Si | BU38: Si | BV38: Entel|Tigo | BW38: Si | BX38: No | BY38: Queman|Entierran | BZ38: Si | CA38: 41, 23, 50 y 8 | CB38: Si | CC38: trigal, radio bella morena y kausachun coca | CD38: Si | CE38: No | CF38: a96290b845ab71abc4c5979b2847712
A39: 2528-vyw3-gwrq | B39: Bolivia - Cochabamba - Arani - Pocoata - Pocoata Centro | C39: Boi | D39: 3189970252 | E39: 22-04-2021 13:45:45 UTC | F39: Antonio | G39: 00:08:21 | H39: 6 | I39: Bolivia | J39: Cochabamba | L39: Arani | M39: Pocoata | N39: Pocoata Centro | O39: -17.605338357388973 | P39: -65.73426542803645 | Q39: 2946.0 | R39: https://waterforpeople.s3.amazonaws.com/images/f1c042ce-261c-4c29-a21a-526251fda407.jpg | S39: 1 | T39: Pocoata Centro | U39: Semi dispersa | V39: Municipio|Comité de Agua|Agua Para el Pueblo | W39: 114 | X39: 104 | Y39: 104 | Z39: 0 | AA39: 312 | AB39: Si | AC39: Sistema por gravedad | AE39: Si | AH39: 2012 | AI39: Si | AL39: No | AO39: Si | AP39: Si | AQ39: 4 | AR39: No | AT39: Si | AU39: 0 | AV39: Si | AW39: 0.78 | AY39: Turbidez | BE39: 0.6 | BF39: 33.33333333 | BG39: 24 | BH39: No | BM39: Si | BN39: Bueno | BO39: No | BT39: Si | BU39: Si | BV39: Entel|Tigo|Viva | BW39: Si | BX39: No | BY39: Queman|Entierran | BZ39: Si | CA39: 23, 41, 50, 7, 8 | CB39: Si | CC39: bella morena, trigal, panamericana y kausachun coca | CD39: Si | CE39: Si | CF39: fa9a29a798737cd966d9ebff0a2b3b
A40: sw04-hqx2-kwjs | B40: Bolivia - Cochabamba - Arani - Pocoata - Saga Saga | C40: BOI ARANI | D40: 3193550109 | E40: 22-04-2021 23:03:46 UTC | F40: Gonzalo Terrazas | G40: 00:15:36 | H40: 6 | I40: Bolivia | J40: Cochabamba | L40: Arani | M40: Pocoata | N40: Saga Saga | O40: -17.66689423 | P40: -65.68047195 | Q40: 3925.060546875 | R40: https://waterforpeople.s3.amazonaws.com/images/406bf833-1511-4c50-9124-171cb8b695db.jpg | S40: 1 | T40: Saga Saga | U40: Dispersa | V40: Municipio|Agua Para el Pueblo | W40: 70 | X40: 20 | Y40: 20 | Z40: 0 | AA40: 60 | AB40: Si | AC40: Sistema por gravedad | AE40: No | AH40: 2009 | AI40: Si | AL40: No | AO40: Si | AP40: Si | AQ40: 0 | AR40: No | AT40: Si | AU40: 0 | AV40: Si | AW40: 0.92 | AY40: Turbidez | BE40: 0.8 | BF40: 25 | BG40: 24 | BH40: No | BM40: Si | BN40: Bueno | BO40: No | BT40: Si | BU40: Si | BV40: Entel|Tigo | BW40: Si | BX40: No | BY40: Queman|Entierran | BZ40: Si | CA40: 7,34,41,44,29,50 | CB40: Si | CC40: chiwalaque,la calle,causachun koca, bella morena. | CD40: Si | CE40: No | CF40: 2d288c3d9defcf65253c0ed3ef96845
A41: y6s3-558c-sj30 | B41: Bolivia - Cochabamba - Arani - Pocoata - Wasa Wayu | C41: BOI ARANI | D41: 3210320094 | E41: 22-04-2021 23:03:33 UTC | F41: Gonzalo Terrazas | G41: 00:11:53 | H41: 6 | I41: Bolivia | J41: Cochabamba | L41: Arani | M41: Pocoata | N41: Wasa Wayu | O41: -17.58391444 | P41: -65.70007263 | Q41: 3514.24267578125 | R41: https://waterforpeople.s3.amazonaws.com/images/ccc9236b-d677-4b5a-b69b-0bd520d25002.jpg | S41: 1 | T41: Huasa Wayu | U41: Dispersa | V41: Municipio|Agua Para el Pueblo | W41: 23 | X41: 4 | Y41: 4 | Z41: 0 | AA41: 12 | AB41: Si | AC41: Sistema por gravedad | AE41: Si | AH41: 2013 | AI41: Si | AL41: No | AO41: Si | AP41: Si | AQ41: 4 | AR41: No | AT41: Si | AU41: 0 | AV41: Si | AW41: 0.51 | AY41: Turbidez | BE41: 0.16 | BF41: 125 | BG41: 24 | BH41: No | BM41: Si | BN41: Bueno | BO41: No | BT41: Si | BU41: Si | BV41: Entel|Tigo | BW41: Si | BX41: No | BY41: Queman|Entierran | BZ41: Si | CA41: 7,34,41,50 | CB41: Si | CC41: panorama,chiwalaque | CD41: No | CE41: No | CF41: a7a52876775b1ad8ee3c6c974e687ee
A42: 6t2r-e88q-kq8h | B42: Bolivia - Cochabamba - Arani - Puka Orqo - Puka Orko | C42: BOI ARANI | D42: 3206320257 | E42: 22-04-2021 23:03:18 UTC | F42: Gonzalo Terrazas | G42: 00:53:10 | H42: 6 | I42: Bolivia | J42: Cochabamba | L42: Arani | M42: Puka Orqo | N42: Av. Paz y Piqueria | O42: -17.600737 | P42: -65.791352 | Q42: 2766.048095703125 | R42: https://waterforpeople.s3.amazonaws.com/images/7b45805f-c97e-4dac-a2c8-f141f1c829a7.jpg | S42: 4 | T42: Puka Orko, Ortega Chico, Ortega Grande, Av. Paz y Piqueria | U42: Semi dispersa | V42: Municipio|Comité de Agua | W42: 14 | X42: 14 | Y42: 14 | Z42: 0 | AA42: 42 | AB42: Si | AC42: Sistema por bombeo y gravedad | AE42: Si | AH42: 1996 | AI42: Si | AL42: No | AO42: No | AY42: Turbidez | BE42: 2 | BF42: 10 | BG42: 24 | BH42: No | BM42: Si | BN42: Bueno | BO42: No | BT42: Si | BU42: Si | BV42: Entel|Tigo|Viva | BW42: Si | BX42: Si | BZ42: Si | CA42: 41,7,29,50,10 | CB42: Si | CC42: bella morena,chiwalaque | CD42: Si | CE42: No | CF42: 94f34588faeb213c2720b25571b996b5
A43: 327a-qpu0-ht7a | B43: Bolivia - Cochabamba - Arani - Puka Orqo - Chaupi Rancho | C43: Boi | D43: 3173900081 | E43: 22-04-2021 13:45:05 UTC | F43: Antonio | G43: 00:05:56 | H43: 6 | I43: Bolivia | J43: Cochabamba | L43: Arani | M43: Puka Orqo | N43: Chaupi Rancho | O43: -17.591975131072104 | P43: -65.79785155132413 | Q43: 2738.0 | R43: https://waterforpeople.s3.amazonaws.com/images/0b0e2a9f-0c7e-4ef7-97ec-88405ee62824.jpg | S43: 1 | T43: Chaupi Rancho | U43: Semi dispersa | V43: Municipio|Comité de Agua | W43: 43 | X43: 40 | Y43: 40 | Z43: 0 | AA43: 120 | AB43: Si | AC43: Sistema por bombeo y gravedad | AE43: Si | AH43: 2015 | AI43: Si | AL43: No | AO43: Si | AP43: Si | AQ43: 0 | AR43: No | AT43: Si | AU43: 0 | AV43: Si | AW43: 0.78 | AY43: Turbidez | BE43: 1.5 | BF43: 13.33333333 | BG43: 24 | BH43: No | BM43: Si | BN43: Bueno | BO43: No | BT43: Si | BU43: Si | BV43: Entel|Tigo|Viva | BW43: Si | BX43: No | BY43: Queman|Entierran | BZ43: Si | CA43: 23, 41, 50 y 8 | CB43: Si | CC43: trigal, bella morena y kausachun coca | CD43: Si | CE43: No | CF43: 6d22c5ed1750828253a7d031b97eb91
A44: 7ecc-12dp-8bgh | B44: Bolivia - Cochabamba - Arani - Puka Orqo - Collpa Baja | C44: Boi | D44: 3179900113 | E44: 22-04-2021 13:45:01 UTC | F44: Antonio | G44: 00:10:22 | H44: 6 | I44: Bolivia | J44: Cochabamba | L44: Arani | M44: Puka Orqo | N44: Collpa Baja | O44: -17.580206813290715 | P44: -65.78047427348793 | Q44: 2771.0 | R44: https://waterforpeople.s3.amazonaws.com/images/644130d2-aec0-4c45-92c4-c4a76014501c.jpg | S44: 3 | T44: Collpa Baja, Mayu Pata y Eterovich | U44: Concentrada | V44: Municipio|Comité de Agua | W44: 144 | X44: 144 | Y44: 144 | Z44: 0 | AA44: 432 | AB44: Si | AC44: Sistema por bombeo y gravedad | AE44: Si | AH44: 2016 | AI44: Si | AL44: No | AO44: Si | AP44: Si | AQ44: 0 | AR44: No | AT44: Si | AU44: 0 | AV44: Si | AW44: 1 | AY44: Turbidez | BE44: 2 | BF44: 10 | BG44: 24 | BH44: No | BM44: Si | BN44: Bueno | BO44: No | BT44: Si | BU44: Si | BV44: Entel|Tigo|Viva | BW44: Si | BX44: Si | BZ44: Si | CA44: 41 y 23 | CB44: Si | CC44: kausachun coca, bella morena y trigal | CD44: Si | CE44: Si | CF44: 2d63b22528d9b38243c8da1799f9a5f
A45: 7ecc-12dp-8bgh | B45: Bolivia - Cochabamba - Arani - Puka Orqo - Collpa Baja | C45: Boi | D45: 3179900113 | E45: 22-04-2021 13:45:01 UTC | F45: Antonio | G45: 00:10:22 | H45: 6 | I45: Bolivia | J45: Cochabamba | L45: Arani | M45: Puka Orqo | N45: Eterovich | O45: -17.587439 | P45: -65.788940 | Q45: 2771.2 | R45: https://waterforpeople.s3.amazonaws.com/images/644130d2-aec0-4c45-92c4-c4a76014501c.jpg | S45: 3 | T45: Collpa Baja, Mayu Pata y Eterovich | U45: Concentrada | V45: Municipio|Comité de Agua | W45: 27 | X45: 27 | Y45: 27 | Z45: 0 | AA45: 81 | AB45: Si | AC45: Sistema por bombeo y gravedad | AE45: Si | AH45: 2016 | AI45: Si | AL45: No | AO45: No | AY45: Turbidez | BE45: 2 | BF45: 10 | BG45: 24 | BH45: No | BM45: Si | BN45: Bueno | BO45: No | BT45: Si | BU45: Si | BV45: Entel|Tigo|Viva | BW45: Si | BX45: Si | BZ45: Si | CA45: 41 y 23 | CB45: Si | CC45: kausachun coca, bella morena y trigal | CD45: Si | CE45: Si | CF45: 2d63b22528d9b38243c8da1799f9a5f
A46: smhn-bbcx-rmg3 | B46: Bolivia - Cochabamba - Arani - Puka Orqo - Linde Grande | C46: Boi | D46: 3202850102 | E46: 22-04-2021 13:45:10 UTC | F46: Antonio | G46: 00:07:48 | H46: 6 | I46: Bolivia | J46: Cochabamba | L46: Arani | M46: Puka Orqo | N46: Linde Chico | O46: -17.592513 | P46: -65.804170 | Q46: 2742.1 | R46: https://waterforpeople.s3.amazonaws.com/images/b67bb6a4-a160-4461-9c53-fc8ade62d157.jpg | S46: 2 | T46: Linde Grande y Linde Chico | U46: Semi dispersa | V46: Municipio|Comité de Agua | W46: 19 | X46: 19 | Y46: 19 | Z46: 0 | AA46: 57 | AB46: Si | AC46: Sistema por bombeo y gravedad | AE46: Si | AH46: 2007 | AI46: Si | AL46: No | AO46: Si | AP46: Si | AQ46: 0 | AR46: No | AT46: Si | AU46: 0 | AV46: Si | AW46: 1.59 | AY46: Turbidez | BE46: 1.5 | BF46: 13.33333333 | BG46: 24 | BH46: No | BM46: Si | BN46: Bueno | BO46: No | BT46: Si | BU46: Si | BV46: Entel|Tigo|Viva | BW46: Si | BX46: No | BY46: Queman|Entierran | BZ46: Si | CA46: 23, 41, 8, 50 y 7 | CB46: Si | CC46: trigal, bella morena y kausachun coca | CD46: Si | CE46: Si | CF46: eaf0b7759fddc56e260992632695e11
A47: smhn-bbcx-rmg3 | B47: Bolivia - Cochabamba - Arani - Puka Orqo - Linde Grande | C47: Boi | D47: 3202850102 | E47: 22-04-2021 13:45:10 UTC | F47: Antonio | G47: 00:07:48 | H47: 6 | I47: Bolivia | J47: Cochabamba | L47: Arani | M47: Puka Orqo | N47: Linde Grande | O47: -17.58904838003218 | P47: -65.80484608188272 | Q47: 2742.0 | R47: https://waterforpeople.s3.amazonaws.com/images/b67bb6a4-a160-4461-9c53-fc8ade62d157.jpg | S47: 2 | T47: Linde Grande y Linde Chico | U47: Semi dispersa | V47: Municipio|Comité de Agua | W47: 40 | X47: 40 | Y47: 40 | Z47: 0 | AA47: 120 | AB47: Si | AC47: Sistema por bombeo y gravedad | AE47: Si | AH47: 2007 | AI47: Si | AL47: No | AO47: Si | AP47: Si | AQ47: 0 | AR47: No | AT47: Si | AU47: 0 | AV47: Si | AW47: 1.59 | AY47: Turbidez | BE47: 1.5 | BF47: 13.33333333 | BG47: 24 | BH47: No | BM47: Si | BN47: Bueno | BO47: No | BT47: Si | BU47: Si | BV47: Entel|Tigo|Viva | BW47: Si | BX47: No | BY47: Queman|Entierran | BZ47: Si | CA47: 23, 41, 8, 50 y 7 | CB47: Si | CC47: trigal, bella morena y kausachun coca | CD47: Si | CE47: Si | CF47: eaf0b7759fddc56e260992632695e11
A48: 7ecc-12dp-8bgh | B48: Bolivia - Cochabamba - Arani - Puka Orqo - Collpa Baja | C48: Boi | D48: 3179900113 | E48: 22-04-2021 13:45:01 UTC | F48: Antonio | G48: 00:10:22 | H48: 6 | I48: Bolivia | J48: Cochabamba | L48: Arani | M48: Puka Orqo | N48: Mayu Pata | O48: -17.578292 | P48: -65.782963 | Q48: 2771.1 | R48: https://waterforpeople.s3.amazonaws.com/images/644130d2-aec0-4c45-92c4-c4a76014501c.jpg | S48: 3 | T48: Collpa Baja, Mayu Pata y Eterovich | U48: Concentrada | V48: Municipio|Comité de Agua | W48: 9 | X48: 9 | Y48: 9 | Z48: 0 | AA48: 27 | AB48: Si | AC48: Sistema por bombeo y gravedad | AE48: Si | AH48: 2016 | AI48: Si | AL48: No | AO48: No | AY48: Turbidez | BE48: 2 | BF48: 10 | BG48: 24 | BH48: No | BM48: Si | BN48: Bueno | BO48: No | BT48: Si | BU48: Si | BV48: Entel|Tigo|Viva | BW48: Si | BX48: Si | BZ48: Si | CA48: 41 y 23 | CB48: Si | CC48: kausachun coca, bella morena y trigal | CD48: Si | CE48: Si | CF48: 2d63b22528d9b38243c8da1799f9a5f
A49: 6t2r-e88q-kq8h | B49: Bolivia - Cochabamba - Arani - Puka Orqo - Puka Orko | C49: BOI ARANI | D49: 3206320257 | E49: 22-04-2021 23:03:18 UTC | F49: Gonzalo Terrazas | G49: 00:53:10 | H49: 6 | I49: Bolivia | J49: Cochabamba | L49: Arani | M49: Puka Orqo | N49: Ortega Chico | O49: -17.601338 | P49: -65.783166 | Q49: 2766.048095703125 | R49: https://waterforpeople.s3.amazonaws.com/images/7b45805f-c97e-4dac-a2c8-f141f1c829a7.jpg | S49: 4 | T49: Puka Orko, Ortega Chico, Ortega Grande, Av. Paz y Piqueria | U49: Semi dispersa | V49: Municipio|Comité de Agua | W49: 30 | X49: 30 | Y49: 30 | Z49: 0 | AA49: 90 | AB49: Si | AC49: Sistema por bombeo y gravedad | AE49: Si | AH49: 1996 | AI49: Si | AL49: No | AO49: No | AY49: Turbidez | BE49: 2 | BF49: 10 | BG49: 24 | BH49: No | BM49: Si | BN49: Bueno | BO49: No | BT49: Si | BU49: Si | BV49: Entel|Tigo|Viva | BW49: Si | BX49: Si | BZ49: Si | CA49: 41,7,29,50,10 | CB49: Si | CC49: bella morena,chiwalaque | CD49: Si | CE49: No | CF49: 94f34588faeb213c2720b25571b996b5
A50: 6t2r-e88q-kq8h | B50: Bolivia - Cochabamba - Arani - Puka Orqo - Puka Orko | C50: BOI ARANI | D50: 3206320257 | E50: 22-04-2021 23:03:18 UTC | F50: Gonzalo Terrazas | G50: 00:53:10 | H50: 6 | I50: Bolivia | J50: Cochabamba | L50: Arani | M50: Puka Orqo | N50: Ortega Grande | O50: -17.596832 | P50: -65.780438 | Q50: 2766.048095703125 | R50: https://waterforpeople.s3.amazonaws.com/images/7b45805f-c97e-4dac-a2c8-f141f1c829a7.jpg | S50: 4 | T50: Puka Orko, Ortega Chico, Ortega Grande, Av. Paz y Piqueria | U50: Semi dispersa | V50: Municipio|Comité de Agua | W50: 34 | X50: 34 | Y50: 34 | Z50: 0 | AA50: 102 | AB50: Si | AC50: Sistema por bombeo y gravedad | AE50: Si | AH50: 1996 | AI50: Si | AL50: No | AO50: No | AY50: Turbidez | BE50: 2 | BF50: 10 | BG50: 24 | BH50: No | BM50: Si | BN50: Bueno | BO50: No | BT50: Si | BU50: Si | BV50: Entel|Tigo|Viva | BW50: Si | BX50: Si | BZ50: Si | CA50: 41,7,29,50,10 | CB50: Si | CC50: bella morena,chiwalaque | CD50: Si | CE50: No | CF50: 94f34588faeb213c2720b25571b996b5
A51: 6t2r-e88q-kq8h | B51: Bolivia - Cochabamba - Arani - Puka Orqo - Puka Orko | C51: BOI ARANI | D51: 3206320257 | E51: 22-04-2021 23:03:18 UTC | F51: Gonzalo Terrazas | G51: 00:53:10 | H51: 6 | I51: Bolivia | J51: Cochabamba | L51: Arani | M51: Puka Orqo | N51: Puka Orko | O51: -17.59143315 | P51: -65.78521708 | Q51: 2766.048095703125 | R51: https://waterforpeople.s3.amazonaws.com/images/7b45805f-c97e-4dac-a2c8-f141f1c829a7.jpg | S51: 4 | T51: Puka Orko, Ortega Chico, Ortega Grande, Av. Paz y Piqueria | U51: Semi dispersa | V51: Municipio|Comité de Agua | W51: 112 | X51: 112 | Y51: 112 | Z51: 0 | AA51: 336 | AB51: Si | AC51: Sistema por bombeo y gravedad | AE51: Si | AH51: 1996 | AI51: Si | AL51: No | AO51: Si | AP51: Si | AQ51: 0 | AR51: No | AT51: Si | AU51: 0 | AV51: Si | AW51: 1.09 | AY51: Turbidez | BE51: 2 | BF51: 10 | BG51: 24 | BH51: No | BM51: Si | BN51: Bueno | BO51: Si | BP51: 10 Familias sin agua por elevado ingreso al sistema de agua | BT51: Si | BU51: Si | BV51: Entel|Tigo|Viva | BW51: Si | BX51: Si | BZ51: Si | CA51: 41,7,29,50,10 | CB51: Si | CC51: bella morena,chiwalaque | CD51: Si | CE51: No | CF51: 94f34588faeb213c2720b25571b996b5
A52: snq8-686k-m0ts | B52: Bolivia - Cochabamba - Arani - Puka Orqo - Linde Chico | C52: Boi | D52: 3202860141 | E52: 22-04-2021 13:45:16 UTC | F52: Antonio | G52: 00:04:31 | H52: 6 | I52: Bolivia | J52: Cochabamba | L52: Arani | M52: Puka Orqo | N52: Urbanización Linde | O52: -17.591298543848097 | P52: -65.80306677147746 | Q52: 2729.0 | R52: https://waterforpeople.s3.amazonaws.com/images/c68bfd85-a28a-4573-a3ce-01c3d0b7e8a1.jpg | S52: 1 | T52: Urbanización Linde | U52: Semi dispersa | V52: Municipio|Comité de Agua|Agua Para el Pueblo | W52: 226 | X52: 113 | Y52: 113 | Z52: 0 | AA52: 339 | AB52: Si | AC52: Sistema por bombeo (hidropulmon/torre hidroneumática) | AE52: Si | AH52: 2017 | AI52: Si | AL52: No | AO52: Si | AP52: Si | AQ52: 80 | AR52: No | AT52: Si | AU52: 0 | AV52: Si | AW52: 0.83 | AY52: Turbidez | BE52: 1.5 | BF52: 13.33333333 | BG52: 24 | BH52: No | BM52: Si | BN52: Bueno | BO52: No | BT52: Si | BU52: Si | BV52: Entel|Tigo|Viva | BW52: Si | BX52: No | BY52: Queman|Entierran | BZ52: Si | CA52: 23, 41, 50, 7 y 8 | CB52: Si | CC52: trigal, bella morena y kausachun coca | CD52: Si | CE52: Si | CF52: c21136ac46ea1f6c325849462d878b
A53: 7xdv-0j3r-nt75 | B53: Bolivia - Cochabamba - Arani - Serrano - Cinta Qhochi | C53: BOI ARANI | D53: 3195200256 | E53: 22-04-2021 23:03:27 UTC | F53: Gonzalo Terrazas | G53: 00:09:25 | H53: 6 | I53: Bolivia | J53: Cochabamba | L53: Arani | M53: Serrano | N53: Cinta Qhochi | O53: -17.52567021 | P53: -65.71566412 | Q53: 3428.73095703125 | R53: https://waterforpeople.s3.amazonaws.com/images/e0715103-f974-40d2-9098-288dbb4d7b69.jpg | S53: 1 | T53: Cinta Qochi | U53: Semi dispersa | V53: Municipio|Agua Para el Pueblo | W53: 40 | X53: 18 | Y53: 18 | Z53: 0 | AA53: 54 | AB53: Si | AC53: Sistema por bombeo y gravedad | AE53: Si | AH53: 2014 | AI53: Si | AL53: No | AO53: Si | AP53: Si | AQ53: 0 | AR53: No | AT53: Si | AU53: 0 | AV53: Si | AW53: 1.01 | AY53: Turbidez | BE53: 0.4 | BF53: 50 | BG53: 24 | BH53: No | BM53: Si | BN53: Bueno | BO53: No | BT53: Si | BU53: Si | BV53: Entel|Tigo | BW53: Si | BX53: No | BY53: Queman|Entierran | BZ53: Si | CA53: 7, 41, 50 | CB53: Si | CC53: chiwalaque | CD53: No | CE53: No | CF53: cdfdf81994120364181ee8bff43e7
A54: 2wka-j4eq-khvx | B54: Bolivia - Cochabamba - Arani - Serrano - Huaychapata Villa Cariño | C54: BOI ARANI | D54: 3166000111 | E54: 22-04-2021 23:03:13 UTC | F54: Gonzalo Terrazas | G54: 00:14:43 | H54: 6 | I54: Bolivia | J54: Cochabamba | L54: Arani | M54: Serrano | N54: Huaychapata Villa Cariño | O54: -17.55662677 | P54: -65.68172552 | Q54: 3413.5205078125 | R54: https://waterforpeople.s3.amazonaws.com/images/f06c03a4-adc9-4f39-b939-e0802b352c1e.jpg | S54: 1 | T54: Huaychapata Villa Cariño | U54: Dispersa | V54: Municipio|Agua Para el Pueblo | W54: 45 | X54: 38 | Y54: 38 | Z54: 0 | AA54: 114 | AB54: Si | AC54: Sistema por bombeo y gravedad | AE54: Si | AH54: 2008 | AI54: Si | AL54: No | AO54: Si | AP54: Si | AQ54: 0 | AR54: No | AT54: Si | AU54: 0 | AV54: Si | AW54: 0.89 | AY54: Turbidez | BE54: 0.7 | BF54: 28.57142857 | BG54: 24 | BH54: No | BM54: Si | BN54: Bueno | BO54: Si | BP54: En el tanque de almacenamiento existe fisuras | BT54: Si | BU54: Si | BV54: Entel|Tigo | BW54: Si | BX54: No | BY54: Queman|Entierran | BZ54: Si | CA54: 7,34,41,50,12. | CB54: Si | CC54: chiwalaque,bella morena | CD54: No | CE54: No | CF54: f75451caa4d4bcc4fd6ed5c9a247e8a
A55: x0h5-8n3j-mheu | B55: Bolivia - Cochabamba - Arani - Serrano - Huaychapata Villa Surumi | C55: Boi | D55: 3165970214 | E55: 22-04-2021 13:45:42 UTC | F55: Antonio | G55: 00:10:57 | H55: 6 | I55: Bolivia | J55: Cochabamba | L55: Arani | M55: Serrano | N55: Huaychapata Villa Surumi | O55: -17.578559769317508 | P55: -65.68947153165936 | Q55: 3485.0 | R55: https://waterforpeople.s3.amazonaws.com/images/a4e3ef64-6370-4bdc-a30f-89eaccaf833d.jpg | S55: 1 | T55: Huaychapata Villa Surumi | U55: Semi dispersa | V55: Municipio|Comité de Agua|Agua Para el Pueblo | W55: 59 | X55: 36 | Y55: 36 | Z55: 0 | AA55: 108 | AB55: Si | AC55: Sistema por gravedad | AE55: Si | AH55: 2019 | AI55: Si | AL55: Si | AM55: 2 | AN55: 3 | AO55: Si | AP55: Si | AQ55: 0 | AR55: No | AT55: Si | AU55: 0 | AV55: Si | AW55: 0.82 | AY55: Turbidez | BE55: 0.4 | BF55: 50 | BG55: 24 | BH55: No | BM55: Si | BN55: Bueno | BO55: No | BT55: Si | BU55: Si | BV55: Entel | BW55: Si | BX55: No | BY55: Queman|Entierran | BZ55: Si | CA55: 7, 8 y 5 | CB55: Si | CC55: kausachun coca, pienera y chiwalaque, radio sepra | CD55: Si | CE55: No | CF55: 8461d9201729cdd1e1646f10888b109b
A56: yrnd-ypmb-8t6k | B56: Bolivia - Cochabamba - Arani - Serrano - Jutulaya | C56: BOI ARANI | D56: 3210310135 | E56: 22-04-2021 23:03:08 UTC | F56: Gonzalo Terrazas | G56: 00:07:53 | H56: 6 | I56: Bolivia | J56: Cochabamba | L56: Arani | M56: Serrano | N56: Jutulaya | O56: -17.52205865 | P56: -65.72924992 | Q56: 3422.136962890625 | R56: https://waterforpeople.s3.amazonaws.com/images/8d6bb25c-12d6-4464-af48-99f1461024bf.jpg | S56: 1 | T56: Jutulaya | U56: Dispersa | V56: Municipio|Agua Para el Pueblo | W56: 54 | X56: 20 | Y56: 20 | Z56: 0 | AA56: 60 | AB56: Si | AC56: Sistema por gravedad | AE56: Si | AH56: 2015 | AI56: Si | AL56: No | AO56: Si | AP56: Si | AQ56: 0 | AR56: No | AT56: Si | AU56: 0 | AV56: Si | AW56: 1.88 | AY56: Turbidez | BE56: 0.5 | BF56: 40 | BG56: 24 | BH56: No | BM56: Si | BN56: Bueno | BO56: Si | BP56: Hay una zona donde 15 familias no cuentan con agua | BT56: Si | BU56: Si | BV56: Entel | BW56: Si | BX56: No | BY56: Queman|Entierran | BZ56: Si | CA56: 7, 29, 41. | CB56: Si | CC56: Kausachun Coca. | CD56: No | CE56: No | CF56: b6861511bdd357797decc463222e8bb8
A57: pmhy-7vk4-n3nc | B57: Bolivia - Cochabamba - Arani - Serrano - kewiñal | C57: Boi | D57: 3198670076 | E57: 22-04-2021 13:44:49 UTC | F57: Antonio | G57: 00:07:53 | H57: 6 | I57: Bolivia | J57: Cochabamba | L57: Arani | M57: Serrano | N57: kewiñal | O57: -17.561815157532692 | P57: -65.71751126088202 | Q57: 3381.0 | R57: https://waterforpeople.s3.amazonaws.com/images/905dbac8-f1bd-4083-8244-3e593262952f.jpg | S57: 1 | T57: Kewiñal | U57: Dispersa | V57: Municipio|Comité de Agua|Otra ONG | W57: 20 | X57: 16 | Y57: 16 | Z57: 0 | AA57: 48 | AB57: Si | AC57: Sistema por bombeo y gravedad | AE57: Si | AH57: 2015 | AI57: Si | AL57: Si | AM57: 2 | AN57: 2 | AO57: Si | AP57: Si | AQ57: 0 | AR57: No | AT57: Si | AU57: 0 | AV57: Si | AW57: 0.8 | AY57: Turbidez | BE57: 0.75 | BF57: 26.66666667 | BG57: 24 | BH57: No | BM57: Si | BN57: Bueno | BO57: No | BT57: Si | BU57: Si | BV57: Entel | BW57: Si | BX57: No | BY57: Queman|Entierran | BZ57: No | CB57: Si | CC57: bella morena, kausachun coca, fides y reflejos | CD57: No | CE57: No | CF57: 7edaa9439fa0472a803982b1b349b1
A58: sgyj-t9r4-hycf | B58: Bolivia - Cochabamba - Arani - Serrano - kumu kewiña | C58: Boi | D58: 3192170080 | E58: 22-04-2021 13:44:53 UTC | F58: Antonio | G58: 00:05:23 | H58: 6 | I58: Bolivia | J58: Cochabamba | L58: Arani | M58: Serrano | N58: kumu kewiña | O58: -17.54093835130334 | P58: -65.70567056536674 | Q58: 3503.0 | R58: https://waterforpeople.s3.amazonaws.com/images/9dd05516-9532-4910-b6b0-51618ed31993.jpg | S58: 1 | T58: Kumo Kewiña | U58: Semi dispersa | V58: Municipio|Comité de Agua|Agua Para el Pueblo | W58: 32 | X58: 25 | Y58: 25 | Z58: 0 | AA58: 75 | AB58: Si | AC58: Sistema por gravedad | AE58: Si | AH58: 2017 | AI58: Si | AL58: No | AO58: Si | AP58: Si | AQ58: 0 | AR58: No | AT58: Si | AU58: 0 | AV58: Si | AW58: 0.54 | AY58: Turbidez | BE58: 0.6 | BF58: 33.33333333 | BG58: 24 | BH58: No | BM58: Si | BN58: Bueno | BO58: No | BT58: Si | BU58: Si | BV58: Entel | BW58: Si | BX58: No | BY58: Queman|Entierran | BZ58: Si | CA58: 7, 41 y 50 | CB58: Si | CC58: kausachun coca | CD58: No | CE58: No | CF58: fe20363f211cab842613f7772795c3f
A59: s9t2-hdbs-kffu | B59: Bolivia - Cochabamba - Arani - Serrano - Laguna | C59: Boi | D59: 3202840153 | E59: 22-04-2021 13:45:38 UTC | F59: Antonio | G59: 00:06:35 | H59: 6 | I59: Bolivia | J59: Cochabamba | L59: Arani | M59: Serrano | N59: Laguna | O59: -17.538295621052384 | P59: -65.71151417680085 | Q59: 3487.0 | R59: https://waterforpeople.s3.amazonaws.com/images/4050b1f5-d11f-4b94-8596-db36f01e9d03.jpg | S59: 1 | T59: Laguna | U59: Dispersa | V59: Municipio|Comité de Agua | W59: 62 | X59: 40 | Y59: 40 | Z59: 0 | AA59: 120 | AB59: Si | AC59: Sistema por bombeo y gravedad | AE59: Si | AH59: 2014 | AI59: Si | AL59: No | AO59: Si | AP59: Si | AQ59: 0 | AR59: No | AT59: Si | AU59: 0 | AV59: Si | AW59: 8.05 | AY59: Turbidez | BE59: 1.5 | BF59: 13.33333333 | BG59: 24 | BH59: No | BM59: Si | BN59: Bueno | BO59: No | BT59: Si | BU59: Si | BV59: Entel | BW59: Si | BX59: No | BY59: Queman|Entierran | BZ59: Si | CA59: 23, 41 y 50 | CB59: Si | CC59: trigal y kausachun coca | CD59: Si | CE59: No | CF59: 79dfee7bf63415b81582750d3ce4d4a
A60: 5td4-djpk-h0pb | B60: Bolivia - Cochabamba - Arani - Serrano - Serrano Alto | C60: Boi | D60: 3200710111 | E60: 22-04-2021 13:45:35 UTC | F60: Antonio | G60: 00:04:47 | H60: 6 | I60: Bolivia | J60: Cochabamba | L60: Arani | M60: Serrano | N60: Serrano Alto | O60: -17.54432011395693 | P60: -65.69917308166623 | Q60: 3557.0 | R60: https://waterforpeople.s3.amazonaws.com/images/8cf13149-0f35-40ff-aefe-101c0b34af18.jpg | S60: 1 | T60: Serrano Alto | U60: Dispersa | V60: Municipio|Comité de Agua|Agua Para el Pueblo | W60: 12 | X60: 8 | Y60: 8 | Z60: 0 | AA60: 24 | AB60: Si | AC60: Sistema por gravedad | AE60: Si | AH60: 2017 | AI60: Si | AL60: Si | AM60: 20 | AN60: 90 | AO60: No | AY60: Turbidez | BE60: 0.06 | BF60: 333.3333333 | BG60: 6 | BH60: No | BM60: No | BN60: Malo | BO60: Si | BP60: En época de sequia la vertiente se seca | BT60: Si | BU60: Si | BV60: Entel | BW60: Si | BX60: No | BY60: Queman|Entierran | BZ60: Si | CA60: 41, 7, 8 y 50 | CB60: Si | CC60: chiwalaque, kausachin coca y fides | CD60: No | CE60: No | CF60: 62dcecdeca5238272788896d117a
A61: tx5e-e4tm-6tet | B61: Bolivia - Cochabamba - Arani - Serrano - Serrano Centro | C61: BOI ARANI | D61: 3166930095 | E61: 22-04-2021 23:03:03 UTC | F61: Gonzalo Terrazas | G61: 00:08:14 | H61: 6 | I61: Bolivia | J61: Cochabamba | L61: Arani | M61: Serrano | N61: Serrano Centro | O61: -17.54785431 | P61: -65.68945632 | Q61: 3406.3779296875 | R61: https://waterforpeople.s3.amazonaws.com/images/b75085db-075d-4275-9f88-591699f55fbc.jpg | S61: 1 | T61: Serrano Centro | U61: Dispersa | V61: Municipio|Comité de Agua|Otra ONG | W61: 45 | X61: 39 | Y61: 39 | Z61: 3 | AA61: 117 | AB61: Si | AC61: Sistema por bombeo y gravedad | AE61: Si | AH61: 2014 | AI61: Si | AL61: No | AO61: Si | AP61: Si | AQ61: 0 | AR61: No | AT61: Si | AU61: 0 | AV61: Si | AW61: 0.92 | AY61: Turbidez | BE61: 2 | BF61: 10 | BG61: 24 | BH61: No | BM61: Si | BN61: Bueno | BO61: No | BT61: Si | BU61: Si | BV61: Entel|Tigo | BW61: Si | BX61: No | BY61: Queman|Entierran | BZ61: Si | CA61: 7,34,29 | CB61: Si | CC61: chiwalaque | CD61: Si | CE61: No | CF61: e5adf8eb147a28b08dc2df9ae927bb7
A62: wb3s-1mh5-7dcc | B62: Bolivia - Cochabamba - Arbieto - D 1 Arbieto - Achamoco | C62: BOI NOE | D62: 3246550064 | E62: 16-06-2021 14:40:42 UTC | F62: Noe | G62: 00:04:29 | H62: 6 | I62: Bolivia | J62: Cochabamba | L62: Arbieto | M62: 1 | N62: Achamoco | O62: -17.41749278269708 | P62: -66.15227043628693 | Q62: 2604.0 | R62: https://waterforpeople.s3.amazonaws.com/images/eb7897f9-d287-486e-be32-df87188458cb.jpg | S62: 1 | T62: Achamoco | U62: Concentrada | V62: Gobierno Nacional|Municipio | W62: 170 | X62: 80 | Y62: 80 | Z62: 0 | AA62: 240 | AB62: Si | AC62: Sistema por bombeo y gravedad | AE62: Si | AH62: 2016 | AI62: Si | AL62: No | AX62: No | BE62: 2.5 | BF62: 8 | BG62: 24 | BH62: No | BM62: Si | BN62: Bueno | BO62: No | BT62: Si | BU62: Si | BV62: Entel|Tigo | BW62: No | BX62: No | BY62: Queman|Entierran | BZ62: Si | CA62: Locales y nacionales | CB62: Si | CC62: Locales y nacionales | CD62: No | CE62: Si | CF62: e4b35c60f78046a996ed6683e71a4fb
A63: rpxg-hs7n-xdbv | B63: Bolivia - Cochabamba - Arbieto - D 1 Arbieto - Arbieto C.P. | C63: BOI NOE | D63: 3252780162 | E63: 16-06-2021 15:08:54 UTC | F63: Noe | G63: 00:09:26 | H63: 6 | I63: Bolivia | J63: Cochabamba | L63: Arbieto | M63: 1 | N63: Arbieto C.P. | O63: -17.593343937769532 | P63: -66.01451477967203 | Q63: 2802.0 | R63: https://waterforpeople.s3.amazonaws.com/images/07f3415b-256a-479b-836c-ddcde8f85654.jpg | S63: 1 | T63: Abrieto C.P | U63: Concentrada | V63: Gobierno Nacional|Municipio | W63: 720 | X63: 720 | Y63: 720 | Z63: 0 | AA63: 2160 | AB63: Si | AC63: Sistema por bombeo y gravedad | AE63: Si | AH63: 2018 | AI63: Si | AL63: No | AX63: No | BE63: 2.8 | BF63: 7.142857143 | BG63: 24 | BH63: No | BM63: Si | BN63: Bueno | BO63: No | BT63: Si | BU63: Si | BV63: Entel|Tigo | BW63: Si | BX63: Si | BZ63: Si | CA63: Nacionales | CB63: Si | CC63: Locales | CD63: Si | CE63: Si | CF63: 8ece6b2d775fa250567c6ad515958ac4
A64: n2jy-n63a-0r71 | B64: Bolivia - Cochabamba - Arbieto - D 1 Arbieto - Ini Rancho | C64: BOI NOE | D64: 3220870182 | E64: 16-06-2021 14:56:02 UTC | F64: Noe | G64: 00:13:13 | H64: 6 | I64: Bolivia | J64: Cochabamba | L64: Arbieto | M64: 1 | N64: Ini Rancho | O64: -17.604485750198364 | P64: -66.00115100853145 | Q64: 2767.0 | R64: https://waterforpeople.s3.amazonaws.com/images/7a0bb7fb-40e0-4669-a822-bafc20896749.jpg | S64: 1 | T64: Ini Rancho | U64: Concentrada | V64: Gobierno Nacional|Municipio|Comité de Agua | W64: 34 | X64: 32 | Y64: 32 | Z64: 0 | AA64: 96 | AB64: Si | AC64: Sistema por bombeo y gravedad | AE64: No | AH64: 2006 | AI64: Si | AL64: Si | AM64: 3 | AN64: 2 | AX64: No | BE64: 0.3 | BF64: 66.66666667 | BG64: 12 | BH64: No | BM64: No | BN64: Bueno | BO64: Si | BP64: Escaces de Agua | BT64: Si | BU64: Si | BV64: Entel|Tigo | BW64: No | BX64: No | BY64: Queman|Entierran|Botan al rio, quebrada | BZ64: Si | CA64: Nacionales | CB64: Si | CC64: Locales | CD64: Si | CE64: Si | CF64: 798b73a2b985218e8e50833039b581
A65: av44-eq0e-9e3t | B65: Bolivia - Cochabamba - Arbieto - D 1 Arbieto - Kori Mayu | C65: BOI NOE | D65: 3230970164 | E65: 16-06-2021 14:47:01 UTC | F65: Noe | G65: 00:05:22 | H65: 6 | I65: Bolivia | J65: Cochabamba | L65: Arbieto | M65: 1 | N65: Kori Mayu | O65: -17.586616622284055 | P65: -66.02813235484064 | Q65: 2748.0 | R65: https://waterforpeople.s3.amazonaws.com/images/4c40f5cd-b40e-4bb8-9be8-819147c779ca.jpg | S65: 1 | T65: Kori Mayu | U65: Dispersa | V65: Municipio|Comité de Agua|Agua Para el Pueblo | W65: 103 | X65: 28 | Y65: 28 | Z65: 0 | AA65: 84 | AB65: Si | AC65: Sistema por bombeo y gravedad | AE65: Si | AH65: 2020 | AI65: Si | AL65: No | AX65: No | BE65: 5.8 | BF65: 3.448275862 | BG65: 24 | BH65: No | BM65: Si | BN65: Bueno | BO65: No | BT65: Si | BU65: Si | BV65: Entel|Tigo | BW65: No | BX65: No | BY65: Queman|Entierran|Botan al rio, quebrada | BZ65: Si | CA65: Nacionales | CB65: Si | CC65: Nacionales | CD65: No | CE65: Si | CF65: dc1f7c461a8142f371691bc729fd9f1b
A66: mkry-xre5-db33 | B66: Bolivia - Cochabamba - Arbieto - D 1 Arbieto - La Loma | C66: BOI NOE | D66: 3228750092 | E66: 16-06-2021 14:54:10 UTC | F66: Noe | G66: 00:05:10 | H66: 6 | I66: Bolivia | J66: Cochabamba | L66: Arbieto | M66: 1 | N66: La Loma | O66: -17.56766073871404 | P66: -66.03295127861202 | Q66: 2724.0 | R66: https://waterforpeople.s3.amazonaws.com/images/646cf810-f216-4928-9622-348280d916c9.jpg | S66: 1 | T66: La Loma | U66: Concentrada | V66: Municipio|Comité de Agua|Agua Para el Pueblo | W66: 164 | X66: 90 | Y66: 90 | Z66: 0 | AA66: =IF(Y66=0,"",(Y66*3)) -> 270 | AB66: Si | AC66: Sistema por bombeo y gravedad | AE66: Si | AH66: 2021 | AI66: Si | AL66: No | AO66: Si | AP66: Si | AQ66: 0 | AR66: No | AT66: Si | AU66: 0 | AV66: Si | AW66: 1.32 | AX66: No | BE66: 0.2 | BF66: =IF(BE66="","",(20/BE66)) -> 100 | BG66: 24 | BH66: No | BM66: Si | BN66: Bueno | BO66: No | BT66: Si | BU66: Si | BV66: Entel|Tigo | BW66: No | BX66: No | BY66: Queman|Entierran|Botan al rio, quebrada | BZ66: Si | CA66: Nacionales | CB66: Si | CC66: Locales | CD66: No | CE66: Si | CF66: d87d8e2dc139a0d89e299c2daa3b75
A67: t31y-qqw5-evwn | B67: Bolivia - Cochabamba - Arbieto - D 1 Arbieto - Santa Rosa | C67: BOI NOE | D67: 3240640129 | E67: 16-06-2021 14:45:27 UTC | F67: Noe | G67: 00:03:47 | H67: 6 | I67: Bolivia | J67: Cochabamba | L67: Arbieto | M67: 1 | N67: Santa Rosa | O67: -17.41744190454483 | P67: -66.15224587731063 | Q67: 2631.0 | R67: https://waterforpeople.s3.amazonaws.com/images/e70c81ab-60bb-4aaa-b5ca-05609ed32b6d.jpg | S67: 1 | T67: Santa Rosa | U67: Concentrada | V67: Gobierno Nacional|Municipio | W67: 250 | X67: 110 | Y67: 110 | Z67: 0 | AA67: 330 | AB67: Si | AC67: Sistema por bombeo y gravedad | AE67: Si | AH67: 1995 | AI67: Si | AL67: Si | AM67: 2 | AN67: 1 | AO67: Si | AP67: Si | AQ67: 0 | AR67: No | AT67: Si | AU67: 0 | AV67: Si | AW67: 0.97 | AX67: No | BE67: 2.5 | BF67: 8 | BG67: 24 | BH67: No | BM67: Si | BN67: Bueno | BO67: No | BT67: Si | BU67: Si | BV67: Entel|Tigo | BW67: No | BX67: No | BY67: Queman|Botan al rio, quebrada | BZ67: Si | CA67: Nacionales | CB67: Si | CC67: Locales | CD67: No | CE67: No | CF67: 4e1bf440b2f1a343c0bc74b052115665
A68: yewv-p7n4-32uk | B68: Bolivia - Cochabamba - Arbieto - D 1 Arbieto - Tiataco | C68: BOI NOE | D68: 3252760214 | E68: 16-06-2021 15:14:13 UTC | F68: Noe | G68: 00:06:56 | H68: 6 | I68: Bolivia | J68: Cochabamba | L68: Arbieto | M68: 1 | N68: Tiataco | O68: -17.596180122345686 | P68: -66.00109124556184 | Q68: 2752.0 | R68: https://waterforpeople.s3.amazonaws.com/images/f9b15abc-1d09-41d8-8f24-378b84b6b9e2.jpg | S68: 1 | T68: Tiataco | U68: Concentrada | V68: Comité de Agua|Otra ONG | W68: 110 | X68: 85 | Y68: 85 | Z68: 5 | AA68: 255 | AB68: Si | AC68: Sistema por bombeo y gravedad | AE68: Si | AH68: 2019 | AI68: Si | AL68: No | AX68: No | BE68: 2.5 | BF68: 8 | BG68: 24 | BH68: No | BM68: Si | BN68: Bueno | BO68: No | BT68: Si | BU68: Si | BV68: Entel|Tigo | BW68: No | BX68: No | BY68: Queman|Entierran|Botan al rio, quebrada | BZ68: Si | CA68: Locales y nacionales | CB68: Si | CC68: Locales y nacionales | CD68: Si | CE68: Si | CF68: c94c3f196197bdcc5fc9c073327e2051
A69: 2qu0-y0bs-670q | B69: Bolivia - Cochabamba - Arbieto - D 1 Arbieto - Villa Imperial | C69: BOI NOE | D69: 3250890161 | E69: 16-06-2021 14:52:34 UTC | F69: Noe | G69: 00:12:10 | H69: 6 | I69: Bolivia | J69: Cochabamba | L69: Arbieto | M69: 1 | N69: Villa Imperial | O69: -17.580441548489034 | P69: -66.04229751974344 | Q69: 2755.0 | R69: https://waterforpeople.s3.amazonaws.com/images/fa0c3554-4891-4204-b7db-b167c71b1aab.jpg | S69: 1 | T69: Villa Imperial | U69: Concentrada | V69: Municipio|Comité de Agua|Agua Para el Pueblo | W69: 109 | X69: 67 | Y69: 67 | Z69: 0 | AA69: 201 | AB69: Si | AC69: Sistema por bombeo y gravedad | AE69: Si | AH69: 2017 | AI69: Si | AL69: No | AX69: No | BE69: 2.3 | BF69: 8.695652174 | BG69: 24 | BH69: No | BM69: Si | BN69: Bueno | BO69: No | BT69: Si | BU69: Si | BV69: Entel|Tigo | BW69: No | BX69: No | BY69: Queman|Entierran|Botan al rio, quebrada | BZ69: Si | CA69: Nacionales | CB69: Si | CC69: Locales | CD69: No | CE69: Si | CF69: 35d458dda1255b8b5b3db5b03a3ead
A70: 7y1m-7u3p-rpjr | B70: Bolivia - Cochabamba - Arbieto - D 1 Arbieto - Villa Mercedes | C70: BOI NOE | D70: 3254380067 | E70: 16-06-2021 14:50:18 UTC | F70: Noe | G70: 00:07:42 | H70: 6 | I70: Bolivia | J70: Cochabamba | L70: Arbieto | M70: 1 | N70: Villa Mercedes | O70: -17.573830909095705 | P70: -66.03588653728366 | Q70: 2736.0 | R70: https://waterforpeople.s3.amazonaws.com/images/648bf120-2c59-40bf-9284-72522a3d52b3.jpg | S70: 1 | T70: Villa Mercedes | U70: Concentrada | V70: Gobierno Nacional|Municipio|Comité de Agua | W70: 100 | X70: 100 | Y70: 91 | Z70: 9 | AA70: 273 | AB70: Si | AC70: Sistema por bombeo y gravedad | AE70: No | AH70: 1994 | AI70: Si | AL70: Si | AM70: 3 | AN70: 1 | AO70: Si | AP70: Si | AQ70: 0 | AR70: No | AT70: Si | AU70: 0 | AV70: Si | AW70: 1.27 | AX70: No | BE70: 2.8 | BF70: 7.142857143 | BG70: 24 | BH70: No | BM70: Si | BN70: Bueno | BO70: Si | BP70: Protección de fuente y Tanque | BT70: Si | BU70: Si | BV70: Entel|Tigo | BW70: No | BX70: No | BY70: Queman|Entierran|Botan al rio, quebrada | BZ70: Si | CA70: Nacionales | CB70: Si | CC70: Locales | CD70: Si | CE70: Si | CF70: 5b448dbd2e74b895dc3ca1ddeba742b
A71: dmnn-me06-0kb3 | B71: Bolivia - Cochabamba - Arbieto - D 1 Arbieto - Villa Verde | C71: BOI NOE | D71: 3230980106 | E71: 16-06-2021 15:06:41 UTC | F71: Noe | G71: 00:10:08 | H71: 6 | I71: Bolivia | J71: Cochabamba | L71: Arbieto | M71: 1 | N71: Villa Verde | O71: -17.573973736725748 | P71: -66.0295591223985 | Q71: 2733.0 | R71: https://waterforpeople.s3.amazonaws.com/images/f4cd352c-2b09-461a-9d80-d8b9c8a7157e.jpg | S71: 1 | T71: Villa Verde | U71: Concentrada | V71: Gobierno Nacional | W71: 80 | X71: 65 | Y71: 65 | Z71: 0 | AA71: 195 | AB71: Si | AC71: Sistema por bombeo y gravedad | AE71: Si | AH71: 1995 | AI71: Si | AL71: No | AX71: No | BE71: 0.8 | BF71: 25 | BG71: 24 | BH71: No | BM71: No | BN71: Bueno | BO71: No | BT71: Si | BU71: Si | BV71: Entel|Tigo | BW71: No | BX71: No | BY71: Queman|Entierran|Botan al rio, quebrada | BZ71: Si | CA71: Nacionales | CB71: Si | CC71: Locales | CD71: Si | CE71: Si | CF71: 8c2c25ad12c21c89dc09f9ad67783aa
A72: jgm8-qfw1-1y66 | B72: Bolivia - Cochabamba - Arbieto - D 2 Aranjuez - Aranjuez | C72: BOI NOE | D72: 3238830168 | E72: 16-06-2021 14:58:57 UTC | F72: Noe | G72: 00:16:29 | H72: 6 | I72: Bolivia | J72: Cochabamba | L72: Arbieto | M72: 2 | N72: Aranjuez | O72: -17.598325428552926 | P72: -65.98230639472604 | Q72: 2734.0 | R72: https://waterforpeople.s3.amazonaws.com/images/cc1d9a94-b15e-4fcd-95f8-ee21d67d5903.jpg | S72: 1 | T72: Aranjuez | U72: Concentrada | V72: Municipio|Comité de Agua | W72: 120 | X72: 120 | Y72: 120 | Z72: 0 | AA72: 360 | AB72: Si | AC72: Sistema por bombeo y gravedad | AE72: Si | AH72: 2014 | AI72: Si | AL72: No | AX72: No | BE72: 2.5 | BF72: 8 | BG72: 24 | BH72: No | BM72: Si | BN72: Bueno | BO72: No | BT72: Si | BU72: Si | BV72: Entel|Tigo | BW72: No | BX72: No | BY72: Queman|Entierran|Botan al rio, quebrada | BZ72: Si | CA72: Nacionales | CB72: Si | CC72: Locales | CD72: No | CE72: Si | CF72: a21692fc1dbcee26622fa124548c364b
A73: 6ff7-90fg-k7r1 | B73: Bolivia - Cochabamba - Arbieto - D 2 Aranjuez - Liquinas | C73: BOI NOE | D73: 3228750096 | E73: 16-06-2021 15:01:35 UTC | F73: Noe | G73: 00:08:31 | H73: 6 | I73: Bolivia | J73: Cochabamba | L73: Arbieto | M73: 2 | N73: Liquinas | O73: -17.575239948928356 | P73: -65.99201439879835 | Q73: 2705.0 | R73: https://waterforpeople.s3.amazonaws.com/images/5555c8b2-0e06-4aa7-ade2-3d49d13d5352.jpg | S73: 1 | T73: Liquinas | U73: Concentrada | V73: Gobierno Nacional | W73: 105 | X73: 80 | Y73: 80 | Z73: 0 | AA73: 240 | AB73: Si | AC73: Sistema por bombeo y gravedad | AE73: Si | AH73: 1998 | AI73: Si | AL73: Si | AM73: 4 | AN73: 2 | AX73: No | BE73: 0.8 | BF73: 25 | BG73: 24 | BH73: No | BM73: No | BN73: Malo | BO73: Si | BP73: Existe sedimentación de limo en el tanque de agua y requiere limpieza constante | BT73: Si | BU73: Si | BV73: Entel|Tigo | BW73: No | BX73: No | BY73: Queman|Entierran|Botan al rio, quebrada | BZ73: Si | CA73: Punata | CB73: Si | CC73: Regionales | CD73: Si | CE73: Si | CF73: 42644a9e1bcbd26ffcce6e9652db24eb
A74: 2eky-whh3-cygv | B74: Bolivia - Cochabamba - Arbieto - D 2 Aranjuez - Loma Liquinas | C74: BOI NOE | D74: 3220890073 | E74: 16-06-2021 15:03:56 UTC | F74: Noe | G74: 00:03:00 | H74: 6 | I74: Bolivia | J74: Cochabamba | L74: Arbieto | M74: 2 | N74: Loma Liquinas | O74: -17.576232450082898 | P74: -65.98145253024995 | Q74: 2759.0 | R74: https://waterforpeople.s3.amazonaws.com/images/43848c84-c3c4-46cf-9fc9-ab216dec7ed0.jpg | S74: 1 | T74: Loma Liquinas | U74: Concentrada | V74: Gobierno Nacional|Municipio | W74: 80 | X74: 75 | Y74: 75 | Z74: 0 | AA74: 225 | AB74: Si | AC74: Sistema por bombeo y gravedad | AE74: Si | AH74: 2006 | AI74: Si | AL74: No | AX74: No | BE74: 2.2 | BF74: 9.090909091 | BG74: 24 | BH74: No | BM74: Si | BN74: Bueno | BO74: No | BT74: Si | BU74: Si | BV74: Entel|Tigo | BW74: No | BX74: No | BY74: Queman|Entierran|Botan al rio, quebrada | BZ74: Si | CA74: Locales | CB74: Si | CC74: Locales | CD74: No | CE74: Si | CF74: 3e5f88df70b07eba3e48634957fd57b
A75: 25yn-kheq-v1tq | B75: Bolivia - Cochabamba - Arbieto - D 3 Arpita - Achiota | C75: BOI Tiraque1 | D75: 3239260064 | E75: 08-07-2021 19:05:49 UTC | F75: Daniel Arellano | G75: 00:06:56 | H75: 6 | I75: Bolivia | J75: Cochabamba | L75: Arbieto | M75: 3 | N75: Achiota | O75: -17.58655666000512 | P75: -66.12794557675042 | Q75: 3298.3002576632425 | R75: https://waterforpeople.s3.amazonaws.com/images/9ae2e7e2-81da-4053-805b-41b44699bd74.jpg | S75: 1 | T75: Achiota | U75: Semi dispersa | V75: Otra ONG | W75: 32 | X75: 5 | Y75: 13 | Z75: 0 | AA75: 39 | AB75: Si | AC75: Sistema por gravedad | AE75: No | AH75: 1998 | AI75: Si | AL75: No | BE75: 0.3 | BF75: 66.66666667 | BG75: 24 | BH75: No | BM75: Si | BN75: Malo | BO75: Si | BP75: Se requiete mejerar la fuente | BT75: Si | BU75: Si | BV75: Entel | BW75: No | BX75: No | BY75: Queman|Entierran | BZ75: Si | CA75: Unitel. Bolivision. Atb | CB75: Si | CC75: Radio valle alto. Vision, panorama. | CD75: No | CE75: No | CF75: 5bae8cb3591d1f7731bd941269cfb10
A76: d8r6-6ap8-jyxf | B76: Bolivia - Cochabamba - Arbieto - D 3 Arpita - Arpita | C76: BOI NOE | D76: 3236470170 | E76: 16-06-2021 15:20:38 UTC | F76: Noe | G76: 00:12:03 | H76: 6 | I76: Bolivia | J76: Cochabamba | L76: Arbieto | M76: 3 | N76: Arpita | O76: -17.56777456495911 | P76: -66.07518760487437 | Q76: 2753.0 | R76: https://waterforpeople.s3.amazonaws.com/images/29c386d7-61e8-40f3-af4e-c08bf4313a87.jpg | S76: 1 | T76: Arpita | U76: Concentrada | V76: Municipio|Comité de Agua|Agua Para el Pueblo | W76: 120 | X76: 104 | Y76: 100 | Z76: 4 | AA76: 300 | AB76: Si | AC76: Sistema por bombeo y gravedad | AE76: Si | AH76: 2006 | AI76: Si | AL76: Si | AM76: 2 | AN76: 1 | AO76: Si | AP76: Si | AQ76: 0 | AR76: No | AT76: Si | AU76: 0 | AV76: Si | AW76: 1.12 | AX76: No | BE76: 2.8 | BF76: 7.142857143 | BG76: 24 | BH76: No | BM76: Si | BN76: Bueno | BO76: Si | BP76: Comprar bomba | BT76: Si | BU76: Si | BV76: Entel|Tigo | BW76: No | BX76: No | BY76: Queman|Entierran|Botan al rio, quebrada | BZ76: Si | CA76: Canal 7 | CB76: Si | CC76: Punata y Tarata | CD76: Si | CE76: Si | CF76: c494c88ac55242cb3eab43b6e025947a
A77: g79k-kgg6-advw | B77: Bolivia - Cochabamba - Arbieto - D 3 Arpita - Canto Copa Pujyu | C77: BOI Tiraque1 | D77: 3246511716 | E77: 13-06-2021 20:00:35 UTC | F77: Daniel Arellano | G77: 00:04:58 | H77: 6 | I77: Bolivia | J77: Cochabamba | L77: Arbieto | M77: 3 | N77: Canto Copa Pujyu | O77: -17.552725432362642 | P77: -66.10973805784074 | Q77: 2770.2845028657466 | R77: https://waterforpeople.s3.amazonaws.com/images/68ae6183-e372-4189-8c05-8d018a4a8b59.jpg | S77: 1 | T77: Canto Copa Pujyo | U77: Semi dispersa | V77: Municipio|Otra ONG | W77: 46 | X77: 24 | Y77: 24 | Z77: 0 | AA77: 72 | AB77: Si | AC77: Sistema por bombeo y gravedad | AE77: Si | AH77: 2004 | AI77: Si | AL77: No | AO77: Si | AP77: Si | AQ77: 0 | AR77: No | AT77: Si | AU77: 0 | AV77: Si | AW77: 0.48 | AX77: No | BE77: 2 | BF77: 10 | BG77: 24 | BH77: No | BM77: Si | BN77: Bueno | BO77: No | BT77: Si | BU77: Si | BV77: Entel|Tigo | BW77: No | BX77: No | BY77: Queman|Entierran | BZ77: Si | CA77: Bolivision | CB77: Si | CC77: Radio municipal | CD77: No | CE77: No | CF77: a2fcd22b0c4ac3ce1de85f0d3f3f5a4
A78: 44bp-buas-kuyc | B78: Bolivia - Cochabamba - Arbieto - D 3 Arpita - Copa Pujyu Central | C78: BOI NOE | D78: 3220890231 | E78: 16-06-2021 20:45:08 UTC | F78: Noe | G78: 00:03:22 | H78: 6 | I78: Bolivia | J78: Cochabamba | L78: Arbieto | M78: 3 | N78: Copa Pujyu Central | O78: -17.556710788048804 | P78: -66.09801194630563 | Q78: 2774.0 | R78: https://waterforpeople.s3.amazonaws.com/images/22a4df7a-b59e-489b-8eff-bcd0426cda94.jpg | S78: 1 | T78: Copa Pujyu Centro | U78: Concentrada | V78: Municipio|Comité de Agua|Agua Para el Pueblo | W78: 150 | X78: 92 | Y78: 92 | Z78: 0 | AA78: 276 | AB78: Si | AC78: Sistema por bombeo y gravedad | AE78: No | AH78: 2006 | AI78: Si | AL78: No | AO78: Si | AP78: Si | AQ78: 0 | AR78: No | AT78: Si | AU78: 0 | AV78: Si | AW78: 0.56 | AX78: No | BE78: 2 | BF78: 10 | BG78: 24 | BH78: No | BM78: Si | BN78: Bueno | BO78: No | BT78: Si | BU78: Si | BV78: Entel|Tigo | BW78: No | BX78: No | BY78: Queman|Entierran|Botan al rio, quebrada | BZ78: Si | CA78: Cbba | CB78: Si | CC78: Punata y Tarata | CD78: No | CE78: Si | CF78: 69edbc987f19a2edf1454ffa93cc28
A79: rsjn-g3rh-ngt3 | B79: Bolivia - Cochabamba - Arbieto - D 3 Arpita - Copa Pujyu Nuevo | C79: BOI NOE | D79: 3226450182 | E79: 16-06-2021 15:26:32 UTC | F79: Noe | G79: 00:10:57 | H79: 6 | I79: Bolivia | J79: Cochabamba | L79: Arbieto | M79: 3 | N79: Copa Pujyu Nuevo | O79: -17.559833424165845 | P79: -66.09284978359938 | Q79: 2774.0 | R79: https://waterforpeople.s3.amazonaws.com/images/f8e32eeb-5854-4bee-bfff-fc0c1a2f8b3b.jpg | S79: 1 | T79: Copa Pujyu Nuevo | U79: Concentrada | V79: Comité de Agua|Agua Para el Pueblo | W79: 100 | X79: 80 | Y79: 80 | Z79: 0 | AA79: 240 | AB79: Si | AC79: Sistema por bombeo y gravedad | AE79: Si | AH79: 2006 | AI79: Si | AL79: No | AO79: Si | AP79: Si | AQ79: 0 | AR79: No | AT79: Si | AU79: 0 | AV79: Si | AW79: 0.66 | AX79: No | BE79: 0.4 | BF79: 50 | BG79: 24 | BH79: No | BM79: Si | BN79: Bueno | BO79: No | BT79: Si | BU79: Si | BV79: Entel|Tigo | BW79: No | BX79: No | BY79: Queman|Entierran|Botan al rio, quebrada | BZ79: Si | CA79: Nacionales | CB79: Si | CC79: Punata y Tarata | CD79: No | CE79: Si | CF79: 5d6f5077ecdacc23b0352a87628912
A80: ag7e-4qwd-6sys | B80: Bolivia - Cochabamba - Arbieto - D 3 Arpita - Flores Rancho | C80: BOI NOE | D80: 3238850115 | E80: 16-06-2021 15:29:36 UTC | F80: Noe | G80: 00:15:19 | H80: 6 | I80: Bolivia | J80: Cochabamba | L80: Arbieto | M80: 3 | N80: Flores Rancho | O80: -17.57792660035193 | P80: -66.06134564615786 | Q80: 2765.0 | R80: https://waterforpeople.s3.amazonaws.com/images/f65fc20e-8058-4038-a29b-c0ec7ab779de.jpg | S80: 1 | T80: Flores Rancho | U80: Concentrada | V80: Municipio|Comité de Agua|Agua Para el Pueblo | W80: 85 | X80: 50 | Y80: 45 | Z80: 5 | AA80: 135 | AB80: Si | AC80: Sistema por bombeo y gravedad | AE80: Si | AH80: 2004 | AI80: Si | AL80: No | AO80: Si | AP80: Si | AQ80: 0 | AR80: No | AT80: Si | AU80: 0 | AV80: Si | AW80: 0.61 | AX80: No | BE80: 2.3 | BF80: 8.695652174 | BG80: 24 | BH80: No | BM80: Si | BN80: Bueno | BO80: No | BT80: Si | BU80: Si | BV80: Entel|Tigo | BW80: No | BX80: No | BY80: Queman|Entierran|Botan al rio, quebrada | BZ80: Si | CA80: Nacionales | CB80: Si | CC80: Punata h Tarata | CD80: No | CE80: Si | CF80: c8ec5093dd43ee476c23fe56395731a8
A81: 89sw-qx63-anax | B81: Bolivia - Cochabamba - Arbieto - D 3 Arpita - Jama Chuma | C81: BOI Tiraque1 | D81: 3222481469 | E81: 13-06-2021 20:45:06 UTC | F81: Daniel Arellano | G81: 00:16:48 | H81: 6 | I81: Bolivia | J81: Cochabamba | L81: Arbieto | M81: 3 | N81: Jama Chuma | O81: -17.534927186707147 | P81: -66.11758583122992 | Q81: 2739.8770401589572 | R81: https://waterforpeople.s3.amazonaws.com/images/8190b40b-b5ce-4319-88bf-28cc90ac3b0a.jpg | S81: 3 | T81: Jama Chuma, Thajra y Kaluyo | U81: Concentrada | V81: Gobierno Nacional|Municipio|Comité de Agua | W81: 135 | X81: 135 | Y81: 120 | Z81: 15 | AA81: 360 | AB81: Si | AC81: Sistema por bombeo y gravedad | AE81: Si | AH81: 2000 | AI81: Si | AL81: No | AO81: Si | AP81: Si | AQ81: 0 | AR81: No | AT81: Si | AU81: 0 | AV81: Si | AW81: 1.08 | AX81: No | BE81: 2 | BF81: 10 | BG81: 24 | BH81: No | BM81: Si | BN81: Bueno | BO81: No | BT81: Si | BU81: Si | BV81: Entel|Tigo | BW81: No | BX81: Si | BZ81: Si | CA81: Canal 7 | CB81: Si | CC81: Redio panamericana | CD81: No | CE81: No | CF81: af6abe33829265383ef445edc365c28
A82: p4mr-8thb-pq77 | B82: Bolivia - Cochabamba - Arbieto - D 3 Arpita - Jatam Pata | C82: BOI Tiraque1 | D82: 3250880419 | E82: 18-06-2021 16:08:38 UTC | F82: Daniel Arellano | G82: 00:06:04 | H82: 6 | I82: Bolivia | J82: Cochabamba | L82: Arbieto | M82: 3 | N82: Jatam Pata | O82: -17.543755316039718 | P82: -66.10801398634189 | Q82: 2769.087157599628 | R82: https://waterforpeople.s3.amazonaws.com/images/688006e2-4cc5-4f40-bf3f-c733078341f6.jpg | S82: 1 | T82: Jatam Pata | U82: Concentrada | V82: Municipio | W82: 50 | X82: 45 | Y82: 45 | Z82: 0 | AA82: 135 | AB82: Si | AC82: Sistema por bombeo y gravedad | AE82: Si | AH82: 2001 | AI82: Si | AL82: No | AO82: Si | AP82: Si | AQ82: 0 | AR82: No | AT82: Si | AU82: 0 | AV82: Si | AW82: 0.53 | AX82: No | BE82: 2 | BF82: 10 | BG82: 24 | BH82: No | BM82: Si | BN82: Bueno | BO82: Si | BT82: Si | BU82: Si | BV82: Entel|Tigo | BW82: No | BX82: No | BY82: Queman|Entierran | BZ82: Si | CA82: Canal 7 | CB82: Si | CC82: Radio tarata | CD82: No | CE82: No | CF82: 71ee56fcb5ee78afb05bcdd5bf12f8
A83: 89sw-qx63-anax | B83: Bolivia - Cochabamba - Arbieto - D 3 Arpita - Jama Chuma | C83: BOI Tiraque1 | D83: 3222481469 | E83: 13-06-2021 20:45:06 UTC | F83: Daniel Arellano | G83: 00:16:48 | H83: 6 | I83: Bolivia | J83: Cochabamba | L83: Arbieto | M83: 3 | N83: Kaluyo | O83: -17.534927186707147 | P83: -66.11758583122992 | Q83: 2739.8770401589572 | R83: https://waterforpeople.s3.amazonaws.com/images/8190b40b-b5ce-4319-88bf-28cc90ac3b0a.jpg | S83: 3 | T83: Jama Chuma, Thajra y Kaluyo | U83: Concentrada | V83: Gobierno Nacional|Municipio|Comité de Agua | W83: 88 | X83: 88 | Y83: 88 | Z83: 0 | AA83: 264 | AB83: Si | AC83: Sistema por bombeo y gravedad | AE83: Si | AH83: 2000 | AI83: Si | AL83: No | AO83: Si | AP83: Si | AQ83: 0 | AR83: No | AT83: Si | AU83: 0 | AV83: Si | AW83: 1.08 | AX83: No | BE83: 2 | BF83: 10 | BG83: 24 | BH83: No | BM83: Si | BN83: Bueno | BO83: No | BT83: Si | BU83: Si | BV83: Entel|Tigo | BW83: No | BX83: Si | BZ83: Si | CA83: Canal 7 | CB83: Si | CC83: Redio panamericana | CD83: No | CE83: No | CF83: af6abe33829265383ef445edc365c28
A84: grs9-xa10-fvj2 | B84: Bolivia - Cochabamba - Arbieto - D 3 Arpita - Mamanaca | C84: BOI NOE | D84: 3233310141 | E84: 27-07-2021 16:09:11 UTC | F84: Noe | G84: 00:09:42 | H84: 6 | I84: Bolivia | J84: Cochabamba | L84: Arbieto | M84: 3 | N84: Mamanaca | O84: -17.58854161016643 | P84: -66.0520717408508 | Q84: 2759.0 | R84: https://waterforpeople.s3.amazonaws.com/images/e79dbfc9-3a05-4df1-a7ea-e01c9c927e55.jpg | S84: 1 | T84: Mamanaca | U84: Concentrada | V84: Gobierno Nacional|Municipio|Comité de Agua | W84: 320 | X84: 280 | Y84: 320 | Z84: 10 | AA84: 960 | AB84: Si | AC84: Sistema por bombeo y gravedad | AE84: Si | AH84: 2014 | AI84: Si | AL84: No | AO84: Si | AP84: Si | AQ84: 0 | AR84: No | AT84: Si | AU84: 0 | AV84: Si | AW84: 0.81 | AX84: No | BE84: 4.5 | BF84: 4.444444444 | BG84: 24 | BH84: No | BM84: Si | BN84: Bueno | BO84: No | BT84: Si | BU84: Si | BV84: Entel|Tigo | BW84: No | BX84: No | BY84: Queman|Entierran|Botan al rio, quebrada | BZ84: Si | CA84: Nacionales | CB84: Si | CC84: Punata y Tarata | CD84: Si | CE84: Si | CF84: d836a54212ff4d5ff65ae5548758a81e
A85: 95k1-yr0e-kcrh | B85: Bolivia - Cochabamba - Arbieto - D 3 Arpita - Muyurina | C85: BOI NOE | D85: 3234940192 | E85: 16-06-2021 15:28:04 UTC | F85: Noe | G85: 00:16:49 | H85: 6 | I85: Bolivia | J85: Cochabamba | L85: Arbieto | M85: 3 | N85: Muyurina | O85: -17.56418547593057 | P85: -66.09037234447896 | Q85: 2700.0 | R85: https://waterforpeople.s3.amazonaws.com/images/df53aa23-475f-413c-bb22-59ecd7a6f1a0.jpg | S85: 1 | T85: Muyurina | U85: Concentrada | V85: Comité de Agua|Otra ONG | W85: 90 | X85: 75 | Y85: 75 | Z85: 0 | AA85: 225 | AB85: Si | AC85: Sistema por bombeo y gravedad | AE85: No | AH85: 1993 | AI85: No | AJ85: Escasez Estacional | AL85: Si | AM85: 3 | AN85: 1 | AO85: Si | AP85: Si | AQ85: 0 | AR85: No | AT85: Si | AU85: 0 | AV85: Si | AW85: 0.48 | AX85: No | BE85: 2.5 | BF85: 8 | BG85: 12 | BH85: No | BM85: No | BN85: Malo | BO85: Si | BP85: Sistema de agua cumplio su vida útil, fallas en la red de distribución y tanque de almacenamiento | BT85: Si | BU85: Si | BV85: Entel|Tigo | BW85: No | BX85: No | BY85: Queman|Entierran|Botan al rio, quebrada | BZ85: Si | CA85: Canal 7 | CB85: Si | CC85: Punata | CD85: No | CE85: No | CF85: 15a273fed28873f9a45641ac5df2a43
A86: erb9-cj5e-y725 | B86: Bolivia - Cochabamba - Arbieto - D 3 Arpita - Pata Churigua | C86: BOI NOE | D86: 3250900198 | E86: 16-06-2021 15:31:17 UTC | F86: Noe | G86: 00:09:04 | H86: 6 | I86: Bolivia | J86: Cochabamba | L86: Arbieto | M86: 3 | N86: Pata Churigua | O86: -17.61290289927274 | P86: -66.12831386737525 | Q86: 3340.0 | R86: https://waterforpeople.s3.amazonaws.com/images/1e36a0dd-bb60-451c-a093-9d9ab307c563.jpg | S86: 1 | T86: Pata Churigua | U86: Semi dispersa | V86: Municipio|Comité de Agua|Otra ONG | W86: 84 | X86: 40 | Y86: 40 | Z86: 0 | AA86: 120 | AB86: Si | AC86: Sistema por bombeo y gravedad | AE86: No | AH86: 2008 | AI86: No | AJ86: Escasez Estacional | AL86: Si | AM86: 2 | AN86: 2 | AX86: No | BE86: 0.5 | BF86: 40 | BG86: 8 | BH86: No | BM86: No | BN86: Malo | BO86: Si | BP86: Bajo caudal de la fuente de agua | BT86: Si | BU86: Si | BV86: Entel | BW86: No | BX86: No | BY86: Queman|Entierran|Botan al rio, quebrada | BZ86: No | CB86: Si | CC86: Punata y Tarata | CD86: No | CE86: No | CF86: b2e7389c9bb451a4c81ce886553f5c1
A87: 8sjq-5xcj-7ybe | B87: Bolivia - Cochabamba - Arbieto - D 3 Arpita - Rayo Pampa | C87: BOI NOE | D87: 3238850110 | E87: 16-06-2021 15:25:23 UTC | F87: Noe | G87: 00:11:27 | H87: 6 | I87: Bolivia | J87: Cochabamba | L87: Arbieto | M87: 3 | N87: Rayo Pampa | O87: -17.547753676772118 | P87: -66.1009766254574 | Q87: 2744.0 | R87: https://waterforpeople.s3.amazonaws.com/images/8b40a193-ac8e-4654-b4fa-0dea70982711.jpg | S87: 1 | T87: Rayo Pampa | U87: Concentrada | V87: Municipio|Comité de Agua | W87: 125 | X87: 93 | Y87: 93 | Z87: 0 | AA87: 279 | AB87: Si | AC87: Sistema por bombeo y gravedad | AE87: Si | AH87: 2000 | AI87: Si | AL87: Si | AM87: 3 | AN87: 1 | AO87: Si | AP87: Si | AQ87: 0 | AR87: No | AT87: Si | AU87: 0 | AV87: Si | AW87: 0.58 | AX87: No | BE87: 2 | BF87: 10 | BG87: 24 | BH87: No | BM87: Si | BN87: Bueno | BO87: No | BT87: Si | BU87: Si | BV87: Entel|Tigo | BW87: No | BX87: No | BY87: Queman|Entierran|Botan al rio, quebrada | BZ87: Si | CA87: Canal 7 | CB87: Si | CC87: Punata y Tarata | CD87: Si | CE87: No | CF87: 2471dff7f2ffbbce2cc1cf3ca6a6615f
A88: 89sw-qx63-anax | B88: Bolivia - Cochabamba - Arbieto - D 3 Arpita - Jama Chuma | C88: BOI Tiraque1 | D88: 3222481469 | E88: 13-06-2021 20:45:06 UTC | F88: Daniel Arellano | G88: 00:16:48 | H88: 6 | I88: Bolivia | J88: Cochabamba | L88: Arbieto | M88: 3 | N88: Thajra | O88: -17.534927186707147 | P88: -66.11758583122992 | Q88: 2739.8770401589572 | R88: https://waterforpeople.s3.amazonaws.com/images/8190b40b-b5ce-4319-88bf-28cc90ac3b0a.jpg | S88: 3 | T88: Jama Chuma, Thajra y Kaluyo | U88: Concentrada | V88: Gobierno Nacional|Municipio|Comité de Agua | W88: 42 | X88: 42 | Y88: 42 | Z88: 0 | AA88: 126 | AB88: Si | AC88: Sistema por bombeo y gravedad | AE88: Si | AH88: 2000 | AI88: Si | AL88: No | AO88: Si | AP88: Si | AQ88: 0 | AR88: No | AT88: Si | AU88: 0 | AV88: Si | AW88: 1.08 | AX88: No | BE88: 2 | BF88: 10 | BG88: 24 | BH88: No | BM88: Si | BN88: Bueno | BO88: No | BT88: Si | BU88: Si | BV88: Entel|Tigo | BW88: No | BX88: Si | BZ88: Si | CA88: Canal 7 | CB88: Si | CC88: Redio panamericana | CD88: No | CE88: No | CF88: af6abe33829265383ef445edc365c28
A89: waqy-ygks-bpr5 | B89: Bolivia - Cochabamba - Arbieto - D 3 Arpita - Villa Cabot | C89: BOI NOE | D89: 3252780167 | E89: 16-06-2021 15:23:35 UTC | F89: Noe | G89: 00:10:32 | H89: 6 | I89: Bolivia | J89: Cochabamba | L89: Arbieto | M89: 3 | N89: Villa Cabot | O89: -17.555812625214458 | P89: -66.08851868659258 | Q89: 2777.0 | R89: https://waterforpeople.s3.amazonaws.com/images/e53cf243-8f0c-454c-8f2f-4a7ec4bb6ed9.jpg | S89: 1 | T89: Villa Cabot | U89: Concentrada | V89: Municipio|Comité de Agua|Agua Para el Pueblo | W89: 112 | X89: 90 | Y89: 90 | Z89: 0 | AA89: 270 | AB89: Si | AC89: Sistema por bombeo y gravedad | AE89: Si | AH89: 2018 | AI89: Si | AL89: Si | AM89: 1 | AN89: 1 | AO89: Si | AP89: Si | AQ89: 0 | AR89: No | AT89: Si | AU89: 0 | AV89: Si | AW89: 0.51 | AX89: No | BE89: 2 | BF89: 10 | BG89: 24 | BH89: No | BM89: Si | BN89: Bueno | BO89: No | BT89: Si | BU89: Si | BV89: Entel|Tigo | BW89: No | BX89: No | BY89: Queman|Entierran|Botan al rio, quebrada | BZ89: Si | CA89: Canal 7 | CB89: Si | CC89: Tarata | CD89: Si | CE89: Si | CF89: abc6976d1cda65b451d55d482cff654c
A90: h52w-2gqj-jw0v | B90: Bolivia - Cochabamba - Arbieto - D 4 Llave Mayu - 20 De Octubre | C90: BOI NOE | D90: 3254380130 | E90: 16-06-2021 19:13:28 UTC | F90: Noe | G90: 00:27:36 | H90: 6 | I90: Bolivia | J90: Cochabamba | L90: Arbieto | M90: 4 | N90: 15 de Enero | O90: -17.485925406217575 | P90: -66.11168157309294 | Q90: 2749.0 | R90: https://waterforpeople.s3.amazonaws.com/images/1a9e5125-de1c-4955-b546-ecc8d78fcc81.jpg | S90: 1 | T90: 15 de Enero | U90: Concentrada | V90: Municipio|Comité de Agua | W90: 335 | X90: 100 | Y90: 0 | Z90: 100 | AB90: Si | AC90: Sistema por gravedad abastecido por cisterna | AF90: Turril abastecidos por cisterna | AH90: 2014 | AI90: No | AJ90: Sistema/Punto de agua no funciona | BJ90: 5 | BK90: 200 | BL90: 1 | BM90: No | BN90: No Funciona | BO90: Si | BP90: No funciona el SAP y la Comunidad se provee de Cisterna, se separaron de 20 de Octubre | BT90: Si | BU90: Si | BV90: Entel|Tigo|Viva | BW90: No | BX90: No | BY90: Queman|Entierran|Botan al rio, quebrada | BZ90: Si | CA90: Nacionales | CB90: Si | CC90: Locales | CD90: Si | CE90: Si | CF90: 6371f298388eda4b6924347af3547
A91: wksk-fvn8-f808 | B91: Bolivia - Cochabamba - Arbieto - D 4 Llave Mayu - 20 De Mayo | C91: BOI Tiraque1 | D91: 3224541006 | E91: 11-06-2021 23:24:53 UTC | F91: Daniel Arellano | G91: 00:13:55 | H91: 6 | I91: Bolivia | J91: Cochabamba | L91: Arbieto | M91: 4 | N91: 20 De Octubre | O91: -17.49263264 | P91: -66.11958488 | Q91: 2939 | R91: https://waterforpeople.s3.amazonaws.com/images/58d7150b-6376-46ce-a1a0-28507b64d507.jpg | S91: 1 | T91: 20 De Octubre | U91: Concentrada | V91: Comité de Agua | W91: 1100 | X91: 600 | Y91: 0 | Z91: 600 | AB91: Si | AC91: Sistema por gravedad abastecido por cisterna | AF91: Turril abastecidos por cisterna | AH91: 2014 | AI91: No | AJ91: Sistema/Punto de agua no funciona | BF91: =IF(BE91="","",(20/BE91)) ->  | BJ91: 5 | BK91: 200 | BL91: 1 | BM91: No | BN91: No Funciona | BO91: Si | BP91: No funciona el SAP y la Comunidad se provee de Cisterna | BT91: Si | BU91: Si | BV91: Entel | BW91: No | BX91: No | BY91: Queman | BZ91: Si | CA91: Bolivision, ATB, canal 7 | CB91: Si | CC91: Radio panamericana | CD91: Si | CE91: Si | CF91: 8d3eb5c261d4cec0822573f93d7e4a91
A92: uxew-77e7-aexk | B92: Bolivia - Cochabamba - Arbieto - D 4 Llave Mayu - 20 De Mayo | C92: BOI NOE | D92: 3230980140 | E92: 16-06-2021 18:32:12 UTC | F92: Noe | G92: 00:12:17 | H92: 6 | I92: Bolivia | J92: Cochabamba | L92: Arbieto | M92: 4 | N92: 3 de Noviembre | O92: -17.417470780201256 | P92: -66.1522925645113 | Q92: 2626.0 | R92: https://waterforpeople.s3.amazonaws.com/images/acae8939-c41a-4068-90a6-da9bdf3e6fb6.jpg | S92: 1 | T92: 3 de Noviembre | U92: Concentrada | V92: Comité de Agua | W92: 110 | X92: 45 | Y92: 45 | Z92: 0 | AA92: 135 | AB92: Si | AC92: Sistema por gravedad abastecido por cisterna | AE92: No | AH92: 2019 | AI92: No | AJ92: Sistema/Punto de agua no funciona | BG92: 1 | BM92: No | BN92: Malo | BO92: Si | BP92: Tienen un tanque de almacenamiento que se abastece de cisterna y distribuye a las familias con mangueras, se requiere fuente de agua y red de distribución | BT92: Si | BU92: Si | BV92: Entel|Tigo | BW92: No | BX92: No | BY92: Queman|Entierran|Botan al rio, quebrada | BZ92: Si | CA92: Nacionales | CB92: Si | CC92: Cbba | CD92: Si | CE92: Si | CF92: 60c2b57b33a6669574697014ea8b9ff
A93: pw7c-3kw1-4j4b | B93: Bolivia - Cochabamba - Arbieto - D 5 Angostura - Las Lomas | C93: BOI Tiraque1 | D93: 3224541988 | E93: 13-06-2021 22:20:38 UTC | F93: Daniel Arellano | G93: 00:12:08 | H93: 6 | I93: Bolivia | J93: Cochabamba | L93: Arbieto | M93: 4 | N93: Las Lomas | O93: -17.50158444627765 | P93: -66.09048959754979 | Q93: 2763.5853179208934 | R93: https://waterforpeople.s3.amazonaws.com/images/73e2fcb8-3039-4318-a840-c41428ab1e7b.jpg | S93: 1 | T93: Las Lomas | U93: Concentrada | V93: Municipio|Comité de Agua|Agua Para el Pueblo | W93: 100 | X93: 31 | Y93: 31 | Z93: 0 | AA93: 93 | AB93: Si | AC93: Sistema por gravedad abastecido por cisterna | AH93: 2017 | AI93: Si | AL93: Si | AM93: 2 | AN93: 2 | BE93: 2.34 | BF93: 8.547008547 | BG93: 24 | BH93: No | BM93: Si | BN93: Malo | BO93: Si | BP93: Fuga de agua en la red debido a la topografía de la zona | BT93: Si | BU93: Si | BV93: Entel|Tigo | BW93: Si | BX93: No | BY93: Queman|Entierran | BZ93: Si | CA93: Unitel | CB93: Si | CC93: Centro | CD93: No | CE93: No | CF93: c93af49a26e0b9f3ca73f152c96f67
A94: bvxg-xmd9-ht9k | B94: Bolivia - Cochabamba - Arbieto - D 4 Llave Mayu - 20 De Mayo | C94: BOI NOE | D94: 3220900084 | E94: 16-06-2021 18:22:49 UTC | F94: Noe | G94: 00:11:40 | H94: 6 | I94: Bolivia | J94: Cochabamba | L94: Arbieto | M94: 4 | N94: Libertador | O94: -17.489139530807734 | P94: -66.1103626806289 | Q94: 2786.0 | R94: https://waterforpeople.s3.amazonaws.com/images/6c329362-6461-49bc-9f4b-c0ada780c850.jpg | S94: 1 | T94: Libertador | U94: Concentrada | V94: Municipio | W94: 146 | X94: 45 | Y94: 0 | Z94: 45 | AB94: No | AF94: Turril abastecidos por cisterna | BJ94: 2 | BK94: 200 | BL94: 2 | BQ94: No | BS94: Gestionar y buscar financiamiento | BT94: Si | BU94: Si | BV94: Entel|Tigo | BW94: No | BX94: No | BY94: Queman|Entierran|Botan al rio, quebrada | BZ94: Si | CA94: Nacionales | CB94: Si | CC94: Nacionales | CD94: No | CE94: No | CF94: 159b68bb77743965ce33d7c370ed3d
A95: kq9u-ypcv-pkrc | B95: Bolivia - Cochabamba - Arbieto - D 4 Llave Mayu - 20 De Mayo | C95: BOI NOE | D95: 3238840191 | E95: 16-06-2021 18:59:43 UTC | F95: Noe | G95: 00:13:04 | H95: 6 | I95: Bolivia | J95: Cochabamba | L95: Arbieto | M95: 4 | N95: Llave Mayu Central | O95: -17.48471459839493 | P95: -66.09516318887472 | Q95: 2618.0 | R95: https://waterforpeople.s3.amazonaws.com/images/d7b110b6-4988-4231-aa91-64ad271e5803.jpg | S95: 1 | T95: Llave Mayu Central | U95: Concentrada | V95: Gobierno Nacional|Comité de Agua | W95: 250 | X95: 250 | Y95: 150 | Z95: 100 | AA95: 450 | AB95: Si | AC95: Sistema por bombeo y gravedad | AE95: No | AH95: 2020 | AI95: No | AK95: No tiene red de distribución | AL95: No | AX95: No | BE95: 2.5 | BF95: 8 | BG95: 12 | BH95: No | BM95: No | BN95: Malo | BO95: Si | BP95: Tanque gestionado UGR, pozo perforado por las familias a credito, se requiere red de distribución y micromedición | BT95: Si | BU95: Si | BV95: Entel|Tigo | BW95: No | BX95: No | BY95: Queman|Entierran|Botan al rio, quebrada | BZ95: Si | CA95: Nacionales | CB95: Si | CC95: Locales | CD95: Si | CE95: Si | CF95: f87e11101a4648a74b312719ba6181d1
A96: 4c12-qxsy-u4qf | B96: Bolivia - Cochabamba - Arbieto - D 4 Llave Mayu - San Salvador | C96: BOI NOE | D96: 3232690107 | E96: 16-06-2021 17:27:25 UTC | F96: Noe | G96: 00:38:48 | H96: 6 | I96: Bolivia | J96: Cochabamba | L96: Arbieto | M96: 4 | N96: Llave Mayu II | O96: -17.497353586368263 | P96: -66.12228912301362 | Q96: 2995.0 | R96: https://waterforpeople.s3.amazonaws.com/images/cf03ac4a-1b16-47af-bedb-2db698e820b9.jpg | S96: 1 | T96: Llave Mayu II | U96: Concentrada | V96: Municipio | W96: 50 | X96: 15 | Y96: 0 | Z96: 15 | AB96: No | AF96: Turril abastecidos por cisterna | BJ96: 3 | BK96: 200 | BL96: 2 | BQ96: No | BS96: Gestionar proyecto y buscar financiamiento | BT96: Si | BU96: Si | BV96: Entel|Tigo | BW96: No | BX96: No | BY96: Queman|Entierran|Botan al rio, quebrada | BZ96: Si | CA96: Locales y nacionales | CB96: Si | CC96: Locales y Nacionales | CD96: No | CE96: Si | CF96: 371941c1e05e71cbd9c2a65de1f8dce
A97: bjm0-j3ku-te0m | B97: Bolivia - Cochabamba - Arbieto - D 4 Llave Mayu - Primero De Abril | C97: BOI NOE | D97: 3222510206 | E97: 16-06-2021 20:17:41 UTC | F97: Noe | G97: 00:08:22 | H97: 6 | I97: Bolivia | J97: Cochabamba | L97: Arbieto | M97: 4 | N97: Primero De Abril | O97: -17.480231621302664 | P97: -66.0927916970104 | Q97: 2877.0 | R97: https://waterforpeople.s3.amazonaws.com/images/62911d5a-c1f6-46e9-9f1e-0392923e17a0.jpg | S97: 1 | T97: Primero De Abril | U97: Concentrada | V97: Municipio|Comité de Agua | W97: 45 | X97: 31 | Y97: 0 | Z97: 31 | AB97: Si | AC97: Sistema por gravedad abastecido por cisterna | AE97: No | AH97: 2020 | AI97: No | AJ97: Sistema/Punto de agua no funciona | AL97: No | AX97: No | BG97: 0 | BH97: No | BM97: No | BN97: No Funciona | BO97: Si | BP97: Falta fuente de agua | BT97: Si | BU97: Si | BV97: Entel|Tigo | BW97: No | BX97: No | BY97: Queman|Entierran|Botan al rio, quebrada | BZ97: Si | CA97: Nacionales | CB97: Si | CC97: Locales | CD97: Si | CE97: Si | CF97: 0da97d7e8a0992ea3da8ddb574a897
A98: bkvk-av2e-wa9s | B98: Bolivia - Cochabamba - Arbieto - D 4 Llave Mayu - Puente Capriles | C98: BOI Tiraque1 | D98: 3250930117 | E98: 18-06-2021 17:00:29 UTC | F98: Daniel Arellano | G98: 00:20:28 | H98: 6 | I98: Bolivia | J98: Cochabamba | L98: Arbieto | M98: 4 | N98: Puente Capriles | O98: -17.48871109255888 | P98: -66.10416614614905 | Q98: 2727.9149095518515 | R98: https://waterforpeople.s3.amazonaws.com/images/0cbcc5d6-a34b-442e-8d78-b082410024e6.jpg | S98: 1 | T98: Puente Capriles | U98: Concentrada | V98: Municipio|Otra ONG | W98: 100 | X98: 70 | Y98: 0 | Z98: 70 | AB98: Si | AC98: Sistema por bombeo y gravedad | AE98: No | AH98: 2021 | AI98: No | AK98: Esta en proceso de construcción, ya usan el pozo | AL98: No | AX98: No | BE98: 2.5 | BF98: 8 | BG98: 24 | BH98: No | BM98: No | BN98: No Funciona | BO98: Si | BP98: SAP en proceso de construcción, la comunidad ya habilitó el pozo y distribuyen de forma temporal con mangueras | BT98: Si | BU98: Si | BV98: Entel | BW98: Si | BX98: No | BY98: Queman|Entierran | BZ98: Si | CA98: Bilivision | CB98: Si | CC98: Radio centro, panamericana. | CD98: No | CE98: Si | CF98: 29e544c82a2a99b57c2ae5bcaaeb31b4
A99: 42b7-dbsn-tsd3 | B99: Bolivia - Cochabamba - Arbieto - D 4 Llave Mayu - Puerta Del Sol | C99: BOI NOE | D99: 3242770165 | E99: 16-06-2021 15:42:04 UTC | F99: Noe | G99: 00:07:15 | H99: 6 | I99: Bolivia | J99: Cochabamba | L99: Arbieto | M99: 4 | N99: Puerta Del Sol | O99: -17.48431243468076 | P99: -66.1140317749232 | Q99: 2851.0 | R99: https://waterforpeople.s3.amazonaws.com/images/68b94fbc-ec63-4cfb-8fbe-391070b3482c.jpg | S99: 1 | T99: Puerta Del Sol | U99: Concentrada | V99: Comité de Agua | W99: 103 | X99: 64 | Y99: 64 | Z99: 0 | AA99: 192 | AB99: Si | AC99: Sistema por gravedad abastecido por cisterna | AE99: No | AH99: 2013 | AI99: Si | AL99: Si | AM99: 3 | AN99: 2 | AX99: No | BE99: 2 | BF99: 10 | BG99: 12 | BH99: No | BM99: No | BN99: Malo | BO99: Si | BP99: Filtraciones y fisuras en el tanque de almacenamiento | BT99: Si | BU99: Si | BV99: Entel|Tigo | BW99: No | BX99: No | BY99: Queman|Entierran|Botan al rio, quebrada | BZ99: Si | CA99: Nacional | CB99: Si | CC99: Locales | CD99: Si | CE99: Si | CF99: dcb36eaeb71ab25a7627e2b5d171df8e
A100: 3616-n0nf-5q7t | B100: Bolivia - Cochabamba - Arbieto - D 4 Llave Mayu - 20 De Mayo | C100: BOI NOE | D100: 3254380113 | E100: 16-06-2021 18:25:30 UTC | F100: Noe | G100: 00:21:41 | H100: 6 | I100: Bolivia | J100: Cochabamba | L100: Arbieto | M100: 4 | N100: San Francisco | O100: -17.49010659288615 | P100: -66.10805153846741 | Q100: 2747.0 | R100: https://waterforpeople.s3.amazonaws.com/images/a116903c-b2b4-4549-88b7-73e8c66fc23b.jpg | S100: 1 | T100: San Francisco | U100: Concentrada | V100: Municipio | W100: 220 | X100: 80 | Y100: 0 | Z100: 80 | AB100: No | AF100: Turril abastecidos por cisterna | BJ100: 3 | BK100: 200 | BL100: 3 | BQ100: No | BS100: Gestionar y buscar financiamiento | BT100: Si | BU100: Si | BV100: Entel|Tigo | BW100: Si | BX100: No | BY100: Queman|Entierran|Botan al rio, quebrada | BZ100: Si | CA100: Nacionales | CB100: Si | CC100: Nacionales | CD100: No | CE100: No | CF100: 09112bba9cbc7b086c772597787c4d4
A101: 852q-1g22-y1y6 | B101: Bolivia - Cochabamba - Arbieto - D 4 Llave Mayu - San Salvador | C101: BOI NOE | D101: 3234970176 | E101: 16-06-2021 15:52:24 UTC | F101: Noe | G101: 00:06:06 | H101: 6 | I101: Bolivia | J101: Cochabamba | L101: Arbieto | M101: 4 | N101: San Salvador | O101: -17.417530207894742 | P101: -66.1522925645113 | Q101: 2568.0 | R101: https://waterforpeople.s3.amazonaws.com/images/49ddfa65-a840-4141-a6c6-45955656723a.jpg | S101: 1 | T101: San Salvador | U101: Concentrada | V101: Iglesia | W101: 705 | X101: 410 | Y101: 0 | Z101: 410 | AB101: No | AF101: Turril abastecidos por cisterna | BJ101: 3 | BK101: 200 | BL101: 2 | BQ101: Si | BR101: Tenemos 2 tanques de almacenamiento construidos por la Iglesia, se requiere fuente de agua y red de distribución | BS101: Gestionar y buscar financiemiento para implementar red distribución | BT101: Si | BU101: Si | BV101: Entel|Tigo | BW101: No | BX101: No | BY101: Queman|Entierran|Botan al rio, quebrada | BZ101: Si | CA101: Nacionales | CB101: Si | CC101: Locales | CD101: Si | CE101: Si | CF101: 59ebff32621ae1b95b2940d3af8db160
A102: 2yht-crf2-nepk | B102: Bolivia - Cochabamba - Arbieto - D 4 Llave Mayu - Santa Rosa De Lima | C102: BOI NOE | D102: 3242790168 | E102: 16-06-2021 17:30:24 UTC | F102: Noe | G102: 00:09:29 | H102: 6 | I102: Bolivia | J102: Cochabamba | L102: Arbieto | M102: 4 | N102: Santa Rosa De Lima | O102: -17.496324037201703 | P102: -66.1153098475188 | Q102: 2944.0 | R102: https://waterforpeople.s3.amazonaws.com/images/a9c3e1b1-cd60-4cf7-a487-13eb3ecf4c83.jpg | S102: 1 | T102: Santa Rosa De Lima | U102: Concentrada | V102: Comité de Agua | W102: 1100 | X102: 800 | Y102: 200 | Z102: 600 | AA102: 600 | AB102: Si | AC102: Sistema por bombeo y gravedad | AE102: No | AH102: 2019 | AI102: No | AJ102: Sistema/Punto de agua no funciona | AL102: Si | AM102: 10 | AN102: 10 | AX102: No | BG102: 0 | BH102: No | BM102: No | BN102: No funciona, bajo caudal del pozo | BO102: Si | BP102: No hay suficiente agua en el pozo, por tal situación esta paralizado el SAP. La comunidad actualmente se provee de cisterna | BT102: Si | BU102: Si | BV102: Entel|Tigo | BW102: No | BX102: No | BY102: Queman|Entierran|Botan al rio, quebrada | BZ102: Si | CA102: Nacionales | CB102: Si | CC102: Locales | CD102: Si | CE102: Si | CF102: b59e75c3e81dc99b3176b25397cec1c2
A103: m7r2-vxs3-b9n9 | B103: Bolivia - Cochabamba - Arbieto - D 4 Llave Mayu - Uspa - Uspa | C103: BOI NOE | D103: 3250900237 | E103: 16-06-2021 18:54:07 UTC | F103: Noe | G103: 00:06:28 | H103: 6 | I103: Bolivia | J103: Cochabamba | L103: Arbieto | M103: 4 | N103: Uspa - Uspa | O103: -17.481377008371055 | P103: -66.11183244735003 | Q103: 2629.0 | R103: https://waterforpeople.s3.amazonaws.com/images/2c8302a9-2f29-4adf-963c-4fc63178c46b.jpg | S103: 1 | T103: Uspa - Uspa | U103: Concentrada | V103: Municipio|Comité de Agua | W103: 23 | X103: 23 | Y103: 23 | Z103: 0 | AA103: 69 | AB103: Si | AC103: Sistema por bombeo y gravedad | AE103: Si | AH103: 2014 | AI103: Si | AL103: No | AX103: No | BE103: 0.5 | BF103: 40 | BG103: 24 | BH103: No | BM103: Si | BN103: Bueno | BO103: Si | BP103: El agua tiene un color amarillento y necesitan tratamiento del agua | BT103: Si | BU103: Si | BV103: Entel|Tigo|Viva | BW103: No | BX103: No | BY103: Queman|Entierran|Botan al rio, quebrada | BZ103: Si | CA103: Nacionales | CB103: Si | CC103: Locales | CD103: Si | CE103: Si | CF103: 8356da555851e9d164a85e8bb96dda
A104: 7j9m-b2hc-k41v | B104: Bolivia - Cochabamba - Arbieto - D 4 Llave Mayu - Villa Montes | C104: BOI NOE | D104: 3240630172 | E104: 16-06-2021 15:35:12 UTC | F104: Noe | G104: 00:07:18 | H104: 6 | I104: Bolivia | J104: Cochabamba | L104: Arbieto | M104: 4 | N104: Villa Montes | O104: -17.48658694792539 | P104: -66.10809914767742 | Q104: 2751.0 | R104: https://waterforpeople.s3.amazonaws.com/images/d25aaf63-139f-43ff-ac67-88e87b3fb52d.jpg | S104: 1 | T104: Villa Montes | U104: Concentrada | V104: Municipio|Comité de Agua|Otra ONG | W104: 139 | X104: 131 | Y104: 126 | Z104: 5 | AA104: 378 | AB104: Si | AC104: Sistema por bombeo y gravedad | AE104: Si | AH104: 2015 | AI104: Si | AL104: No | AO104: Si | AP104: Si | AQ104: 0 | AR104: No | AT104: Si | AU104: 0 | AV104: Si | AW104: 11.3 | AX104: No | BE104: 1.5 | BF104: 13.33333333 | BG104: 24 | BH104: No | BM104: Si | BN104: Bueno | BO104: No | BT104: Si | BU104: Si | BV104: Entel|Tigo | BW104: Si | BX104: No | BY104: Queman|Entierran|Botan al rio, quebrada | BZ104: Si | CA104: Nacionales | CB104: Si | CC104: Locales | CD104: No | CE104: No | CF104: 0fb6c3ad5d0732c8fdc8e5e1f453e2
A105: qgj2-s76m-wp81 | B105: Bolivia - Cochabamba - Arbieto - D 4 Llave Mayu - Yuraj Jallpa | C105: BOI NOE | D105: 3232670149 | E105: 16-06-2021 15:46:41 UTC | F105: Noe | G105: 00:06:02 | H105: 6 | I105: Bolivia | J105: Cochabamba | L105: Arbieto | M105: 4 | N105: Yuraj Jallpa | O105: -17.417407748289406 | P105: -66.15228468552232 | Q105: 2627.0 | R105: https://waterforpeople.s3.amazonaws.com/images/6231d127-7bef-4ec0-ae13-59c2ad10ac75.jpg | S105: 1 | T105: Yuraj Jallpa | U105: Concentrada | V105: Municipio|Comité de Agua|Otra ONG | W105: 103 | X105: 55 | Y105: 45 | Z105: 10 | AA105: 135 | AB105: Si | AC105: Sistema por gravedad abastecido por cisterna | AE105: Si | AH105: 2015 | AI105: Si | AK105: Cargamos con cisterna | AL105: Si | AM105: 3 | AN105: 2 | AO105: Si | AP105: Si | AQ105: 0 | AR105: No | AT105: Si | AU105: 0 | AV105: Si | AW105: 2.57 | AX105: No | BE105: 1.5 | BF105: 13.33333333 | BG105: 12 | BH105: No | BM105: No | BN105: Bueno | BO105: Si | BP105: Se requiere FI para fortalecer las capacidades del CAPYS | BT105: Si | BU105: Si | BV105: Entel|Tigo | BW105: No | BX105: No | BY105: Queman|Entierran|Botan al rio, quebrada | BZ105: Si | CA105: Nacionales | CB105: Si | CC105: Locales | CD105: Si | CE105: Si | CF105: da16bf60fe8cd5e96bbd421dd8a495d1
A106: 4sv7-xx17-ve3k | B106: Bolivia - Cochabamba - Arbieto - D 5 Angostura - Angostura | C106: BOI Tiraque1 | D106: 3262470114 | E106: 13-08-2021 13:52:54 UTC | F106: Daniel Arellano | G106: 00:26:15 | H106: 6 | I106: Bolivia | J106: Cochabamba | L106: Arbieto | M106: 5 | N106: Angostura | O106: -17.3935274 | P106: -66.1688459 | Q106: 0.0 | R106: https://waterforpeople.s3.amazonaws.com/images/50fa70f4-776c-43a3-aa71-1478e1c9660f.jpg | S106: 1 | T106: Angostura | U106: Concentrada | V106: Municipio|Otra ONG | W106: 600 | X106: 500 | Y106: 500 | Z106: 0 | AA106: 1500 | AB106: Si | AC106: Sistema por bombeo y gravedad | AE106: Si | AH106: 2002 | AI106: Si | AL106: No | AX106: No | BE106: 0.5 | BF106: 40 | BG106: 24 | BH106: No | BM106: Si | BN106: Bueno | BO106: No | BT106: Si | BU106: Si | BV106: Entel|Tigo | BW106: Si | BX106: No | BY106: Queman|Entierran | BZ106: Si | CA106: Canal 7, ATB | CB106: Si | CC106: Radio municipal, FM | CD106: No | CE106: Si | CF106: 79aa45be8d3a489f6431d7342acaf
A107: 2jyj-ge8u-qvac | B107: Bolivia - Cochabamba - Arbieto - D 5 Angostura - Canelas | C107: BOI Tiraque1 | D107: 3238771634 | E107: 13-06-2021 21:19:06 UTC | F107: Daniel Arellano | G107: 00:07:23 | H107: 6 | I107: Bolivia | J107: Cochabamba | L107: Arbieto | M107: 5 | N107: Canelas | O107: -17.490275077145906 | P107: -66.07860589781527 | Q107: 2827.7178578935564 | R107: https://waterforpeople.s3.amazonaws.com/images/a823717d-6dfc-4a3b-8233-4361519759e2.jpg | S107: 1 | T107: Canelas | U107: Semi dispersa | V107: Municipio | W107: 170 | X107: 100 | Y107: 85 | Z107: 15 | AA107: 255 | AB107: Si | AC107: Sistema por gravedad | AE107: Si | AH107: 2013 | AI107: Si | AL107: No | AX107: No | BE107: 0.3 | BF107: 66.66666667 | BG107: 24 | BH107: No | BM107: Si | BN107: Bueno | BO107: Si | BP107: Hay familias alejadas que no estan conectadas al SAP | BT107: Si | BU107: Si | BV107: Entel|Tigo | BW107: No | BX107: No | BY107: Queman|Entierran | BZ107: Si | CA107: Atb, Bolivision | CB107: Si | CC107: Panamericana | CD107: No | CE107: No | CF107: a03915bbf9915d7722acec1e2cb1
A108: 2ktb-uvdb-12au | B108: Bolivia - Cochabamba - Arbieto - D 5 Angostura - Olimpio | C108: BOI Tiraque1 | D108: 3234851499 | E108: 13-06-2021 21:21:47 UTC | F108: Daniel Arellano | G108: 00:06:42 | H108: 6 | I108: Bolivia | J108: Cochabamba | L108: Arbieto | M108: 5 | N108: Olimpio | O108: -17.501856337042923 | P108: -66.08302321524543 | Q108: 0.0 | R108: https://waterforpeople.s3.amazonaws.com/images/9a6f9f82-0afa-4a1a-bbed-7db02d430cea.jpg | S108: 1 | T108: Olimpio | U108: Concentrada | V108: Municipio|Comité de Agua|Agua Para el Pueblo|Otra ONG | W108: 280 | X108: 50 | Y108: 0 | Z108: 50 | AB108: No | AF108: Turril abastecidos por cisterna | BJ108: 2 | BK108: 200 | BL108: 2 | BQ108: Si | BR108: En proceso | BS108: Gestionar | BT108: Si | BU108: Si | BV108: Entel | BW108: No | BX108: No | BY108: Queman|Botan al rio, quebrada | BZ108: Si | CA108: Bolivia Tv Unitel | CB108: Si | CC108: Cercado Cbba | CD108: No | CE108: No | CF108: 557865121d3d29cc8bb1a159d77a517
A109: 9k6m-4nhj-qg07 | B109: Bolivia - Cochabamba - Arbieto - D 5 Angostura - Thoco Loma | C109: BOI NOE | D109: 3249660064 | E109: 10-08-2021 14:26:38 UTC | F109: Noe | G109: 00:08:49 | H109: 6 | I109: Bolivia | J109: Cochabamba | L109: Arbieto | M109: 5 | N109: Thoco Loma | O109: -17.509997519664466 | P109: -66.08516693115234 | Q109: 2763.0 | R109: https://waterforpeople.s3.amazonaws.com/images/0c6477bd-bf28-4078-be11-ab79ce5e3ef4.jpg | S109: 1 | T109: Thoco Loma | U109: Concentrada | V109: Gobierno Nacional|Municipio | W109: 105 | X109: 80 | Y109: 80 | Z109: 8 | AA109: 240 | AB109: Si | AC109: Sistema por gravedad | AE109: No | AH109: 1995 | AI109: Si | AL109: Si | AM109: 5 | AN109: 2 | AX109: No | BE109: 0.22 | BF109: 90.90909091 | BG109: 8 | BH109: No | BM109: No | BN109: Malo | BO109: Si | BP109: Bajo caudal de agua de la vertiente y escaces de agua | BT109: Si | BU109: Si | BV109: Entel | BW109: No | BX109: No | BY109: Queman|Entierran | BZ109: Si | CA109: Tv Bolivia | CB109: Si | CC109: Locales | CD109: No | CE109: Si | CF109: 7b724f7c8de558a8bf66e3df7474f7e1
A110: wksk-fvn8-f808 | B110: Bolivia - Cochabamba - Arbieto - D 4 Llave Mayu - 20 De Mayo | C110: BOI Tiraque1 | D110: 3224541006 | E110: 11-06-2021 23:24:53 UTC | F110: Daniel Arellano | G110: 00:13:55 | H110: 6 | I110: Bolivia | J110: Cochabamba | L110: Arbieto | M110: 6 | N110: 20 De Mayo | O110: -17.48184354014172 | P110: -66.09458914029358 | Q110: 2833.48779296875 | R110: https://waterforpeople.s3.amazonaws.com/images/6cc43a19-c31e-4f8d-a3b2-739a9f4a4097.jpg | S110: 1 | T110: 20 De Mayo | U110: Concentrada | V110: Comité de Agua | W110: 74 | X110: 35 | Y110: 0 | Z110: 35 | AB110: Si | AC110: Sistema por gravedad | AF110: Turril abastecidos por cisterna | AH110: 2010 | AI110: No | AJ110: El SAP no funciona, no tiene fuente de agua | BJ110: 5 | BK110: 200 | BL110: 200 | BM110: No | BN110: No Funciona | BQ110: No | BS110: Hacer perforar pozo de agua, cambiar la red de distribución. Tiene un tanque de agua superficial | BT110: Si | BU110: Si | BV110: Entel | BW110: No | BX110: No | BY110: Queman | BZ110: Si | CA110: Bolivision, ATB, canal 7 | CB110: Si | CC110: Radio panamericana | CD110: Si | CE110: No | CF110: 8d3eb5c261d4cec0822573f93d7e4a91
A111: 1w5s-tum9-ksyw | B111: Bolivia - Cochabamba - Arbieto - D 4 Llave Mayu - Algarrobos | C111: BOI Tiraque1 | D111: 3234850722 | E111: 11-06-2021 22:55:24 UTC | F111: Daniel Arellano | G111: 00:06:52 | H111: 6 | I111: Bolivia | J111: Cochabamba | L111: Arbieto | M111: 6 | N111: Algarrobos | O111: -17.476764435162636 | P111: -66.09670504659623 | Q111: 0.0 | R111: https://waterforpeople.s3.amazonaws.com/images/5e77a673-f8c7-4149-a4db-1f7567a0e777.jpg | S111: 1 | T111: Algarrobos | U111: Concentrada | V111: Municipio | W111: 96 | X111: 70 | Y111: 65 | Z111: 5 | AA111: 195 | AB111: Si | AC111: Sistema por bombeo y gravedad | AE111: Si | AH111: 2015 | AI111: Si | AL111: No | AO111: Si | AP111: Si | AQ111: 0 | AR111: No | AT111: Si | AU111: 0 | AV111: Si | AW111: 2.29 | AX111: No | BE111: 1 | BF111: 20 | BG111: 24 | BH111: No | BM111: Si | BN111: Bueno | BO111: No | BT111: Si | BU111: Si | BV111: Entel|Tigo | BW111: Si | BX111: Si | BZ111: Si | CA111: ATB, Bolivision | CB111: Si | CC111: Radio centro | CD111: No | CE111: No | CF111: 6145af77c7cf1ac394305befb6b1c9c6
A112: 7uej-c1r5-6p2d | B112: Bolivia - Cochabamba - Arbieto - D 4 Llave Mayu - Alto Litoral | C112: BOI Tiraque1 | D112: 3230900932 | E112: 12-06-2021 00:29:18 UTC | F112: Daniel Arellano | G112: 00:14:24 | H112: 6 | I112: Bolivia | J112: Cochabamba | L112: Arbieto | M112: 6 | N112: Alto Litoral | O112: -17.476544419435776 | P112: -66.09045631885844 | Q112: 2836.397053464316 | R112: https://waterforpeople.s3.amazonaws.com/images/e3f13dae-d455-43fc-b9d4-20d38a357564.jpg | S112: 1 | T112: Alto Litoral | U112: Concentrada | V112: Gobierno Nacional|Municipio | W112: 85 | X112: 80 | Y112: 80 | Z112: 0 | AA112: 240 | AB112: Si | AC112: Sistema por bombeo y gravedad | AE112: Si | AH112: 2016 | AI112: Si | AL112: No | AX112: No | BE112: 0.2 | BF112: 100 | BG112: 4 | BH112: No | BM112: No | BN112: Bueno | BO112: Si | BP112: Disminucion del caudal del pozo | BT112: Si | BU112: Si | BV112: Entel|Tigo | BW112: No | BX112: No | BY112: Queman | BZ112: Si | CA112: Bolivision | CB112: Si | CC112: FM | CD112: No | CE112: No | CF112: f9e1e4625fe9e625375957da7a74dfd
A113: 34ub-hy0h-gyx8 | B113: Bolivia - Cochabamba - Arbieto - D 4 Llave Mayu - Llave Mayu I | C113: BOI NOE | D113: 3222510133 | E113: 16-06-2021 18:52:19 UTC | F113: Noe | G113: 00:20:29 | H113: 6 | I113: Bolivia | J113: Cochabamba | L113: Arbieto | M113: 6 | N113: Alto Llave Mayu | O113: -17.462662649340928 | P113: -66.08031498268247 | Q113: 3093.0 | R113: https://waterforpeople.s3.amazonaws.com/images/2fecfb0b-c8c2-4f3e-87c5-0b74df8569ee.jpg | S113: 1 | T113: Alto Llave Mayu | U113: Concentrada | V113: Municipio | W113: 180 | X113: 10 | Y113: 0 | Z113: 10 | AB113: No | AF113: Turril abastecidos por cisterna | BJ113: 2 | BK113: 200 | BL113: 2 | BQ113: No | BS113: Gestionar y buscar financiamiento | BT113: No | BU113: Si | BV113: Entel|Tigo | BW113: No | BX113: No | BY113: Queman|Entierran|Botan al rio, quebrada | BZ113: No | CB113: Si | CC113: Causachun Coca | CD113: No | CE113: No | CF113: d2504c152db245f944cbe6e66dcec5b
A114: k86s-2y0g-2672 | B114: Bolivia - Cochabamba - Arbieto - D 4 Llave Mayu - Campos Los Andes | C114: BOI Tiraque1 | D114: 3236460914 | E114: 12-06-2021 01:56:22 UTC | F114: Daniel Arellano | G114: 00:25:21 | H114: 6 | I114: Bolivia | J114: Cochabamba | L114: Arbieto | M114: 6 | N114: Campos Los Andes | O114: -17.46944998415469 | P114: -66.0877366214596 | Q114: 2916.587826348841 | R114: https://waterforpeople.s3.amazonaws.com/images/c43b1499-f8ef-4a2e-a0c8-1e6c14537abb.jpg | S114: 1 | T114: Campos Los Andes | U114: Concentrada | V114: Municipio|Comité de Agua | W114: 94 | X114: 38 | Y114: 38 | Z114: 0 | AA114: 114 | AB114: Si | AC114: Sistema por gravedad abastecido por cisterna | AE114: No | AH114: 2019 | AI114: Si | AL114: No | AX114: No | BE114: 0.5 | BF114: 40 | BG114: 24 | BH114: No | BM114: Si | BN114: Bueno | BO114: Si | BP114: La OTB no cuenta con fuente de agua, se provicionan por carro cisterna. | BT114: Si | BU114: Si | BV114: Entel|Tigo | BW114: No | BX114: No | BY114: Queman | BZ114: Si | CA114: ATB, canal7 | CB114: Si | CC114: Panamericana, centro | CD114: No | CE114: No | CF114: a9893391a0ceebb8aec6507871e35830
A115: sr2q-11xt-bctj | B115: Bolivia - Cochabamba - Arbieto - D 4 Llave Mayu - Cristal Mayu | C115: BOI NOE | D115: 3238830233 | E115: 16-06-2021 18:07:56 UTC | F115: Noe | G115: 00:11:50 | H115: 6 | I115: Bolivia | J115: Cochabamba | L115: Arbieto | M115: 6 | N115: Cristal Mayu | O115: -17.472490053623915 | P115: -66.08091864734888 | Q115: 2860.0 | R115: https://waterforpeople.s3.amazonaws.com/images/4fd9023a-be7c-4877-998c-00e303f09849.jpg | S115: 1 | T115: Cristal Mayu | U115: Concentrada | V115: Municipio|Comité de Agua|Otra ONG | W115: 200 | X115: 170 | Y115: 150 | Z115: 20 | AA115: 450 | AB115: Si | AC115: Sistema por bombeo y gravedad | AE115: Si | AH115: 2020 | AI115: Si | AL115: Si | AM115: 3 | AN115: 2 | AX115: No | BE115: 1 | BF115: 20 | BG115: 24 | BH115: No | BM115: Si | BN115: Bueno | BO115: Si | BP115: Tengo problemas en la conexión de energia con ELFEC, ya que el tramite esta paralizado | BT115: Si | BU115: Si | BV115: Entel|Tigo | BW115: No | BX115: No | BY115: Queman|Entierran|Botan al rio, quebrada | BZ115: Si | CA115: locales | CB115: Si | CC115: Locales | CD115: No | CE115: No | CF115: 354645679e756389abfc9a012cd29d1
A116: s0sm-5m5b-5gas | B116: Bolivia - Cochabamba - Arbieto - D 4 Llave Mayu - Florida | C116: BOI Tiraque1 | D116: 3224540651 | E116: 11-06-2021 21:59:16 UTC | F116: Daniel Arellano | G116: 00:14:22 | H116: 6 | I116: Bolivia | J116: Cochabamba | L116: Arbieto | M116: 6 | N116: Florida | O116: -17.48341765792474 | P116: -66.09529538956002 | Q116: 0.0 | R116: https://waterforpeople.s3.amazonaws.com/images/ed879caf-7390-4a2c-bf77-dc66b660b7e7.jpg | S116: 1 | T116: Florida | U116: Concentrada | V116: Municipio | W116: 140 | X116: 90 | Y116: 80 | Z116: 10 | AA116: 240 | AB116: Si | AC116: Sistema por bombeo y gravedad | AE116: Si | AH116: 2016 | AI116: Si | AL116: No | AX116: No | BE116: 2 | BF116: 10 | BG116: 24 | BH116: No | BM116: No | BN116: Bueno | BO116: Si | BP116: Reventon en la red | BT116: Si | BU116: Si | BV116: Entel|Tigo | BW116: Si | BX116: No | BY116: Queman | BZ116: Si | CA116: Bolivision | CB116: Si | CC116: Centro | CD116: No | CE116: No | CF116: cb90ff49e3fabbf6f833c6fe6be8810
A117: 49rd-jy1b-8bjq | B117: Bolivia - Cochabamba - Arbieto - D 4 Llave Mayu - Fortaleza | C117: BOI NOE | D117: 3248690248 | E117: 16-06-2021 20:53:26 UTC | F117: Noe | G117: 00:15:19 | H117: 6 | I117: Bolivia | J117: Cochabamba | L117: Arbieto | M117: 6 | N117: Fortaleza | O117: -17.48709535226226 | P117: -66.09098288230598 | Q117: 2647.0 | R117: https://waterforpeople.s3.amazonaws.com/images/583d90f6-8f8f-4ca4-8606-51629ee7874e.jpg | S117: 1 | T117: Fortaleza | U117: Concentrada | V117: Municipio|Comité de Agua | W117: 120 | X117: 80 | Y117: 80 | Z117: 0 | AA117: 240 | AB117: Si | AC117: Sistema por bombeo y gravedad | AE117: Si | AH117: 2014 | AI117: Si | AL117: No | AX117: No | BE117: 1.8 | BF117: 11.11111111 | BG117: 24 | BH117: No | BM117: Si | BN117: Bueno | BO117: Si | BP117: Requieren calibrar los medidores domiciliarios | BT117: Si | BU117: Si | BV117: Entel|Tigo | BW117: No | BX117: No | BY117: Queman|Entierran|Botan al rio, quebrada | BZ117: Si | CA117: Nacionales | CB117: Si | CC117: Locales | CD117: Si | CE117: Si | CF117: cb397387df0a8b46367ce9c6b1ab0b6
A118: fdr7-wqyq-3v2g | B118: Bolivia - Cochabamba - Arbieto - D 4 Llave Mayu - Llave Mayu I | C118: BOI NOE | D118: 3228770107 | E118: 16-06-2021 18:01:00 UTC | F118: Noe | G118: 00:19:13 | H118: 6 | I118: Bolivia | J118: Cochabamba | L118: Arbieto | M118: 6 | N118: Llave Mayu | O118: -17.480257689021528 | P118: -66.0905849095434 | Q118: 2736.0 | R118: https://waterforpeople.s3.amazonaws.com/images/96decbda-8b47-4068-91b1-8e2f8dcac799.jpg | S118: 1 | T118: Llave Mayu | U118: Concentrada | V118: Municipio|Comité de Agua|Otra ONG | W118: 180 | X118: 80 | Y118: 80 | Z118: 0 | AA118: 240 | AB118: Si | AC118: Sistema por bombeo y gravedad | AE118: Si | AH118: 2020 | AI118: Si | AL118: No | AX118: No | BE118: 1 | BF118: 20 | BG118: 12 | BH118: No | BM118: No | BN118: Bueno | BO118: Si | BP118: Bajo caudal de la fuente | BT118: Si | BU118: Si | BV118: Entel|Tigo|Viva | BW118: No | BX118: No | BY118: Queman|Entierran|Botan al rio, quebrada | BZ118: Si | CA118: Nacionales | CB118: Si | CC118: Locales | CD118: No | CE118: No | CF118: 44cfd0a2ee04c25e534941e3477ec
A119: b4qe-4prn-rpjf | B119: Bolivia - Cochabamba - Arbieto - D 4 Llave Mayu - Llave Mayu I | C119: BOI NOE | D119: 3240630182 | E119: 16-06-2021 18:14:20 UTC | F119: Noe | G119: 00:08:56 | H119: 6 | I119: Bolivia | J119: Cochabamba | L119: Arbieto | M119: 6 | N119: Llave Mayu I | O119: -17.468527341261506 | P119: -66.08301672153175 | Q119: 2975.0 | R119: https://waterforpeople.s3.amazonaws.com/images/59a44b2c-a471-4ab1-a938-e45a39ef1177.jpg | S119: 1 | T119: Llave Mayu I | U119: Concentrada | V119: Municipio | W119: 200 | X119: 15 | Y119: 0 | Z119: 15 | AB119: No | AF119: Turril abastecidos por cisterna | BJ119: 2 | BK119: 200 | BL119: 2 | BQ119: No | BS119: Buscar una obra de toma y financiamiento para construcción de tanque de Almacenamiento | BT119: Si | BU119: Si | BV119: Entel|Tigo | BW119: No | BX119: No | BY119: Queman|Entierran|Botan al rio, quebrada | BZ119: Si | CA119: Cbba | CB119: Si | CC119: Cbba | CD119: No | CE119: No | CF119: 6688d95991e6173eedad51f966a857
A120: 0yg9-xynp-vu87 | B120: Bolivia - Cochabamba - Arbieto - D 4 Llave Mayu - Llave Mayu I | C120: BOI NOE | D120: 3256360111 | E120: 16-06-2021 18:18:11 UTC | F120: Noe | G120: 00:10:31 | H120: 6 | I120: Bolivia | J120: Cochabamba | L120: Arbieto_ | M120: 6 | N120: Molle Pampa Alto | O120: -17.45837870053947 | P120: -66.07835001312196 | Q120: 3145.0 | R120: https://waterforpeople.s3.amazonaws.com/images/fd5a5c9d-ce74-4fcb-98cf-41d5dcc30cbb.jpg | S120: 1 | T120: Molle Pampa Alto | U120: Concentrada | V120: Municipio | W120: 220 | X120: 6 | Y120: 0 | Z120: 6 | AB120: No | AF120: Turril abastecidos por cisterna | BJ120: 2 | BK120: 200 | BL120: 200 | BP120: No tiene Personería Jurídica | BQ120: Si | BR120: Perforación de pozo profundo en proceso | BS120: Gestionar y buscar financiamiento | BT120: No | BU120: Si | BV120: Entel | BW120: No | BX120: No | BY120: Queman|Entierran|Botan al rio, quebrada | BZ120: No | CB120: Si | CC120: Causachun Coca | CD120: No | CE120: No | CF120: 956c32b98e4b929b650f6e894cea1c
A121: bj2d-fqka-qa4e | B121: Bolivia - Cochabamba - Arbieto - D 4 Llave Mayu - Nueva Esperanza | C121: BOI Tiraque1 | D121: 3235030200 | E121: 21-06-2021 23:28:03 UTC | F121: Daniel Arellano | G121: 00:28:26 | H121: 6 | I121: Bolivia | J121: Cochabamba | L121: Arbieto | M121: 6 | N121: Nueva Esperanza | O121: -17.479479705438774 | P121: -66.09217930240374 | Q121: 2869.3162532011047 | R121: https://waterforpeople.s3.amazonaws.com/images/7e05c92b-7f45-4e0a-b385-4a027e43e666.jpg | S121: 1 | T121: Nueva Esperanza | U121: Concentrada | V121: Comité de Agua | W121: 100 | X121: 70 | Y121: 0 | Z121: 70 | AB121: Si | AC121: Sistema por gravedad abastecido por cisterna | AE121: No | AF121: Turril abastecidos por cisterna | AH121: 2019 | AI121: No | AJ121: Conflicto con Campo Los Andes | BJ121: 1 | BK121: 200 | BL121: 200 | BP121: Conflicto con Campo Los Andes | BQ121: No | BS121: Priorizar en el POA la construccion SAP | BT121: Si | BU121: Si | BV121: Entel|Tigo | BW121: No | BX121: No | BY121: Queman | BZ121: Si | CA121: Canal 7, nolivision y ATB | CB121: Si | CC121: Radio panamericana | CD121: No | CE121: No | CF121: a470cdc21222b2dbd6b73f40ab178112
A122: 8vnv-efee-wh2p | B122: Bolivia - Cochabamba - Arbieto - D 4 Llave Mayu - San Carlos | C122: BOI Tiraque1 | D122: 3234871718 | E122: 13-06-2021 15:45:02 UTC | F122: Daniel Arellano | G122: 00:22:50 | H122: 6 | I122: Bolivia | J122: Cochabamba | L122: Arbieto | M122: 6 | N122: San Carlos | O122: -17.46908310780811 | P122: -66.08783010808676 | Q122: 0.0 | R122: https://waterforpeople.s3.amazonaws.com/images/762559b1-25de-48e1-9edc-1311b9da3f04.jpg | S122: 1 | T122: San Carlos | U122: Concentrada | V122: Comité de Agua | W122: 600 | X122: 240 | Y122: 0 | Z122: 240 | AB122: Si | AC122: Sistema por bombeo y gravedad | AE122: Si | AH122: 2012 | AI122: No | BH122: No | BM122: No | BN122: No Funciona | BO122: Si | BP122: El pozo se ha secado ya no funcionana SAP. | BT122: Si | BU122: Si | BV122: Entel|Tigo | BW122: No | BX122: No | BY122: Queman | BZ122: Si | CA122: Canal 7, Bolivision | CB122: Si | CC122: Redio centro | CD122: No | CE122: No | CF122: 88597d8199bdae871815196c15439b7c
A123: pm7j-rhn0-ea8p | B123: Bolivia - Cochabamba - Arbieto - D 4 Llave Mayu - Campos Los Andes | C123: BOI Tiraque1 | D123: 3244450723 | E123: 12-06-2021 02:17:54 UTC | F123: Daniel Arellano | G123: 00:32:15 | H123: 6 | I123: Bolivia | J123: Cochabamba | L123: Arbieto_ | M123: 6 | N123: Sola Mayu | O123: -17.47483681926995 | P123: -66.08719172987286 | Q123: 2825.8711922299117 | R123: https://waterforpeople.s3.amazonaws.com/images/3766d538-3cca-4fd1-a013-07dc473ddfb6.jpg | S123: 1 | T123: Sola Mayu | U123: Concentrada | V123: Comité de Agua | W123: 120 | X123: 100 | Y123: 0 | Z123: 100 | AB123: No | AF123: Turril abastecidos por cisterna | BF123: =IF(BE123="","",(20/BE123)) ->  | BJ123: 10 | BK123: 200 | BL123: 20 | BP123: No tiene Personería Jurídica | BQ123: No | BS123: Elaboracion proyecto de perforacion de pozo de agua. | BT123: Si | BU123: Si | BV123: Entel|Tigo | BW123: No | BX123: No | BY123: Queman | BZ123: Si | CA123: Biolivision | CB123: Si | CC123: Panamericana | CD123: No | CE123: No | CF123: 17df7ff3aef64b6d54bc932d3cd0c1
A124: vf0w-6wxk-uerg | B124: Bolivia - Cochabamba - Arbieto - D 4 Llave Mayu - Villa Esperanza | C124: BOI Tiraque1 | D124: 3234850565 | E124: 11-06-2021 22:16:47 UTC | F124: Daniel Arellano | G124: 00:13:18 | H124: 6 | I124: Bolivia | J124: Cochabamba | L124: Arbieto | M124: 6 | N124: Villa Esperanza | O124: -17.479622556966742 | P124: -66.09510326093195 | Q124: 0.0 | R124: https://waterforpeople.s3.amazonaws.com/images/969e967d-5711-4cd7-841c-85ca70695ccd.jpg | S124: 1 | T124: Villa Esperanza | U124: Concentrada | V124: Municipio|Comité de Agua | W124: 130 | X124: 80 | Y124: 60 | Z124: 20 | AA124: 180 | AB124: Si | AC124: Sistema por bombeo y gravedad | AE124: Si | AH124: 2018 | AI124: No | AJ124: Bajo caudal de agua | AL124: No | AX124: No | BE124: 1.2 | BF124: 16.66666667 | BG124: 2 | BH124: No | BM124: No | BN124: Bueno | BO124: Si | BP124: El caudal a disminuido | BT124: Si | BU124: Si | BV124: Entel|Tigo | BW124: Si | BX124: No | BY124: Queman | BZ124: Si | CA124: Canal 7 | CB124: Si | CC124: Panamericana, centro. | CD124: No | CE124: Si | CF124: a6ce8bd920602025e8a4e35d6ae56
A125: nyft-euxq-13qu | B125: Bolivia - Cochabamba - Arbieto - D 4 Llave Mayu - Llave Mayu I | C125: BOI NOE | D125: 3238850125 | E125: 16-06-2021 18:06:32 UTC | F125: Noe | G125: 00:12:37 | H125: 6 | I125: Bolivia | J125: Cochabamba | L125: Arbieto | M125: 6 | N125: Villa Nueva | O125: -17.477238778956234 | P125: -66.08892562799156 | Q125: 2885.0 | R125: https://waterforpeople.s3.amazonaws.com/images/cc3523ec-8817-4088-9a07-0006221b6c24.jpg | S125: 1 | T125: Villa Nueva | U125: Concentrada | V125: Comité de Agua | W125: 200 | X125: 65 | Y125: 0 | Z125: 65 | AB125: No | AF125: Turril abastecidos por cisterna | BJ125: 3 | BK125: 200 | BL125: 3 | BQ125: Si | BR125: Perforación de Pozo y Red | BS125: Gestionar y buscar financiamiento | BT125: Si | BU125: Si | BV125: Entel|Viva | BW125: No | BX125: No | BY125: Queman|Entierran|Botan al rio, quebrada | BZ125: Si | CA125: Nacionales | CB125: Si | CC125: Locales | CD125: No | CE125: No | CF125: 5a77b92a132238fe35d7d2ee2438e5e
A126: c7bf-85sv-26vd | B126: Bolivia - Cochabamba - Arbieto - D 4 Llave Mayu - Llave Mayu I | C126: BOI NOE | D126: 3232680224 | E126: 16-06-2021 19:03:04 UTC | F126: Noe | G126: 00:21:20 | H126: 6 | I126: Bolivia | J126: Cochabamba | L126: Arbieto_ | M126: 6 | N126: Villa Porvenir | O126: -17.47099170461297 | P126: -66.08439051546156 | Q126: 2877.0 | R126: https://waterforpeople.s3.amazonaws.com/images/6780bf84-71ba-46f8-9e30-ee1e98dba1c1.jpg | S126: 1 | T126: Villa Porvenir | U126: Concentrada | V126: Municipio|Comité de Agua | W126: 200 | X126: 18 | Y126: 0 | Z126: 18 | AB126: No | AF126: Turril abastecidos por cisterna | BJ126: 2 | BK126: 200 | BL126: 2 | BP126: No tiene Personería Jurídica | BQ126: No | BS126: Gestionar y solicitar agua a la Comunidad Cristal Mayo ya que ellos tienen un pozo profundo | BT126: Si | BU126: Si | BV126: Entel|Tigo | BW126: No | BX126: No | BY126: Queman|Entierran|Botan al rio, quebrada | BZ126: No | CB126: Si | CC126: Locales | CD126: No | CE126: No | CF126: 8dcf8075b0ffd95231df37912fdba22
A127: s0yg-qd19-yud6 | B127: Bolivia - Cochabamba - Pocona - Chaquely - Chaquely | C127: BOI-GALAXIJ5-02 | D127: 3230920994 | E127: 10-06-2021 13:51:27 UTC | F127: 10-06-2021 13:51:27 UTC | G127: 00:04:37 | H127: 1 | I127: Bolivia | J127: Cochabamba | L127: Pocona | M127: Chaquely | N127: Chaquely | O127: -17.73602942 | P127: -65.40532247 | Q127: 2637.0 | R127: https://waterforpeople.s3.amazonaws.com/images/6b419bde-29e0-4f21-b28c-4c3d57035567.jpg | S127: 1 | T127: Chaquely | U127: Dispersa | V127: Municipio|Otra ONG | W127: 18 | X127: 18 | Y127: 18 | Z127: 0 | AA127: 54 | AB127: Si | AC127: Sistema por gravedad | AE127: No | AH127: 2015 | AI127: Si | AL127: No | AO127: Si - se realizaron pruebas hoy | AP127: No | AR127: Si | AS127: Presencia | AT127: No | AV127: Si | AW127: 2.2 | AX127: No | BE127: 0.3 | BF127: 66.66666667 | BG127: 24 | BH127: No | BM127: Si | BN127: Bueno | BO127: Si | BP127: Cañeria negra para conexion de grifos | BT127: Si | BU127: Si | BV127: Entel | BW127: Si | BX127: No | BY127: Botan al rio, quebrada | BZ127: No | CB127: No | CD127: No | CE127: No | CF127: 50c7d6942e22b4b531e2ef018167b34
A128: 3k9s-avbn-8wtt | B128: Bolivia - Cochabamba - Pocona - Chaquely - Huerta Kuchu | C128: Boi-100-1 | D128: 3248650243 | E128: 10-06-2021 14:54:42 UTC | F128: Llasa | G128: 00:15:56 | H128: 1 | I128: Bolivia | J128: Cochabamba | L128: Pocona | M128: Chaquely | N128: Huerta Kuchu | O128: -17.71182366 | P128: -65.42521436 | Q128: 2818.0 | R128: https://waterforpeople.s3.amazonaws.com/images/fccbef63-fd88-4769-b35a-acf40468d236.jpg | S128: 1 | T128: Huerta Kuchu | U128: Semi dispersa | V128: Municipio | W128: 65 | X128: 35 | Y128: 35 | Z128: 0 | AA128: 105 | AB128: Si | AC128: Sistema por gravedad | AE128: Si | AH128: 2015 | AI128: Si | AL128: No | AO128: Si - se realizaron pruebas hoy | AP128: No | AR128: Si | AS128: Ausencia | AT128: No | AV128: Si | AW128: 0.52 | AX128: No | BE128: 1 | BF128: 20 | BG128: 24 | BH128: No | BM128: Si | BN128: Bueno | BO128: No | BT128: Si | BU128: Si | BV128: Entel | BW128: Si | BX128: No | BY128: Queman|Botan al rio, quebrada | BZ128: Si | CA128: unitel | CB128: Si | CC128: radio totora, radio municipal pocona | CD128: No | CE128: No | CF128: 943211c6acf8f57718f0f53ef712a9ee
A129: 9t0u-7den-q494 | B129: Bolivia - Cochabamba - Pocona - Chaquely - Kanapata | C129: Boi-100-1 | D129: 3238800415 | E129: 10-06-2021 14:01:44 UTC | F129: Llasa | G129: 00:21:52 | H129: 1 | I129: Bolivia | J129: Cochabamba | L129: Pocona | M129: Chaquely | N129: Kanapata | O129: -17.74273307 | P129: -65.40209829 | Q129: 2646.0 | R129: https://waterforpeople.s3.amazonaws.com/images/c97c51df-2c25-4e59-8138-1b23d3cf6785.jpg | S129: 1 | T129: Kanapata Tanque 1 | U129: Semi dispersa | V129: Municipio | W129: 40 | X129: 35 | Y129: 35 | Z129: 0 | AA129: 105 | AB129: Si | AC129: Sistema por gravedad | AE129: No | AH129: 1995 | AI129: Si | AL129: Si | AM129: 5 | AN129: 5 | AO129: Si - se realizaron pruebas hoy | AP129: No | AR129: Si | AS129: Ausencia | AT129: No | AV129: Si | AW129: 0.97 | AX129: No | BE129: 1.3 | BF129: 15.38461538 | BG129: 24 | BH129: No | BM129: Si | BN129: Malo | BO129: Si | BP129: Cumplio su vida util | BT129: Si | BU129: Si | BV129: Entel|Tigo | BW129: Si | BX129: No | BY129: Queman|Botan al rio, quebrada | BZ129: Si | CA129: ATB, unitel | CB129: Si | CC129: radio municipal pocona, causachun coca | CD129: No | CE129: No | CF129: cd28bb15ff206bd0fa954f3870a225f4
A130: pbk9-03bn-bvyt | B130: Bolivia - Cochabamba - Pocona - Chaquely - Kanapata | C130: Boi-100-1 | D130: 3240620442 | E130: 10-06-2021 14:03:56 UTC | F130: Llasa | G130: 00:07:48 | H130: 1 | I130: Bolivia | J130: Cochabamba | L130: Pocona | M130: Chaquely | N130: Kanapata | O130: -17.74956878 | P130: -65.41628994 | Q130: 2868.0 | R130: https://waterforpeople.s3.amazonaws.com/images/cae5b34b-bc91-495f-81a2-a91765b83662.jpg | S130: 1 | T130: Kanapata Tanque 2 | U130: Semi dispersa | V130: Municipio | W130: 35 | X130: 35 | Y130: 35 | Z130: 0 | AA130: =IF(Y130=0,"",(Y130*3)) -> 105 | AB130: Si | AC130: Sistema por gravedad | AE130: No | AH130: 1995 | AI130: Si | AL130: Si | AM130: 5 | AN130: 5 | AO130: Si - se realizaron pruebas hoy | AP130: No | AR130: Si | AS130: Ausencia | AT130: No | AV130: Si | AW130: 0.97 | AX130: No | BE130: 0.8 | BF130: 25 | BG130: 24 | BH130: No | BM130: Si | BN130: Malo | BO130: Si | BP130: Cumplio su vida util | BT130: Si | BU130: Si | BV130: Entel|Tigo | BW130: Si | BX130: No | BY130: Queman|Botan al rio, quebrada | BZ130: Si | CA130: ATB, unitel | CB130: Si | CC130: radio municipal pocona, causachun coca | CD130: No | CE130: No | CF130: 2a43dc8c11c8ce29baa03c9111e28a3a
A131: jvwt-p9s3-dx3m | B131: Bolivia - Cochabamba - Pocona - Chaquely - Huerta Kuchu | C131: Boi-100-1 | D131: 3250850680 | E131: 10-06-2021 14:14:08 UTC | F131: Llasa | G131: 00:14:55 | H131: 1 | I131: Bolivia | J131: Cochabamba | L131: Pocona | M131: Chaquely | N131: Tamborga | O131: -17.72169412 | P131: -65.41717723 | Q131: 2640.0 | R131: https://waterforpeople.s3.amazonaws.com/images/e654fb8b-fea3-4b17-a8cf-55fb5d10df36.jpg | S131: 1 | T131: Tamborga | U131: Semi dispersa | V131: Municipio | W131: 21 | X131: 17 | Y131: 17 | Z131: 0 | AA131: 51 | AB131: Si | AC131: Sistema por gravedad | AE131: Si | AH131: 2015 | AI131: Si | AL131: No | AO131: Si - se realizaron pruebas hoy | AP131: No | AR131: Si | AS131: Presencia | AT131: No | AV131: Si | AW131: 1.15 | AX131: No | BE131: 1.2 | BF131: 16.66666667 | BG131: 24 | BH131: No | BM131: Si | BN131: Bueno | BO131: No | BT131: Si | BU131: Si | BV131: Entel | BW131: Si | BX131: No | BY131: Queman|Botan al rio, quebrada | BZ131: Si | CA131: unitel, ATB | CB131: Si | CC131: radio municipal pocona, casachun coca | CD131: No | CE131: No | CF131: 12df9bcdbd85646e933f3d91125f8913
A132: ngns-9knd-bwhq | B132: Bolivia - Cochabamba - Pocona - Chiuchi - Chiuchi Arriba | C132: Boi-100-1 | D132: 3246510822 | E132: 11-06-2021 14:20:52 UTC | F132: Llasa | G132: 00:14:38 | H132: 1 | I132: Bolivia | J132: Cochabamba | L132: Pocona | M132: Chiuchi | N132: Chiuchi Arriba | O132: -17.60716818 | P132: -65.31535086 | Q132: 2738.0 | R132: https://waterforpeople.s3.amazonaws.com/images/1485aba1-109e-466a-a3c2-13d39d7a7782.jpg | S132: 1 | T132: Chiuchi Arriba | U132: Semi dispersa | V132: Otra ONG | W132: 85 | X132: 70 | Y132: 50 | Z132: 20 | AA132: 150 | AB132: Si | AC132: Sistema por gravedad | AE132: Si | AH132: 2011 | AI132: Si | AL132: No | AO132: Si - se realizaron pruebas hoy | AP132: No | AR132: Si | AS132: Ausencia | AT132: No | AV132: Si | AW132: 4.3 | AX132: No | BE132: 1 | BF132: 20 | BG132: 24 | BH132: No | BM132: Si | BN132: Bueno | BO132: Si | BP132: No pagan tarifa | BT132: Si | BU132: Si | BV132: Entel | BW132: Si | BX132: No | BY132: Queman|Entierran|Botan al rio, quebrada | BZ132: Si | CA132: unitel con plato antena | CB132: Si | CC132: Radio Pocona y Totora | CD132: Si | CE132: No | CF132: d13baebbf6e5bcec267524fd23dd43b
A133: 2seu-a3mm-vs31 | B133: Bolivia - Cochabamba - Pocona - Chiuchi - Jurina | C133: BOI-GALAXIJ5-02 | D133: 3248660499 | E133: 11-06-2021 14:03:11 UTC | F133: Pocona2 | G133: 00:07:35 | H133: 1 | I133: Bolivia | J133: Cochabamba | L133: Pocona | M133: Chiuchi | N133: Jurina | O133: -17.60947733 | P133: -65.34209367 | Q133: 2775.0 | R133: https://waterforpeople.s3.amazonaws.com/images/eff1112c-61c5-4d41-8b51-d203c6b80926.jpg | S133: 1 | T133: Jurina | U133: Dispersa | V133: Municipio | W133: 12 | X133: 12 | Y133: 12 | Z133: 0 | AA133: 36 | AB133: Si | AC133: Sistema por gravedad | AE133: No | AH133: 1997 | AI133: Si | AL133: No | AO133: Si - se realizaron pruebas hoy | AP133: No | AR133: Si | AS133: Presencia | AT133: No | AV133: Si | AW133: 1.4 | AX133: No | BE133: 0.5 | BF133: 40 | BG133: 24 | BH133: No | BM133: No | BN133: Malo | BO133: Si | BP133: Falta mantenimiento, no hay un CAPYS | BT133: Si | BU133: No | BW133: Si | BX133: No | BY133: Botan al rio, quebrada | BZ133: No | CB133: No | CD133: No | CE133: No | CF133: 88288f53105820764fdf2d569215520
A134: gqbk-jdn0-9df2 | B134: Bolivia - Cochabamba - Pocona - Chiuchi - Ura Pampa | C134: Boi-100-1 | D134: 3240610760 | E134: 11-06-2021 14:12:41 UTC | F134: Llasa | G134: 00:04:44 | H134: 1 | I134: Bolivia | J134: Cochabamba | L134: Pocona | M134: Chiuchi | N134: Ura Pampa | O134: -17.62171239 | P134: -65.345066 | Q134: 2531.0 | R134: https://waterforpeople.s3.amazonaws.com/images/a68af304-6cdc-4110-90ce-7deb4a7f0178.jpg | S134: 1 | T134: Ura Pampa | U134: Dispersa | V134: Municipio | W134: 13 | X134: 13 | Y134: 13 | Z134: 0 | AA134: 39 | AB134: Si | AC134: Sistema por gravedad | AE134: No | AH134: 1999 | AI134: Si | AL134: No | AO134: Si - se realizaron pruebas hoy | AP134: No | AR134: Si | AS134: Ausencia | AT134: No | AV134: Si | AW134: 1.29 | AX134: No | BE134: 1.1 | BF134: 18.18181818 | BG134: 24 | BH134: No | BM134: Si | BN134: Malo | BO134: Si | BP134: Tanque de distribución en mal estado | BT134: Si | BU134: Si | BV134: Entel | BW134: Si | BX134: No | BY134: Queman|Botan al rio, quebrada | BZ134: Si | CA134: unitel | CB134: Si | CC134: la calle, bella morena | CD134: No | CE134: No | CF134: 45e740da36aaa0a7d9ab50b0326ef1c
A135: 290x-bb83-b6y0 | B135: Bolivia - Cochabamba - Pocona - Huaylla Pampa - Alto Pocona | C135: BOI-GALAXIJ5-02 | D135: 3242740984 | E135: 11-06-2021 16:15:52 UTC | F135: Pocona2 | G135: 00:06:11 | H135: 1 | I135: Bolivia | J135: Cochabamba | L135: Pocona | M135: Huaylla Pampa | N135: Alto Pocona | O135: -17.67611369 | P135: -65.42796108 | Q135: 2830.0 | R135: https://waterforpeople.s3.amazonaws.com/images/6369fbb8-7054-4cd0-a126-7f3730e63235.jpg | S135: 1 | T135: alto pocona | U135: Concentrada | V135: Municipio | W135: 54 | X135: 9 | Y135: 9 | Z135: 45 | AA135: 27 | AB135: Si | AC135: Sistema por gravedad | AE135: Si | AH135: 2013 | AI135: Si | AL135: Si | AM135: 1 | AN135: 2 | AO135: Si - se realizaron pruebas hoy | AP135: No | AR135: Si | AS135: Ausencia | AT135: No | AV135: Si | AW135: 8.12 | AX135: No | BE135: 0.8 | BF135: 25 | BG135: 24 | BH135: No | BM135: No | BN135: Bueno | BO135: Si | BP135: escases de agua poca agua | BT135: Si | BU135: Si | BV135: Entel|Tigo | BW135: Si | BX135: No | BY135: Queman|Botan al rio, quebrada | BZ135: Si | CA135: con plato unitel | CB135: Si | CC135: fm. pocona | CD135: No | CE135: No | CF135: ee15bcdd28e423396eedbd54f5316398
A136: 6ja7-pj7h-60c5 | B136: Bolivia - Cochabamba - Pocona - Huaylla Pampa - Banda Rancho | C136: Boi-100-1 | D136: 3248650425 | E136: 11-06-2021 16:00:22 UTC | F136: Llasa | G136: 00:12:53 | H136: 1 | I136: Bolivia | J136: Cochabamba | L136: Pocona | M136: Huaylla Pampa | N136: Banda Rancho | O136: -17.66376416 | P136: -65.41768106 | Q136: 2800.0 | R136: https://waterforpeople.s3.amazonaws.com/images/dfc88103-2e3e-494a-8d68-0cfe2e2475b0.jpg | S136: 1 | T136: banda rancho | U136: Dispersa | V136: Iglesia | W136: 36 | X136: 18 | Y136: 18 | Z136: 0 | AA136: 54 | AB136: Si | AC136: Sistema por gravedad | AE136: No | AH136: 1997 | AI136: Si | AL136: No | AO136: Si - se realizaron pruebas hoy | AP136: No | AR136: Si | AS136: Ausencia | AT136: No | AV136: Si | AW136: 1.02 | AX136: No | BE136: 0.5 | BF136: 40 | BG136: 24 | BH136: No | BM136: Si | BN136: Bueno | BO136: No | BT136: Si | BU136: Si | BV136: Entel|Tigo | BW136: Si | BX136: No | BY136: Queman|Botan al rio, quebrada | BZ136: Si | CA136: unitel, ATB, canal 29 | CB136: Si | CC136: radio municipal pocona, la calle, chiwalaqui | CD136: No | CE136: No | CF136: ef802c2988be5bb5ef2cd2c261ae633d
A137: pt8y-9u40-1jhc | B137: Bolivia - Cochabamba - Pocona - Huaylla Pampa - Huaylla Pampa | C137: BOI-GALAXIJ5-08 | D137: 3252711435 | E137: 11-06-2021 15:43:56 UTC | F137: Pocona 1 | G137: 00:09:18 | H137: 1 | I137: Bolivia | J137: Cochabamba | L137: Pocona | M137: Huaylla Pampa | N137: Huaylla Pampa | O137: -17.66593187 | P137: -65.43340407 | Q137: 2810.0 | R137: https://waterforpeople.s3.amazonaws.com/images/babd58d7-f0f2-4009-b357-08cf81cd4ade.jpg | S137: 1 | T137: Huayllamarca | U137: Semi dispersa | V137: Otra ONG | W137: 84 | X137: 45 | Y137: 30 | Z137: 15 | AA137: 90 | AB137: Si | AC137: Sistema por gravedad | AE137: No | AH137: 1993 | AI137: Si | AL137: Si | AM137: 5 | AN137: 5 | AO137: Si - se realizaron pruebas hoy | AP137: No | AR137: Si | AS137: Ausencia | AT137: No | AV137: Si | AW137: 2.55 | AX137: No | BE137: 1 | BF137: 20 | BG137: 24 | BH137: No | BM137: Si | BN137: Malo | BO137: Si | BP137: SAP cumplio su vida util, no tiene un CAPYS, hay familias sin agua | BT137: Si | BU137: Si | BV137: Entel|Tigo | BW137: Si | BX137: No | BY137: Queman|Entierran | BZ137: No | CB137: Si | CC137: Radio Pocona y Colonial | CD137: No | CE137: No | CF137: 6af065611f93c53686b5c3f7a615a27f
A138: 7qn9-hnpp-6fuq | B138: Bolivia - Cochabamba - Pocona - Huaylla Pampa - Tabla Corral | C138: BOI-GALAXIJ5-02 | D138: 3250831154 | E138: 11-06-2021 16:09:41 UTC | F138: Pocona2 | G138: 00:07:45 | H138: 1 | I138: Bolivia | J138: Cochabamba | L138: Pocona | M138: Huaylla Pampa | N138: Tabla Corral | O138: -17.65257789 | P138: -65.45466964 | Q138: 3005.0 | R138: https://waterforpeople.s3.amazonaws.com/images/614aa640-bdc0-436e-9ac0-56368792099d.jpg | S138: 1 | T138: tabla corral | U138: Dispersa | V138: Iglesia | W138: 40 | X138: 40 | Y138: 40 | Z138: 0 | AA138: 120 | AB138: Si | AC138: Sistema por gravedad | AE138: No | AH138: 2005 | AI138: Si | AL138: Si | AM138: 5 | AN138: 5 | AO138: Si - se realizaron pruebas hoy | AP138: No | AR138: Si | AS138: Ausencia | AT138: No | AV138: Si | AW138: 1.79 | AX138: No | BE138: 1.5 | BF138: 13.33333333 | BG138: 24 | BH138: No | BM138: Si | BN138: Malo | BO138: Si | BT138: Si | BU138: Si | BV138: Entel | BW138: No | BX138: No | BY138: Botan al rio, quebrada | BZ138: No | CB138: No | CD138: No | CE138: No | CF138: d7cbaaac9c29f85992dc489679f6aba6
A139: wkhn-edpa-ugm3 | B139: Bolivia - Cochabamba - Pocona - Incallajta - Incallajta Baja | C139: Boi-100-1 | D139: 3248660298 | E139: 11-06-2021 16:37:22 UTC | F139: Llasa | G139: 00:07:03 | H139: 1 | I139: Bolivia | J139: Cochabamba | L139: Pocona | M139: Incallajta | N139: Incallajta Baja | O139: -17.6208872 | P139: -65.39560393 | Q139: 2928.0 | R139: https://waterforpeople.s3.amazonaws.com/images/a6de62ed-2012-471d-b25b-2ab8a0f15611.jpg | S139: 1 | T139: Incallajta Baja | U139: Semi dispersa | V139: Municipio | W139: 45 | X139: 45 | Y139: 45 | Z139: 0 | AA139: 135 | AB139: Si | AC139: Sistema por gravedad | AE139: No | AH139: 2006 | AI139: Si | AL139: No | AO139: Si - se realizaron pruebas hoy | AP139: No | AR139: Si | AS139: Ausencia | AT139: No | AV139: Si | AW139: 0.66 | AX139: No | BE139: 0.5 | BF139: 40 | BG139: 24 | BH139: No | BM139: Si | BN139: Bueno | BO139: No | BT139: Si | BU139: Si | BV139: Entel | BW139: Si | BX139: No | BY139: Queman|Botan al rio, quebrada | BZ139: Si | CA139: canal 7 | CB139: Si | CC139: chiwalaqui, radio pocona | CD139: No | CE139: No | CF139: 193555699885658037823f47608dc8
A140: 77hc-vf5v-qe96 | B140: Bolivia - Cochabamba - Pocona - Incallajta - Leuque | C140: BOI-GALAXIJ5-02 | D140: 3224541185 | E140: 11-06-2021 13:54:00 UTC | F140: Pocona2 | G140: 00:05:50 | H140: 1 | I140: Bolivia | J140: Cochabamba | L140: Pocona | M140: Incallajta | N140: Leuque | O140: -17.59946743 | P140: -65.43662002 | Q140: 3381.0 | R140: https://waterforpeople.s3.amazonaws.com/images/1afb830e-8003-4a1d-99fe-a662dc1f54a9.jpg | S140: 1 | T140: Leuque | U140: Dispersa | V140: Municipio|Iglesia | W140: 11 | X140: 11 | Y140: 11 | Z140: 0 | AA140: 33 | AB140: Si | AC140: Sistema por gravedad | AE140: Si | AH140: 2007 | AI140: Si | AL140: Si | AM140: 5 | AN140: 2 | AO140: Si - se realizaron pruebas hoy | AP140: No | AR140: Si | AS140: Presencia | AT140: No | AV140: Si | AW140: 1.29 | AX140: No | BE140: 0.5 | BF140: 40 | BG140: 24 | BH140: No | BM140: Si | BN140: Malo | BO140: Si | BP140: Cañeria en mal estado necesita refaccion, no hay un CAPYS | BT140: No | BU140: Si | BV140: Entel | BW140: Si | BX140: No | BY140: Botan al rio, quebrada | BZ140: No | CB140: No | CD140: No | CE140: No | CF140: 6f4197edfb2c49bed2ed2beb6c8477
A141: qr6a-41gu-spsn | B141: Bolivia - Cochabamba - Pocona - Incallajta - Machaj Marka | C141: Boi-100-1 | D141: 3240620602 | E141: 11-06-2021 16:30:24 UTC | F141: Llasa | G141: 00:06:07 | H141: 1 | I141: Bolivia | J141: Cochabamba | L141: Pocona | M141: Incallajta | N141: Machaj Marka | O141: -17.62035388 | P141: -65.38187711 | Q141: 2863.0 | R141: https://waterforpeople.s3.amazonaws.com/images/d978e7e0-f33e-48b2-ab5a-9187256e46f5.jpg | S141: 1 | T141: Machaj Marka Tanque 1 | U141: Dispersa | V141: Municipio | W141: 42 | X141: 42 | Y141: 42 | Z141: 0 | AA141: 126 | AB141: Si | AC141: Sistema por gravedad | AE141: Si | AH141: 1999 | AI141: Si | AL141: No | AO141: Si - se realizaron pruebas hoy | AP141: No | AR141: Si | AS141: Ausencia | AT141: No | AV141: Si | AW141: 0.85 | AX141: No | BE141: 3.1 | BF141: 6.451612903 | BG141: 24 | BH141: No | BM141: Si | BN141: Malo | BO141: Si | BP141: Tanque de almacenamiento con fisuras y filtracion de agua al rededor de las 4 paredes, no hay una tarifa | BT141: Si | BU141: Si | BV141: Entel | BW141: Si | BX141: No | BY141: Queman|Botan al rio, quebrada | BZ141: Si | CA141: canal 7 | CB141: Si | CC141: chiwalaqui | CD141: No | CE141: No | CF141: 6e41ac32e55a14c98e8b6e2072da9247
A142: xkj1-9f3v-g2tb | B142: Bolivia - Cochabamba - Pocona - Incallajta - Machaj Marka | C142: Boi-100-1 | D142: 3240610859 | E142: 11-06-2021 16:31:39 UTC | F142: Llasa | G142: 00:06:39 | H142: 1 | I142: Bolivia | J142: Cochabamba | L142: Pocona | M142: Incallajta | N142: Machaj Marka | O142: -17.60223384 | P142: -65.40568654 | Q142: 3286.0 | R142: https://waterforpeople.s3.amazonaws.com/images/a0189a40-3fee-4db0-8160-3367f4945a11.jpg | S142: 1 | T142: Machaj Marka Tanque 2 | U142: Dispersa | V142: Municipio | W142: 42 | X142: 42 | Y142: 42 | Z142: 0 | AA142: 126 | AB142: Si | AC142: Sistema por gravedad | AE142: Si | AH142: 1999 | AI142: Si | AL142: No | AO142: Si - se realizaron pruebas hoy | AP142: No | AR142: Si | AS142: Ausencia | AT142: No | AV142: Si | AW142: 1.8 | AX142: No | BE142: 0.8 | BF142: 25 | BG142: 24 | BH142: No | BM142: Si | BN142: Malo | BO142: Si | BP142: Falta de mantenimiento, no hay una tarifa | BT142: Si | BU142: Si | BV142: Entel | BW142: Si | BX142: No | BY142: Queman|Botan al rio, quebrada | BZ142: Si | CA142: canal 7 | CB142: Si | CC142: chuwalaqui | CD142: No | CE142: No | CF142: 4d5d188ecf6c2f3330d5951f508c7ad0
A143: ykk3-8spu-s9vq | B143: Bolivia - Cochabamba - Pocona - Incallajta - Quirusillani | C143: BOI-GALAXIJ5-02 | D143: 3240611059 | E143: 11-06-2021 13:54:56 UTC | F143: Pocona2 | G143: 00:08:50 | H143: 1 | I143: Bolivia | J143: Cochabamba | L143: Pocona | M143: Incallajta | N143: Quirusillani | O143: -17.59219548 | P143: -65.41789033 | Q143: 3327.0 | R143: https://waterforpeople.s3.amazonaws.com/images/1966d389-7a59-4b6d-8709-bf6e12fa239d.jpg | S143: 1 | T143: Quirusillani | U143: Dispersa | V143: Otra ONG | W143: 37 | X143: 37 | Y143: 37 | Z143: 0 | AA143: 111 | AB143: Si | AC143: Sistema por gravedad | AE143: No | AH143: 1997 | AI143: Si | AL143: No | AO143: Si - se realizaron pruebas hoy | AP143: No | AR143: Si | AS143: Ausencia | AT143: No | AV143: Si | AW143: 1.09 | AX143: No | BE143: 0.8 | BF143: 25 | BG143: 24 | BH143: No | BM143: Si | BN143: Malo | BO143: Si | BP143: No realizaron mantenimiento no hay CAPYS | BT143: Si | BU143: Si | BV143: Entel | BW143: Si | BX143: No | BY143: Botan al rio, quebrada | BZ143: No | CB143: No | CD143: No | CE143: No | CF143: 84572236e8f4283da78393025747b8
A144: jn1e-3rs6-x0um | B144: Bolivia - Cochabamba - Pocona - Jatun Pampa - Chullunkia | C144: BOI-GALAXIJ5-08 | D144: 3252721472 | E144: 11-06-2021 15:04:10 UTC | F144: Pocona 1 | G144: 00:15:12 | H144: 1 | I144: Bolivia | J144: Cochabamba | L144: Pocona | M144: Jatun Pampa | N144: Chullunkia | O144: -17.61506497 | P144: -65.48650406 | Q144: 3271.0 | R144: https://waterforpeople.s3.amazonaws.com/images/4b4f4325-43a1-4cfc-a963-21de445ce813.jpg | S144: 1 | T144: Chullunkia | U144: Semi dispersa | V144: Iglesia | W144: 15 | X144: 2 | Y144: 2 | Z144: 0 | AA144: 6 | AB144: Si | AC144: Sistema por gravedad | AE144: Si | AH144: 1997 | AI144: Si | AL144: No | AO144: Si - se realizaron pruebas hoy | AP144: No | AR144: Si | AS144: Ausencia | AT144: No | AV144: Si | AW144: 1.78 | AX144: No | BE144: 1.2 | BF144: 16.66666667 | BG144: 24 | BH144: No | BM144: Si | BN144: Malo | BO144: No | BT144: No | BU144: Si | BV144: Entel | BW144: Si | BX144: No | BY144: Queman|Entierran | BZ144: No | CB144: Si | CC144: Radio Pocona | CD144: No | CE144: No | CF144: d1f978afe4ad77bfe61babc169ea128
A145: s7kk-jpt8-wukf | B145: Bolivia - Cochabamba - Pocona - Jatun Pampa - Chullunkia | C145: BOI-GALAXIJ5-08 | D145: 3234920880 | E145: 11-06-2021 15:06:17 UTC | F145: Pocona 1 | G145: 00:08:49 | H145: 1 | I145: Bolivia | J145: Cochabamba | L145: Pocona | M145: Jatun Pampa | N145: Chullunkia | O145: -17.61747444 | P145: -65.48325136 | Q145: 3392.0 | R145: https://waterforpeople.s3.amazonaws.com/images/9df66049-e3ca-48cc-a87e-571bd0bf37bc.jpg | S145: 1 | T145: Chullunkia | U145: Semi dispersa | V145: Iglesia | W145: 15 | X145: 3 | Y145: 3 | Z145: 0 | AA145: 9 | AB145: Si | AC145: Sistema por gravedad | AE145: Si | AH145: 1997 | AI145: Si | AL145: No | AO145: Si - se realizaron pruebas hoy | AP145: No | AR145: Si | AS145: Ausencia | AT145: No | AV145: Si | AW145: 1.78 | AX145: No | BE145: 1 | BF145: 20 | BG145: 24 | BH145: No | BM145: Si | BN145: Bueno | BO145: No | BT145: No | BU145: Si | BV145: Entel | BW145: Si | BX145: No | BY145: Queman|Entierran | BZ145: No | CB145: Si | CC145: Radio Pocona | CD145: No | CE145: No | CF145: 6a9eed2734e1c419ac17ae76b7ab2577
A146: 6k7m-f6fe-44yc | B146: Bolivia - Cochabamba - Pocona - Jatun Pampa - Jatun Pampa | C146: Boi-100-1 | D146: 3244450676 | E146: 11-06-2021 16:08:17 UTC | F146: Llasa | G146: 00:04:28 | H146: 1 | I146: Bolivia | J146: Cochabamba | L146: Pocona | M146: Jatun Pampa | N146: Jatun Pampa | O146: -17.60681856 | P146: -65.4926294 | Q146: 3488.0 | R146: https://waterforpeople.s3.amazonaws.com/images/adad48d5-91a0-4ced-b9a1-a8147e87b669.jpg | S146: 1 | T146: Jatun Pampa | U146: Semi dispersa | V146: Iglesia | W146: 15 | X146: 8 | Y146: 8 | Z146: 0 | AA146: 24 | AB146: Si | AC146: Sistema por gravedad | AE146: No | AH146: 1990 | AI146: Si | AL146: No | AO146: Si - se realizaron pruebas hoy | AP146: No | AR146: Si | AS146: Ausencia | AT146: No | AV146: Si | AW146: 3.29 | AX146: No | BE146: 0.3 | BF146: 66.66666667 | BG146: 24 | BH146: No | BM146: Si | BN146: Malo | BO146: Si | BP146: Cañerias de agua con fugas de agua | BT146: Si | BU146: Si | BV146: Entel | BW146: Si | BX146: No | BY146: Queman|Botan al rio, quebrada | BZ146: Si | CA146: unitel | CB146: Si | CC146: chuwalaqui, radio totora | CD146: No | CE146: No | CF146: 65044c1b4afc1de660518b4e261f8
A147: kme2-2vjm-ssc6 | B147: Bolivia - Cochabamba - Pocona - Jatun Pampa - Loman Centro | C147: BOI-GALAXIJ5-02 | D147: 3252711079 | E147: 11-06-2021 15:58:44 UTC | F147: Pocona2 | G147: 00:20:25 | H147: 1 | I147: Bolivia | J147: Cochabamba | L147: Pocona | M147: Jatun Pampa | N147: Loman Centro | O147: -17.6367323 | P147: -65.48651778 | Q147: 3620.0 | R147: https://waterforpeople.s3.amazonaws.com/images/f89222ca-0cab-422f-b6b3-bf13f2627840.jpg | S147: 1 | T147: Loman Centro | U147: Dispersa | V147: Iglesia | W147: 35 | X147: 20 | Y147: 20 | Z147: 0 | AA147: 60 | AB147: Si | AC147: Sistema por gravedad | AE147: No | AH147: 2005 | AI147: Si | AL147: Si | AM147: 2 | AN147: 3 | AO147: Si - se realizaron pruebas hoy | AP147: No | AR147: Si | AS147: Ausencia | AT147: No | AV147: Si | AW147: 0.9 | AX147: No | BE147: 0.5 | BF147: 40 | BG147: 24 | BH147: No | BM147: No | BN147: Malo | BO147: Si | BP147: No tiene un CAPYS | BT147: Si | BU147: Si | BV147: Entel | BW147: Si | BX147: No | BY147: Botan al rio, quebrada | BZ147: No | CB147: No | CD147: No | CE147: No | CF147: 71d8fbb19816e7d639f558b42cf822
A148: hncx-ktr4-u5ye | B148: Bolivia - Cochabamba - Pocona - Jatun Pampa - Puca Loma | C148: BOI-GALAXIJ5-02 | D148: 3242751125 | E148: 11-06-2021 16:11:00 UTC | F148: Pocona2 | G148: 00:04:26 | H148: 1 | I148: Bolivia | J148: Cochabamba | L148: Pocona | M148: Jatun Pampa | N148: Puca Loma | O148: -17.60689973 | P148: -65.49543189 | Q148: 3532.0 | R148: https://waterforpeople.s3.amazonaws.com/images/5c7ac8e2-4e33-462b-bfcf-d434ab67d6d3.jpg | S148: 1 | T148: Puca Loma | U148: Dispersa | V148: Iglesia | W148: 9 | X148: 9 | Y148: 9 | Z148: 0 | AA148: 27 | AB148: Si | AC148: Sistema por gravedad | AE148: No | AH148: 1997 | AI148: Si | AL148: Si | AM148: 5 | AN148: 7 | AO148: Si - se realizaron pruebas hoy | AP148: No | AR148: Si | AS148: Ausencia | AT148: No | AV148: Si | AW148: 0.87 | AX148: No | BE148: 1 | BF148: 20 | BG148: 24 | BH148: No | BM148: Si | BN148: Malo | BO148: Si | BP148: Tanque y la red se deteriora por falta de mantenimiento | BT148: Si | BU148: Si | BV148: Entel | BW148: Si | BX148: No | BY148: Botan al rio, quebrada | BZ148: No | CB148: No | CD148: No | CE148: No | CF148: 37c065104af72ffac57c35d89329189
A149: ymqa-a5m8-hyka | B149: Bolivia - Cochabamba - Pocona - Jatun Pampa - Puca Puca | C149: Boi-100-1 | D149: 3238770725 | E149: 11-06-2021 16:06:41 UTC | F149: Llasa | G149: 00:12:02 | H149: 1 | I149: Bolivia | J149: Cochabamba | L149: Pocona | M149: Jatun Pampa | N149: Puca Puca | O149: -17.61420422 | P149: -65.51488434 | Q149: 3603.0 | R149: https://waterforpeople.s3.amazonaws.com/images/894ae2e7-857a-4cfe-a2a8-471694f13499.jpg | S149: 1 | T149: Puca Puca | U149: Semi dispersa | V149: Iglesia | W149: 42 | X149: 30 | Y149: 25 | Z149: 5 | AA149: 75 | AB149: Si | AC149: Sistema por gravedad | AE149: No | AH149: 2005 | AI149: Si | AL149: Si | AM149: 5 | AN149: 5 | AO149: Si - se realizaron pruebas hoy | AP149: No | AR149: Si | AS149: Ausencia | AT149: No | AV149: Si | AW149: 4.02 | AX149: No | BE149: 0.25 | BF149: 80 | BG149: 24 | BH149: No | BM149: No | BN149: Malo | BO149: Si | BP149: Mantenimiento general del SAP | BT149: Si | BU149: Si | BV149: Entel | BW149: Si | BX149: No | BY149: Queman|Botan al rio, quebrada | BZ149: Si | CA149: unitel | CB149: Si | CC149: chihualaqui | CD149: No | CE149: No | CF149: 40c192ccdb3bc9e1c988e8d4f39437
A150: 504m-jnx3-yjdn | B150: Bolivia - Cochabamba - Pocona - Junta Vecinal Monte Punku - Junta Vecinal Monte Punku A | C150: BOI-GALAXIJ5-02 | D150: 3232640831 | E150: 11-06-2021 13:14:53 UTC | F150: Pocona2 | G150: 00:10:45 | H150: 1 | I150: Bolivia | J150: Cochabamba | L150: Pocona | M150: Junta Vecinal Monte Punku | N150: Junta Vecinal Monte Punku A | O150: -17.58013655 | P150: -65.29917701 | Q150: 2944.0 | R150: https://waterforpeople.s3.amazonaws.com/images/d100778b-0ddc-4cdf-833e-1ba2100d8d01.jpg | S150: 1 | T150: junta vecinal monte puncu A | U150: Semi dispersa | V150: Municipio|Otra ONG | W150: 103 | X150: 103 | Y150: 103 | Z150: 0 | AA150: 309 | AB150: Si | AC150: Sistema por gravedad | AE150: Si | AH150: 2019 | AI150: Si | AL150: No | AO150: Si - se realizaron pruebas hoy | AP150: No | AR150: Si | AS150: Presencia | AT150: No | AV150: Si | AW150: 2.71 | AX150: No | BE150: 1.5 | BF150: 13.33333333 | BG150: 24 | BH150: No | BM150: Si | BN150: Bueno | BO150: No | BP150: Falta instalar el cerco perimetral en el taque de agua | BT150: Si | BU150: Si | BV150: Entel|Tigo | BW150: Si | BX150: Si | BZ150: Si | CA150: atv unitel | CB150: Si | CC150: radio de todo lado | CD150: Si | CE150: No | CF150: f9c6607a2477df20eda7d321994d4474
A151: 0j1g-q3wf-g2ny | B151: Bolivia - Cochabamba - Pocona - Junta Vecinal Pocona - Junta Vecinal Pocona | C151: BOI-GALAXIJ5-08 | D151: 3252721494 | E151: 11-06-2021 15:50:33 UTC | F151: Pocona 1 | G151: 00:08:24 | H151: 1 | I151: Bolivia | J151: Cochabamba | L151: Pocona | M151: Junta Vecinal Pocona | N151: Junta Vecinal Pocona | O151: -17.67407292 | P151: -65.42356974 | Q151: 2770.0 | R151: https://waterforpeople.s3.amazonaws.com/images/664e1617-dfc5-41d9-8dbf-a79876999665.jpg | S151: 1 | T151: JuntabVecinal Pocona | U151: Concentrada | V151: Iglesia | W151: 110 | X151: 70 | Y151: 70 | Z151: 0 | AA151: 210 | AB151: Si | AC151: Sistema por gravedad | AE151: Si | AH151: 1993 | AI151: Si | AL151: No | AO151: Si - se realizaron pruebas hoy | AP151: No | AR151: Si | AS151: Ausencia | AT151: No | AV151: Si | AW151: 1.6 | AX151: No | BE151: 2 | BF151: 10 | BG151: 24 | BH151: No | BM151: Si | BN151: Bueno | BO151: Si | BP151: Descubrimiento de la red de distribucion por el raspado de la callen principal | BT151: Si | BU151: Si | BV151: Entel|Tigo | BW151: Si | BX151: No | BY151: Queman|Entierran | BZ151: Si | CA151: Canal 7 | CB151: Si | CC151: Radio Totora y Pocona | CD151: Si | CE151: Si | CF151: 51d06984f588023dc9bb790597c959a
A152: ku3r-5dft-2b97 | B152: Bolivia - Cochabamba - Pocona - Kellu Mayu - Kellu Mayu | C152: BOI-GALAXIJ5-08 | D152: 3250831396 | E152: 10-06-2021 17:25:13 UTC | F152: Pocona 1 | G152: 00:10:44 | H152: 1 | I152: Bolivia | J152: Cochabamba | L152: Pocona | M152: Kellu Mayu | N152: Kellu Mayu | O152: -17.59825009 | P152: -65.27700745 | Q152: 3049.0 | R152: https://waterforpeople.s3.amazonaws.com/images/0a536e2b-9ac4-448d-a818-4863f9f514b2.jpg | S152: 1 | T152: Kellu Mayu toma 2 | U152: Semi dispersa | V152: Municipio | W152: 75 | X152: 51 | Y152: 51 | Z152: 0 | AA152: 153 | AB152: Si | AC152: Sistema por gravedad | AE152: Si | AH152: 2002 | AI152: Si | AL152: No | AO152: Si - se realizaron pruebas hoy | AP152: No | AR152: Si | AS152: Ausencia | AT152: No | AV152: Si | AW152: 2.49 | AX152: No | BE152: 1 | BF152: 20 | BG152: 24 | BH152: No | BM152: Si | BN152: Bueno | BO152: No | BT152: Si | BU152: Si | BV152: Entel | BW152: Si | BX152: No | BY152: Queman|Entierran | BZ152: No | CB152: Si | CC152: Radio Pocona, Radio Cocapata | CD152: Si | CE152: No | CF152: 49f2db1ef67c25b983c79e657b67ac
A153: w57w-wrmq-tnjr | B153: Bolivia - Cochabamba - Pocona - Kellu Mayu - Kellu Mayu | C153: BOI-GALAXIJ5-08 | D153: 3240611387 | E153: 10-06-2021 17:25:55 UTC | F153: Pocona 1 | G153: 00:06:10 | H153: 1 | I153: Bolivia | J153: Cochabamba | L153: Pocona | M153: Kellu Mayu | N153: Kellu Mayu | O153: -17.59941802 | P153: -65.27700882 | Q153: 3028.0 | R153: https://waterforpeople.s3.amazonaws.com/images/84965549-e027-4e79-b64d-c45355c75770.jpg | S153: 1 | T153: Kellu Mayu toma 1 | U153: Semi dispersa | V153: Municipio | W153: 65 | X153: 51 | Y153: 51 | Z153: 0 | AA153: 153 | AB153: Si | AC153: Sistema por gravedad | AE153: Si | AH153: 1996 | AI153: Si | AL153: No | AO153: Si - se realizaron pruebas hoy | AP153: No | AR153: Si | AS153: Presencia | AT153: No | AV153: Si | AW153: 28 | AX153: No | BE153: 1.5 | BF153: 13.33333333 | BG153: 24 | BH153: No | BM153: Si | BN153: Bueno | BO153: No | BT153: Si | BU153: Si | BV153: Entel | BW153: Si | BX153: No | BY153: Queman|Entierran | BZ153: No | CB153: Si | CC153: Radio Pocona y Cocapata | CD153: Si | CE153: No | CF153: 34ee17faef6adad919618448d35145f6
A154: pt17-95pw-5hrn | B154: Bolivia - Cochabamba - Pocona - Kellu Mayu - Monte Punku B | C154: BOI-GALAXIJ5-02 | D154: 3228700854 | E154: 11-06-2021 13:22:31 UTC | F154: Pocona2 | G154: 00:05:47 | H154: 1 | I154: Bolivia | J154: Cochabamba | L154: Pocona | M154: Kellu Mayu | N154: Monte Punku B | O154: -17.59434497 | P154: -65.28440434 | Q154: 2935.0 | R154: https://waterforpeople.s3.amazonaws.com/images/a4fd5df3-0699-41ca-af1c-6bbcd8ef18e3.jpg | S154: 1 | T154: montepuncu B | U154: Dispersa | V154: Gobierno Nacional|Municipio | W154: 35 | X154: 35 | Y154: 35 | Z154: 0 | AA154: 105 | AB154: Si | AC154: Sistema por gravedad | AE154: Si | AH154: 1999 | AI154: Si | AL154: No | AO154: Si - se realizaron pruebas hoy | AP154: No | AR154: Si | AS154: Ausencia | AT154: No | AV154: Si | AW154: 0.47 | AX154: No | BE154: 1.8 | BF154: 11.11111111 | BG154: 24 | BH154: No | BM154: Si | BN154: Bueno | BO154: Si | BP154: Mantenimiento del tanque | BT154: Si | BU154: Si | BV154: Entel | BW154: Si | BX154: No | BY154: Entierran|Botan al rio, quebrada | BZ154: No | CB154: Si | CC154: municipal de pocona | CD154: No | CE154: No | CF154: a620678d54e5edec8d83e111852b2b61
A155: 1e90-r58p-a8qe | B155: Bolivia - Cochabamba - Pocona - Laimiña - Chaquely | C155: Boi-100-1 | D155: 3252720672 | E155: 10-06-2021 13:41:12 UTC | F155: Llasa | G155: 00:18:37 | H155: 1 | I155: Bolivia | J155: Cochabamba | L155: Pocona | M155: Laimiña | N155: Chaquely | O155: -17.64085649 | P155: -65.36969948 | Q155: 2714.0 | R155: https://waterforpeople.s3.amazonaws.com/images/c25376e1-50c5-4a66-bd9f-08fe8a9327b9.jpg | S155: 1 | T155: Chaquely A | U155: Semi dispersa | V155: Municipio | W155: 23 | X155: 23 | Y155: 14 | Z155: 9 | AA155: 42 | AB155: Si | AC155: Sistema por gravedad | AE155: Si | AH155: 2016 | AI155: Si | AL155: No | AO155: Si - se realizaron pruebas hoy | AP155: No | AR155: Si | AS155: Presencia | AT155: No | AV155: Si | AW155: 6.74 | AX155: No | BE155: 0.1 | BF155: =IF(BE155="","",(20/BE155)) -> 200 | BG155: 24 | BH155: No | BM155: Si | BN155: Bueno | BO155: No | BT155: Si | BU155: Si | BV155: Entel|Tigo | BW155: Si | BX155: No | BY155: Queman|Botan al rio, quebrada | BZ155: Si | CA155: ATB, unitel | CB155: Si | CC155: radio totora, cusachun coca, radio municipal pocona | CD155: No | CE155: No | CF155: 784fae284c54ed675625bfb2718511
A156: sugr-x8xt-3ctr | B156: Bolivia - Cochabamba - Pocona - Laimiña - Laimiña | C156: Boi-100-1 | D156: 3248650205 | E156: 10-06-2021 13:33:56 UTC | F156: Llasa | G156: 00:12:57 | H156: 1 | I156: Bolivia | J156: Cochabamba | L156: Pocona | M156: Laimiña | N156: Laimiña | O156: -17.6495932 | P156: -65.37627917 | Q156: 2654.0 | R156: https://waterforpeople.s3.amazonaws.com/images/9fa45b8b-6f6d-4d25-8722-b2706a3adef1.jpg | S156: 1 | T156: Laimiña | U156: Semi dispersa | V156: Municipio | W156: 80 | X156: 80 | Y156: 80 | Z156: 0 | AA156: 240 | AB156: Si | AC156: Sistema por gravedad | AE156: Si | AH156: 2010 | AI156: Si | AL156: No | AO156: Si - se realizaron pruebas hoy | AP156: No | AR156: Si | AS156: Presencia | AT156: No | AV156: Si | AW156: 2.85 | AX156: No | BE156: 1.5 | BF156: 13.33333333 | BG156: 24 | BH156: No | BM156: Si | BN156: Bueno | BO156: No | BT156: Si | BU156: Si | BV156: Entel|Tigo | BW156: Si | BX156: No | BY156: Queman|Botan al rio, quebrada | BZ156: Si | CA156: unitel, ATB | CB156: Si | CC156: causachun coca, radio totora, radio municipal pocona | CD156: No | CE156: No | CF156: c1d0d645a6b19baf57836a6f48307e52
A157: ckfv-07wv-43jn | B157: Bolivia - Cochabamba - Pocona - Laimiña - Laimiña | C157: Boi-100-1 | D157: 3230900637 | E157: 10-06-2021 13:35:08 UTC | F157: Llasa | G157: 00:08:46 | H157: 1 | I157: Bolivia | J157: Cochabamba | L157: Pocona | M157: Laimiña | N157: Laimiña | O157: -17.64883081 | P157: -65.36861626 | Q157: 2626.0 | R157: https://waterforpeople.s3.amazonaws.com/images/fc3f8372-9706-48ab-a9d4-f1118a500fcf.jpg | S157: 1 | T157: Laimiña | U157: Semi dispersa | V157: Municipio | W157: 80 | X157: 80 | Y157: 80 | Z157: 0 | AA157: 240 | AB157: Si | AC157: Sistema por gravedad | AE157: Si | AH157: 1999 | AI157: Si | AL157: No | AO157: Si - se realizaron pruebas hoy | AP157: No | AR157: Si | AS157: Presencia | AT157: No | AV157: Si | AW157: 2.85 | AX157: No | BE157: 1 | BF157: 20 | BG157: 24 | BH157: No | BM157: Si | BN157: Bueno | BO157: Si | BP157: Tanque 2 con filtraciones | BT157: Si | BU157: Si | BV157: Entel|Tigo | BW157: Si | BX157: No | BY157: Queman|Botan al rio, quebrada | BZ157: Si | CA157: unitel, ATB | CB157: Si | CC157: radio totora, causachun coca, radio municipal pocona | CD157: No | CE157: No | CF157: 31b4e2a58a5192738147df158d316bd
A158: kjws-xt20-69q9 | B158: Bolivia - Cochabamba - Pocona - Laimiña - Pizorga | C158: BOI-GALAXIJ5-08 | D158: 3238801174 | E158: 11-06-2021 16:19:15 UTC | F158: Pocona 1 | G158: 00:21:34 | H158: 1 | I158: Bolivia | J158: Cochabamba | L158: Pocona | M158: Laimiña | N158: Pizorga | O158: -17.68524094 | P158: -65.40863824 | Q158: 2751.0 | R158: https://waterforpeople.s3.amazonaws.com/images/15821b83-f415-4e5c-80bb-07a040904b6d.jpg | S158: 1 | T158: Pizorga | U158: Semi dispersa | V158: Otra ONG | W158: 180 | X158: 100 | Y158: 93 | Z158: 7 | AA158: 279 | AB158: Si | AC158: Sistema por gravedad | AE158: Si | AH158: 1987 | AI158: Si | AL158: No | AO158: Si - se realizaron pruebas hoy | AP158: No | AR158: Si | AS158: Ausencia | AT158: No | AV158: Si | AW158: 1.02 | AX158: No | BE158: 2 | BF158: 10 | BG158: 24 | BH158: No | BM158: Si | BN158: Bueno | BO158: No | BT158: Si | BU158: Si | BV158: Entel|Tigo | BW158: Si | BX158: No | BY158: Queman|Entierran | BZ158: No | CB158: Si | CC158: Radio Pocona y Totora | CD158: No | CE158: No | CF158: 7659a8261f88d3a14051eef4c92d0ea
A159: t7b9-67ua-rqfh | B159: Bolivia - Cochabamba - Pocona - Laimiña - Qollpa | C159: Boi-100-1 | D159: 3250860464 | E159: 10-06-2021 13:45:59 UTC | F159: Llasa | G159: 00:12:57 | H159: 1 | I159: Bolivia | J159: Cochabamba | L159: Pocona | M159: Laimiña | N159: Qollpa | O159: -17.64027913 | P159: -65.36181451 | Q159: 2682.0 | R159: https://waterforpeople.s3.amazonaws.com/images/705a0b1c-cf55-4ab5-af23-1199151d3d92.jpg | S159: 1 | T159: Qollpa | U159: Semi dispersa | V159: Municipio | W159: 85 | X159: 85 | Y159: 85 | Z159: 0 | AA159: 255 | AB159: Si | AC159: Sistema por gravedad | AE159: Si | AH159: 1992 | AI159: Si | AL159: No | AO159: Si - se realizaron pruebas hoy | AP159: No | AR159: Si | AS159: Ausencia | AT159: No | AV159: Si | AW159: 0.35 | AX159: No | BE159: 0.9 | BF159: 22.22222222 | BG159: 24 | BH159: No | BM159: Si | BN159: Bueno | BO159: No | BT159: Si | BU159: Si | BV159: Entel|Tigo | BW159: Si | BX159: No | BY159: Queman|Botan al rio, quebrada | BZ159: Si | CA159: unitel, ATB | CB159: Si | CC159: radio municipal pocona, causachun coca | CD159: No | CE159: No | CF159: faf3bba8b9773fb3145645746ef6ef19
A160: ep38-s9ww-9r6c | B160: Bolivia - Cochabamba - Pocona - Laimiña - Tumuyo A | C160: BOI-GALAXIJ5-02 | D160: 3242740989 | E160: 11-06-2021 16:27:03 UTC | F160: Pocona2 | G160: 00:05:16 | H160: 1 | I160: Bolivia | J160: Cochabamba | L160: Pocona | M160: Laimiña | N160: Tumuyo A | O160: -17.66186335 | P160: -65.3718113 | Q160: 2619.0 | R160: https://waterforpeople.s3.amazonaws.com/images/1ad8fc63-6bdc-45fd-a5e1-e0d2f4b60c62.jpg | S160: 2 | T160: Tumuyu A y B | U160: Dispersa | V160: Gobierno Nacional | W160: 32 | X160: 32 | Y160: 32 | Z160: 0 | AA160: 96 | AB160: Si | AC160: Sistema por gravedad | AE160: Si | AH160: 1997 | AI160: Si | AL160: No | AO160: Si - se realizaron pruebas hoy | AP160: No | AR160: Si | AS160: Ausencia | AT160: No | AV160: Si | AW160: 5.69 | AX160: No | BE160: 1.5 | BF160: 13.33333333 | BG160: 24 | BH160: No | BM160: Si | BN160: Bueno | BO160: Si | BP160: No quieren dar informacion | BT160: Si | BU160: Si | BV160: Entel | BW160: Si | BX160: No | BY160: Botan al rio, quebrada | BZ160: No | CB160: No | CD160: No | CE160: No | CF160: 861155b8f92be8d818d4751c879426
A161: ep38-s9ww-9r6c | B161: Bolivia - Cochabamba - Pocona - Laimiña - Tumuyo A | C161: BOI-GALAXIJ5-02 | D161: 3242740989 | E161: 11-06-2021 16:27:03 UTC | F161: Pocona2 | G161: 00:05:16 | H161: 1 | I161: Bolivia | J161: Cochabamba | L161: Pocona | M161: Laimiña | N161: Tumuyo B | O161: -17.66643598 | P161: -65.37445631 | Q161: 2619.0 | R161: https://waterforpeople.s3.amazonaws.com/images/1ad8fc63-6bdc-45fd-a5e1-e0d2f4b60c62.jpg | S161: 2 | T161: Tumuyu A y B | U161: Dispersa | V161: Gobierno Nacional | W161: 30 | X161: 30 | Y161: 30 | Z161: 0 | AA161: 90 | AB161: Si | AC161: Sistema por gravedad | AE161: Si | AH161: 1997 | AI161: Si | AL161: No | AO161: Si - se realizaron pruebas hoy | AP161: No | AR161: Si | AS161: Ausencia | AT161: No | AV161: Si | AW161: 5.69 | AX161: No | BE161: 1.5 | BF161: 13.33333333 | BG161: 24 | BH161: No | BM161: Si | BN161: Bueno | BO161: Si | BP161: No quieren dar informacion | BT161: Si | BU161: Si | BV161: Entel | BW161: Si | BX161: No | BY161: Botan al rio, quebrada | BZ161: No | CB161: No | CD161: No | CE161: No | CF161: 861155b8f92be8d818d4751c879426
A162: pypp-xhm7-tve0 | B162: Bolivia - Cochabamba - Pocona - Lope Mendoza - Chullchungani | C162: BOI-GALAXIJ5-02 | D162: 3250851002 | E162: 10-06-2021 14:16:35 UTC | F162: Pocona2 | G162: 00:08:55 | H162: 1 | I162: Bolivia | J162: Cochabamba | L162: Pocona | M162: Lope Mendoza | N162: Chullchungani | O162: -17.56682081 | P162: -65.3269816 | Q162: 3121.0 | R162: https://waterforpeople.s3.amazonaws.com/images/8391f6d4-4bb9-41e4-9e9b-049e6fe64e4b.jpg | S162: 1 | T162: Chullchungani | U162: Dispersa | V162: Gobierno Nacional|Otra ONG | W162: 250 | X162: 250 | Y162: 250 | Z162: 0 | AA162: 750 | AB162: Si | AC162: Sistema por gravedad | AE162: No | AH162: 1987 | AI162: Si | AL162: Si | AM162: 2 | AN162: 2 | AO162: Si - se realizaron pruebas hoy | AP162: No | AR162: Si | AS162: Ausencia | AT162: No | AV162: Si | AW162: 0.6 | AX162: No | BE162: 2.5 | BF162: 8 | BG162: 24 | BH162: No | BM162: Si | BN162: Malo | BO162: Si | BP162: Fugas de agua por la cañeria negra en aduccion y distribucion | BT162: Si | BU162: Si | BV162: Entel | BW162: Si | BX162: No | BY162: Botan al rio, quebrada | BZ162: Si | CA162: unitel | CB162: Si | CC162: causachun coca | CD162: No | CE162: No | CF162: c86930cfba29af15f1a65b71b98a5056
A163: jypw-mt41-hk81 | B163: Bolivia - Cochabamba - Pocona - Lope Mendoza - Cocapata | C163: BOI-GALAXIJ5-08 | D163: 3242741063 | E163: 10-06-2021 15:14:07 UTC | F163: Pocona 1 | G163: 00:11:51 | H163: 1 | I163: Bolivia | J163: Cochabamba | L163: Pocona | M163: Lope Mendoza | N163: Cocapata | O163: -17.57691422 | P163: -65.30409647 | Q163: 2987.0 | R163: https://waterforpeople.s3.amazonaws.com/images/b83d0112-54c3-4364-9bf0-9f348a2e60c2.jpg | S163: 1 | T163: Cocapata | U163: Semi dispersa | V163: Otra ONG | W163: 144 | X163: 144 | Y163: 144 | Z163: 0 | AA163: 432 | AB163: Si | AC163: Sistema por gravedad | AE163: Si | AH163: 1992 | AI163: Si | AL163: No | AO163: Si - se realizaron pruebas hoy | AP163: No | AR163: Si | AS163: Ausencia | AT163: No | AV163: Si | AW163: 0.89 | AX163: No | BE163: 0.6 | BF163: 33.33333333 | BG163: 24 | BH163: No | BM163: Si | BN163: Bueno | BO163: Si | BP163: Mantenimiento del tanque | BT163: Si | BU163: Si | BV163: Entel | BW163: Si | BX163: No | BY163: Queman|Entierran | BZ163: No | CB163: Si | CC163: Radio Pocona | CD163: No | CE163: No | CF163: dab775661eb5e35a6cc49d9431c666
A164: 433n-w39m-jhjt | B164: Bolivia - Cochabamba - Pocona - Lope Mendoza - Cocapata | C164: BOI-GALAXIJ5-08 | D164: 3240611300 | E164: 10-06-2021 15:14:44 UTC | F164: Pocona 1 | G164: 00:08:43 | H164: 1 | I164: Bolivia | J164: Cochabamba | L164: Pocona | M164: Lope Mendoza | N164: Cocapata | O164: -17.58587182 | P164: -65.31819221 | Q164: 3044.0 | R164: https://waterforpeople.s3.amazonaws.com/images/4c397923-5ad9-4509-9dcb-523d3cc2cb41.jpg | S164: 1 | T164: Cocapata | U164: Semi dispersa | V164: Otra ONG | W164: 144 | X164: 144 | Y164: 144 | Z164: 0 | AA164: 432 | AB164: Si | AC164: Sistema por gravedad | AE164: Si | AH164: 1992 | AI164: Si | AL164: No | AO164: Si - se realizaron pruebas hoy | AP164: No | AR164: Si | AS164: Ausencia | AT164: No | AV164: Si | AW164: 0.89 | AX164: No | BE164: 1.5 | BF164: 13.33333333 | BG164: 24 | BH164: No | BM164: Si | BN164: Bueno | BO164: Si | BP164: Llave de paso en mal estado | BT164: Si | BU164: Si | BV164: Entel | BW164: Si | BX164: No | BY164: Queman|Entierran | BZ164: No | CB164: Si | CC164: Radio Pocona | CD164: No | CE164: No | CF164: af7f81d7fce2dbb4b3828d33f1a6476
A165: 25px-4xs9-f9ak | B165: Bolivia - Cochabamba - Pocona - Lope Mendoza - Cocapata | C165: BOI-GALAXIJ5-08 | D165: 3252711233 | E165: 10-06-2021 15:15:25 UTC | F165: Pocona 1 | G165: 00:11:37 | H165: 1 | I165: Bolivia | J165: Cochabamba | L165: Pocona | M165: Lope Mendoza | N165: Cocapata | O165: -17.5725554 | P165: -65.31042408 | Q165: 3098.0 | R165: https://waterforpeople.s3.amazonaws.com/images/bf158d3e-f882-4e58-ac40-a96f72cbdce6.jpg | S165: 1 | T165: Cocapata | U165: Semi dispersa | V165: Comité de Agua | W165: 144 | X165: 144 | Y165: 144 | Z165: 0 | AA165: 432 | AB165: Si | AC165: Sistema por gravedad | AE165: Si | AH165: 2018 | AI165: Si | AL165: No | AO165: Si - se realizaron pruebas hoy | AP165: No | AR165: Si | AS165: Ausencia | AT165: No | AV165: Si | AW165: 0.89 | AX165: No | BE165: 2 | BF165: 10 | BG165: 24 | BH165: No | BM165: Si | BN165: Bueno | BO165: Si | BP165: Mantenimiento del tanque | BT165: Si | BU165: Si | BV165: Entel | BW165: Si | BX165: No | BY165: Queman|Entierran | BZ165: No | CB165: Si | CC165: Radio Pocona | CD165: No | CE165: No | CF165: 6f12ca64f6533cac9d2c9944c82f44c
A166: qeby-9sdq-2wgk | B166: Bolivia - Cochabamba - Pocona - Lope Mendoza - Escalante | C166: BOI-GALAXIJ5-02 | D166: 3246510996 | E166: 10-06-2021 14:20:38 UTC | F166: Pocona2 | G166: 00:05:10 | H166: 1 | I166: Bolivia | J166: Cochabamba | L166: Pocona | M166: Lope Mendoza | N166: Escalante | O166: -17.54577379 | P166: -65.36577938 | Q166: 3055.0 | R166: https://waterforpeople.s3.amazonaws.com/images/21eaf495-ad53-47c6-82c2-69aaa165b70a.jpg | S166: 1 | T166: Escalante | U166: Dispersa | V166: Gobierno Nacional|Municipio | W166: 48 | X166: 48 | Y166: 48 | Z166: 0 | AA166: 144 | AB166: Si | AC166: Sistema por gravedad | AE166: Si | AH166: 1999 | AI166: Si | AL166: No | AO166: Si - se realizaron pruebas hoy | AP166: No | AR166: Si | AS166: Ausencia | AT166: No | AV166: Si | AW166: 1.04 | AX166: No | BE166: 0.5 | BF166: 40 | BG166: 24 | BH166: No | BM166: No | BN166: Malo | BO166: Si | BP166: Falta limpieza interior y cañeria negra rotas con fugas | BT166: Si | BU166: Si | BV166: Entel | BW166: Si | BX166: No | BY166: Botan al rio, quebrada | BZ166: Si | CA166: unitel | CB166: Si | CC166: causachun coca | CD166: No | CE166: No | CF166: 3464d6a10501dcb46af4c3a9341f280
A167: 04f9-be41-ux23 | B167: Bolivia - Cochabamba - Pocona - Lope Mendoza - Kewiña Pampa | C167: Boi-100-1 | D167: 3240620480 | E167: 10-06-2021 15:34:07 UTC | F167: Llasa | G167: 00:07:41 | H167: 1 | I167: Bolivia | J167: Cochabamba | L167: Pocona | M167: Lope Mendoza | N167: Kewiña Pampa | O167: -17.50661388 | P167: -65.3990691 | Q167: 3259.0 | R167: https://waterforpeople.s3.amazonaws.com/images/9a25417e-6ec6-4054-bf51-4994586d6d7a.jpg | S167: 1 | T167: Kewiña Pampa | U167: Semi dispersa | V167: Municipio | W167: 82 | X167: 82 | Y167: 82 | Z167: 0 | AA167: 246 | AB167: Si | AC167: Sistema por gravedad | AE167: No | AH167: 1982 | AI167: Si | AL167: No | AO167: Si - se realizaron pruebas hoy | AP167: No | AR167: Si | AS167: Ausencia | AT167: No | AV167: Si | AW167: 0.8 | AX167: No | BE167: 1.1 | BF167: 18.18181818 | BG167: 24 | BH167: No | BM167: Si | BN167: Bueno | BO167: No | BT167: Si | BU167: Si | BV167: Entel | BW167: Si | BX167: No | BY167: Queman|Botan al rio, quebrada | BZ167: Si | CA167: unitel | CB167: Si | CC167: causachun coca, bella morena | CD167: No | CE167: No | CF167: 94975cc636632834895fa6ed3a36a7e8
A168: bjf9-mvh8-thg5 | B168: Bolivia - Cochabamba - Pocona - Lope Mendoza - Lagunilla | C168: BOI-GALAXIJ5-08 | D168: 3222481058 | E168: 10-06-2021 15:10:16 UTC | F168: Pocona 1 | G168: 00:39:56 | H168: 1 | I168: Bolivia | J168: Cochabamba | L168: Pocona | M168: Lope Mendoza | N168: Lagunilla | O168: -17.59585459 | P168: -65.32072352 | Q168: 3014.0 | R168: https://waterforpeople.s3.amazonaws.com/images/c3a8106c-2e6a-43a0-b68f-d37af6d6b5b1.jpg | S168: 1 | T168: Lagunilla | U168: Dispersa | V168: Iglesia | W168: 25 | X168: 15 | Y168: 15 | Z168: 0 | AA168: 45 | AB168: Si | AC168: Sistema por gravedad | AE168: Si | AH168: 2000 | AI168: Si | AL168: No | AO168: Si - se realizaron pruebas hoy | AP168: No | AR168: Si | AS168: Ausencia | AT168: No | AV168: Si | AW168: 2.6 | AX168: No | BE168: 0.5 | BF168: 40 | BG168: 24 | BH168: No | BM168: Si | BN168: Malo | BO168: Si | BP168: Filtracion del tanque y red | BT168: Si | BU168: Si | BV168: Entel | BW168: Si | BX168: No | BY168: Queman|Entierran | BZ168: No | CB168: Si | CC168: Radio Pocona, Radio Guadalupe | CD168: No | CE168: No | CF168: 1317209be73739cbc14358e47ccea73
A169: 5h79-5ymg-bx1s | B169: Bolivia - Cochabamba - Pocona - Lope Mendoza - Lope Mendoza Grande | C169: BOI-GALAXIJ5-02 | D169: 3224541099 | E169: 10-06-2021 14:25:12 UTC | F169: Pocona2 | G169: 00:07:58 | H169: 1 | I169: Bolivia | J169: Cochabamba | L169: Pocona | M169: Lope Mendoza | N169: Lope Mendoza | O169: -17.51722028 | P169: -65.3741021 | Q169: 3113.0 | R169: https://waterforpeople.s3.amazonaws.com/images/f98dfe36-97e2-4a8b-b102-5a8f09a69bb3.jpg | S169: 1 | T169: Lope Mendoza | U169: Dispersa | V169: Gobierno Nacional|Municipio|Comité de Agua | W169: 34 | X169: 34 | Y169: 34 | Z169: 0 | AA169: 102 | AB169: Si | AC169: Sistema por gravedad | AE169: Si | AH169: 1992 | AI169: Si | AL169: Si | AM169: 2 | AN169: 2 | AO169: Si - se realizaron pruebas hoy | AP169: No | AR169: Si | AS169: Presencia | AT169: No | AV169: Si | AW169: 1.03 | AX169: No | BE169: 1.5 | BF169: 13.33333333 | BG169: 24 | BH169: No | BM169: Si | BN169: Bueno | BO169: Si | BP169: Tanque Con fisura y limpieza de tanque interior | BT169: Si | BU169: Si | BV169: Entel | BW169: Si | BX169: No | BY169: Botan al rio, quebrada | BZ169: Si | CA169: red tv unitel | CB169: Si | CC169: causachun coca | CD169: No | CE169: No | CF169: 7ba7d43f8ccb2195808df1e75214cca4
A170: vwyj-vm5y-b3be | B170: Bolivia - Cochabamba - Pocona - Lope Mendoza - Lope Mendoza Alto | C170: Boi-100-1 | D170: 3224540762 | E170: 10-06-2021 15:46:18 UTC | F170: Llasa | G170: 00:13:25 | H170: 1 | I170: Bolivia | J170: Cochabamba | L170: Pocona | M170: Lope Mendoza | N170: Lope Mendoza Alto | O170: -17.51088117 | P170: -65.38695048 | Q170: 3251.0 | R170: https://waterforpeople.s3.amazonaws.com/images/0a0b1517-c8f1-4567-9eee-a91555e4f11f.jpg | S170: 1 | T170: Lope Mendoza Alto | U170: Semi dispersa | V170: Municipio | W170: 64 | X170: 64 | Y170: 54 | Z170: 0 | AA170: 162 | AB170: Si | AC170: Sistema por gravedad | AE170: Si | AH170: 2019 | AI170: Si | AL170: No | AO170: Si - se realizaron pruebas hoy | AP170: No | AR170: Si | AS170: Ausencia | AT170: No | AV170: Si | AW170: 0.6 | AX170: No | BE170: 1.9 | BF170: 10.52631579 | BG170: 24 | BH170: No | BM170: Si | BN170: Bueno | BO170: No | BT170: Si | BU170: Si | BV170: Entel | BW170: Si | BX170: No | BY170: Queman|Botan al rio, quebrada | BZ170: Si | CA170: unitel | CB170: Si | CC170: radio bella morena, causachun coca | CD170: No | CE170: No | CF170: 30967794235aa4cf9568459e8ba1f86
A171: 4phv-x4jt-w4yw | B171: Bolivia - Cochabamba - Pocona - Lope Mendoza - Chullchungani | C171: BOI-GALAXIJ5-08 | D171: 3252711217 | E171: 10-06-2021 15:04:00 UTC | F171: Pocona 1 | G171: 00:20:13 | H171: 1 | I171: Bolivia | J171: Cochabamba | L171: Pocona | M171: Lope Mendoza | N171: Mataral Arriba | O171: -17.58637606 | P171: -65.34364242 | Q171: 3024.0 | R171: https://waterforpeople.s3.amazonaws.com/images/6f575919-2f6c-4171-926d-4d0b8cbfa28d.jpg | S171: 2 | T171: Mataral Arriba y Mataral Abajo | U171: Semi dispersa | V171: Iglesia | W171: 32 | X171: 20 | Y171: 20 | Z171: 0 | AA171: 60 | AB171: Si | AC171: Sistema por gravedad | AE171: Si | AH171: 2002 | AI171: Si | AL171: No | AO171: Si - se realizaron pruebas hoy | AP171: No | AR171: Si | AS171: Presencia | AT171: No | AV171: Si | AW171: 1.25 | AX171: No | BE171: 1.5 | BF171: 13.33333333 | BG171: 24 | BH171: No | BM171: Si | BN171: Bueno | BO171: No | BT171: Si | BU171: Si | BV171: Entel | BW171: Si | BX171: No | BY171: Queman | BZ171: No | CB171: Si | CC171: Radio Totora y Pocona | CD171: No | CE171: No | CF171: eeac43401af1d9435ff5ffc0d5cf366f
A172: uekh-ybf8-wxbq | B172: Bolivia - Cochabamba - Pocona - Lope Mendoza - Villa Mojon | C172: Boi-100-1 | D172: 3232640641 | E172: 10-06-2021 15:26:54 UTC | F172: Llasa | G172: 00:17:06 | H172: 1 | I172: Bolivia | J172: Cochabamba | L172: Pocona | M172: Lope Mendoza | N172: Mojon | O172: -17.49710169 | P172: -65.42057773 | Q172: 3298.0 | R172: https://waterforpeople.s3.amazonaws.com/images/71d2c459-0d62-4619-88ac-96b5ed1bae84.jpg | S172: 1 | T172: Villa Mojon | U172: Semi dispersa | V172: Municipio | W172: 85 | X172: 85 | Y172: 85 | Z172: 0 | AA172: 255 | AB172: Si | AC172: Sistema por gravedad | AE172: Si | AH172: 2016 | AI172: Si | AL172: No | AO172: Si - se realizaron pruebas hoy | AP172: No | AR172: Si | AS172: Ausencia | AT172: No | AV172: Si | AW172: 0.8 | AX172: No | BE172: 1.4 | BF172: 14.28571429 | BG172: 24 | BH172: No | BM172: Si | BN172: Bueno | BO172: No | BT172: Si | BU172: Si | BV172: Entel | BW172: Si | BX172: No | BY172: Queman|Botan al rio, quebrada | BZ172: Si | CA172: unitel | CB172: Si | CC172: causachun coca, radio bella morena | CD172: No | CE172: No | CF172: 65bf85d97f2b3a5264995e76c0da9
A173: sqhf-snrt-8b0m | B173: Bolivia - Cochabamba - Pocona - Lope Mendoza - Muyurina | C173: Boi-100-1 | D173: 3230920722 | E173: 10-06-2021 15:24:24 UTC | F173: Llasa | G173: 00:07:45 | H173: 1 | I173: Bolivia | J173: Cochabamba | L173: Pocona | M173: Lope Mendoza | N173: Muyurina | O173: -17.53386535 | P173: -65.3933482 | Q173: 3051.0 | R173: https://waterforpeople.s3.amazonaws.com/images/77827602-46a3-4cd5-b41b-825688ca4ad9.jpg | S173: 1 | T173: Muyurina | U173: Semi dispersa | V173: Municipio | W173: 64 | X173: 64 | Y173: 55 | Z173: 9 | AA173: 165 | AB173: Si | AC173: Sistema por gravedad | AE173: Si | AH173: 2021 | AI173: Si | AL173: No | AO173: Si - se realizaron pruebas hoy | AP173: No | AR173: Si | AS173: Ausencia | AT173: No | AV173: Si | AW173: 0.68 | AX173: No | BE173: 1.8 | BF173: 11.11111111 | BG173: 24 | BH173: No | BM173: Si | BN173: Bueno | BO173: No | BP173: muyurina-punto1 | BT173: Si | BU173: Si | BV173: Entel | BW173: Si | BX173: No | BY173: Queman|Botan al rio, quebrada | BZ173: Si | CA173: unitel | CB173: Si | CC173: radio bella morena, causachun coca | CD173: No | CE173: No | CF173: 3b559131ff79386d52e38764bc87c8
A174: gt8m-reh8-nv1s | B174: Bolivia - Cochabamba - Pocona - Lope Mendoza - Muyurina | C174: Boi-100-1 | D174: 3240610632 | E174: 10-06-2021 15:24:55 UTC | F174: Llasa | G174: 00:08:00 | H174: 1 | I174: Bolivia | J174: Cochabamba | L174: Pocona | M174: Lope Mendoza | N174: Muyurina | O174: -17.51004827 | P174: -65.39004369 | Q174: 3246.0 | R174: https://waterforpeople.s3.amazonaws.com/images/e54a0fa5-68b2-4755-a187-c7fca9b77ae8.jpg | S174: 1 | T174: Muyurina | U174: Semi dispersa | V174: Municipio | W174: 64 | X174: 64 | Y174: 55 | Z174: 0 | AA174: 165 | AB174: Si | AC174: Sistema por gravedad | AE174: Si | AH174: 2021 | AI174: Si | AL174: No | AO174: Si - se realizaron pruebas hoy | AP174: No | AR174: Si | AS174: Presencia | AT174: No | AV174: Si | AW174: 11.6 | AX174: No | BE174: 1.6 | BF174: 12.5 | BG174: 24 | BH174: No | BM174: Si | BN174: Bueno | BO174: No | BP174: moyurina-punto 2 | BT174: Si | BU174: Si | BV174: Entel | BW174: Si | BX174: No | BY174: Queman|Botan al rio, quebrada | BZ174: Si | CA174: unitel, ATB | CB174: Si | CC174: bella morena, causachun coca, radio la calle | CD174: No | CE174: No | CF174: 6b286c5887c6558619539989545927d
A175: ua3q-9ktp-rg85 | B175: Bolivia - Cochabamba - Pocona - Mauka Pocona - Chilliijchi Norte | C175: BOI-GALAXIJ5-08 | D175: 3250851607 | E175: 11-06-2021 16:23:47 UTC | F175: Pocona 1 | G175: 00:19:25 | H175: 1 | I175: Bolivia | J175: Cochabamba | L175: Pocona | M175: Mauka Pocona | N175: Chilliijchi Norte | O175: -17.65121111 | P175: -65.34737569 | Q175: 2631.0 | R175: https://waterforpeople.s3.amazonaws.com/images/bea42917-ec6c-41f5-8802-3f0317b99ac7.jpg | S175: 1 | T175: Chilliijchi Norte | U175: Semi dispersa | V175: Municipio | W175: 28 | X175: 27 | Y175: 17 | Z175: 10 | AA175: 51 | AB175: Si | AC175: Sistema por gravedad | AE175: Si | AH175: 2004 | AI175: Si | AL175: No | AO175: Si - se realizaron pruebas hoy | AP175: No | AR175: Si | AS175: Ausencia | AT175: No | AV175: Si | AW175: 8.06 | AX175: No | BE175: 1.5 | BF175: 13.33333333 | BG175: 24 | BH175: No | BM175: Si | BN175: Bueno | BO175: Si | BP175: Hay problema en el paso de quebrada | BT175: Si | BU175: Si | BV175: Entel|Tigo | BW175: Si | BX175: No | BY175: Queman|Entierran | BZ175: No | CB175: Si | CC175: Radio Pocona | CD175: No | CE175: No | CF175: 7790e5c62c30f5fd6e6bb1cb7b9feff8
A176: kq7m-65kh-4k17 | B176: Bolivia - Cochabamba - Pocona - Mauka Pocona - Chillijchi | C176: BOI-GALAXIJ5-02 | D176: 3220780261 | E176: 04-06-2021 14:06:43 UTC | F176: Pocona2 | G176: 00:23:59 | H176: 1 | I176: Bolivia | J176: Cochabamba | L176: Pocona | M176: Mauka Pocona | N176: Chillijchi | O176: -17.66732679 | P176: -65.341511 | Q176: 2543.0 | R176: https://waterforpeople.s3.amazonaws.com/images/dec75bed-8b04-40ec-8a98-316c67262f17.jpg | S176: 1 | T176: Chillijchi | U176: Semi dispersa | V176: Iglesia | W176: 49 | X176: 30 | Y176: 30 | Z176: 0 | AA176: 90 | AB176: Si | AC176: Sistema por gravedad | AE176: Si | AH176: 1994 | AI176: Si | AL176: No | AO176: Si - se realizaron pruebas hoy | AP176: No | AR176: Si | AS176: Ausencia | AT176: No | AV176: Si | AW176: 2.3 | AX176: No | BE176: 1.5 | BF176: 13.33333333 | BG176: 24 | BH176: No | BM176: Si | BN176: Bueno | BO176: No | BT176: Si | BU176: Si | BV176: Entel | BW176: Si | BX176: No | BY176: Queman | BZ176: Si | CA176: unitel. con plato | CB176: Si | CC176: varios | CD176: No | CE176: No | CF176: 83c5b8d161181bc66e3011a8d52a8a32
A177: 35f6-7vt3-7j1w | B177: Bolivia - Cochabamba - Pocona - Mauka Pocona - Copa Rancho | C177: BOI-GALAXIJ5-02 | D177: 3228700761 | E177: 10-06-2021 13:42:54 UTC | F177: Pocona2 | G177: 00:06:06 | H177: 1 | I177: Bolivia | J177: Cochabamba | L177: Pocona | M177: Mauka Pocona | N177: Copa Rancho | O177: -17.6668185 | P177: -65.35312644 | Q177: 3068.0 | R177: https://waterforpeople.s3.amazonaws.com/images/6d6d5089-699b-4c66-b8f1-11722705ffb4.jpg | S177: 1 | T177: Copa Rancho | U177: Dispersa | V177: Municipio|Otra ONG | W177: 48 | X177: 48 | Y177: 48 | Z177: 0 | AA177: 144 | AB177: Si | AC177: Sistema por gravedad | AE177: No | AH177: 2014 | AI177: Si | AL177: No | AO177: Si - se realizaron pruebas hoy | AP177: No | AR177: Si | AS177: Presencia | AT177: No | AV177: Si | AW177: 3.03 | AX177: No | BE177: 1.5 | BF177: 13.33333333 | BG177: 24 | BH177: No | BM177: Si | BN177: Bueno | BO177: Si | BP177: Cañeria negra | BT177: Si | BU177: Si | BV177: Entel|Tigo | BW177: Si | BX177: No | BY177: Entierran|Botan al rio, quebrada | BZ177: Si | CA177: tv lugar unitel | CB177: Si | CC177: causachun coca | CD177: No | CE177: No | CF177: 6e90968fb9e968da8768de2d76f453c
A178: t267-xam9-mbgb | B178: Bolivia - Cochabamba - Pocona - Mauka Pocona - Qhopi | C178: BOI-GALAXIJ5-02 | D178: 3224520229 | E178: 04-06-2021 13:57:38 UTC | F178: Pocona2 | G178: 00:24:23 | H178: 1 | I178: Bolivia | J178: Cochabamba | L178: Pocona | M178: Mauka Pocona | N178: Qhopi | O178: -17.68291453 | P178: -65.36025003 | Q178: 2550.0 | R178: https://waterforpeople.s3.amazonaws.com/images/aecfa9bb-09b8-4206-87b8-0159b67e8706.jpg | S178: 1 | T178: Qhopi | U178: Semi dispersa | V178: Municipio|Otra ONG | W178: 124 | X178: 70 | Y178: 70 | Z178: 0 | AA178: 210 | AB178: Si | AC178: Sistema por gravedad | AE178: Si | AH178: 2011 | AI178: Si | AL178: No | AO178: Si - se realizaron pruebas hoy | AP178: No | AR178: Si | AS178: Ausencia | AT178: No | AV178: Si | AW178: 2.1 | AX178: No | BE178: 2 | BF178: 10 | BG178: 24 | BH178: No | BM178: Si | BN178: Bueno | BO178: No | BT178: Si | BU178: Si | BV178: Entel | BW178: Si | BX178: No | BY178: Queman|Botan al rio, quebrada | BZ178: Si | CA178: canal unitel por plato | CB178: Si | CC178: totora radio | CD178: No | CE178: No | CF178: 24f595b62a2a2a87431d23c5c2f4f20
A179: heau-1xq8-v37d | B179: Bolivia - Cochabamba - Pocona - Mauka Pocona - Qhopi Esquina | C179: Boi-100-1 | D179: 3236440419 | E179: 03-01-2015 17:32:41 UTC | F179: Llasa | G179: 00:28:42 | H179: 1 | I179: Bolivia | J179: Cochabamba | L179: Pocona | M179: Mauka Pocona | N179: Qhopi Esquina | O179: -17.69705867 | P179: -65.34527928 | Q179: 2527.0 | R179: https://waterforpeople.s3.amazonaws.com/images/3104c851-ac39-4d50-9323-b27abc4910d3.jpg | S179: 1 | T179: Qhopi Esquina | U179: Semi dispersa | V179: Municipio | W179: 22 | X179: 22 | Y179: 22 | Z179: 0 | AA179: 66 | AB179: Si | AC179: Sistema por gravedad | AE179: Si | AH179: 2008 | AI179: Si | AL179: No | AO179: Si - se realizaron pruebas hoy | AP179: No | AR179: Si | AS179: Ausencia | AT179: No | AV179: Si | AW179: 1.19 | AX179: No | BE179: 0.25 | BF179: 80 | BG179: 24 | BH179: No | BM179: Si | BN179: Bueno | BO179: No | BT179: Si | BU179: Si | BV179: Entel | BW179: Si | BX179: No | BY179: Botan al rio, quebrada | BZ179: Si | CA179: unitel, ATB | CB179: Si | CC179: radio totora, causachun coca | CD179: No | CE179: No | CF179: fa1decff66d38b1a10d381e3382faa39
A180: m76y-02w0-118n | B180: Bolivia - Cochabamba - Pocona - Pampa Grande - Conda Arriba | C180: Boi-100-1 | D180: 3232600392 | E180: 03-01-2015 18:12:33 UTC | F180: Llasa | G180: 00:20:31 | H180: 1 | I180: Bolivia | J180: Cochabamba | L180: Pocona | M180: Pampa Grande | N180: Conda Arriba | O180: -17.70776707 | P180: -65.3615312 | Q180: 2446.0 | R180: https://waterforpeople.s3.amazonaws.com/images/5081b05f-2fe4-4739-9239-622f51c78874.jpg | S180: 1 | T180: Conda Arriba | U180: Semi dispersa | V180: Comité de Agua | W180: 45 | X180: 45 | Y180: 0 | Z180: 45 | AB180: No | AF180: Vertiente no protegida | BJ180: 4 | BK180: 5 | BL180: 3 | BQ180: No | BS180: Comunidad en conflictos social por la fuente de agua | BT180: Si | BU180: Si | BV180: Entel | BW180: Si | BX180: No | BY180: Botan al rio, quebrada | BZ180: Si | CA180: unitel | CB180: Si | CC180: causachun coca, radio totora | CD180: No | CE180: No | CF180: eae769e023bf46637a4cc43aeb2a20
A181: x13m-khq8-cnqd | B181: Bolivia - Cochabamba - Pocona - Pampa Grande - Conda Arriba | C181: BOI-GALAXIJ5-02 | D181: 3234870980 | E181: 10-06-2021 13:59:01 UTC | F181: Pocona2 | G181: 00:06:21 | H181: 1 | I181: Bolivia | J181: Cochabamba | L181: Pocona | M181: Pampa Grande | N181: Conda Arriba | O181: -17.7318978 | P181: -65.35139488 | Q181: 2160.0 | R181: https://waterforpeople.s3.amazonaws.com/images/20398fd7-9948-443e-911e-529c03f1db99.jpg | S181: 1 | T181: Zona Tambo Pampa Grande | U181: Dispersa | V181: Comité de Agua | W181: 4 | X181: 4 | Y181: 4 | Z181: 0 | AA181: 12 | AB181: Si | AC181: Sistema por gravedad | AE181: No | AH181: 2010 | AI181: Si | AL181: No | AO181: Si - se realizaron pruebas hoy | AP181: No | AR181: Si | AS181: Presencia | AT181: No | AV181: Si | AW181: 0.86 | AX181: No | BE181: 0.2 | BF181: =IF(BE181="","",(20/BE181)) -> 100 | BG181: 24 | BH181: No | BM181: Si | BN181: Malo | BO181: Si | BP181: Cañeria negra para grifos y con filtracion | BT181: No | BU181: No | BW181: No | BX181: No | BY181: Botan al rio, quebrada | BZ181: No | CB181: No | CD181: No | CE181: No | CF181: b2ba6ebe2143d4c7a9cd9b72c8fdb8
A182: 7k2w-ugf0-g1us | B182: Bolivia - Cochabamba - Pocona - Pampa Grande - Conda Arriba Este | C182: Boi-100-1 | D182: 3224520433 | E182: 03-01-2015 18:06:37 UTC | F182: Llasa | G182: 00:14:22 | H182: 1 | I182: Bolivia | J182: Cochabamba | L182: Pocona | M182: Pampa Grande | N182: Conda Arriba Este | O182: -17.70747459 | P182: -65.3495727 | Q182: 2401.0 | R182: https://waterforpeople.s3.amazonaws.com/images/dfaa44d8-5377-449f-bd11-a0cf18f60d6f.jpg | S182: 1 | T182: Conda Arriba Este | U182: Dispersa | V182: Comité de Agua | W182: 32 | X182: 32 | Y182: 0 | Z182: 32 | AB182: No | AF182: Rio | BJ182: 4 | BK182: 5 | BL182: 3 | BQ182: No | BS182: Comunidad en conflictos social por la fuente de agua | BT182: No | BU182: Si | BV182: Entel | BW182: Si | BX182: No | BY182: Queman | BZ182: Si | CA182: unitel | CB182: Si | CC182: causachun coca, radio totora | CD182: No | CE182: No | CF182: 66eef277216e3bd158a893d3e5bfbd1
A183: 4541-nrhh-s8sr | B183: Bolivia - Cochabamba - Pocona - Pampa Grande - Conda Baja | C183: Boi-100-1 | D183: 3252650316 | E183: 03-01-2015 18:23:28 UTC | F183: Llasa | G183: 00:11:45 | H183: 1 | I183: Bolivia | J183: Cochabamba | L183: Pocona | M183: Pampa Grande | N183: Conda Baja | O183: -17.71978908 | P183: -65.38326242 | Q183: 2488.0 | R183: https://waterforpeople.s3.amazonaws.com/images/dc12815d-83f3-441c-a644-06aeda96eca3.jpg | S183: 1 | T183: Conda Baja | U183: Concentrada | V183: Comité de Agua | W183: 70 | X183: 70 | Y183: 70 | Z183: 0 | AA183: 210 | AB183: Si | AC183: Sistema por gravedad | AE183: Si | AH183: 2014 | AI183: Si | AL183: No | AO183: Si - se realizaron pruebas hoy | AP183: No | AR183: Si | AS183: Ausencia | AT183: No | AV183: Si | AW183: 5 | AX183: No | BE183: 2 | BF183: =IF(BE183="","",(20/BE183)) -> 10 | BG183: 24 | BH183: No | BM183: Si | BN183: Bueno | BO183: No | BT183: Si | BU183: Si | BV183: Entel | BW183: Si | BX183: No | BY183: Queman|Botan al rio, quebrada | BZ183: Si | CA183: unitel | CB183: Si | CC183: radio totora, causachun coca | CD183: No | CE183: No | CF183: a8d6914266e9bde6396e7ff8213075
A184: 8w83-sa6h-0mpf | B184: Bolivia - Cochabamba - Pocona - Pampa Grande - Conda Baja | C184: Boi-100-1 | D184: 3230810476 | E184: 03-01-2015 18:24:00 UTC | F184: Llasa | G184: 00:14:13 | H184: 1 | I184: Bolivia | J184: Cochabamba | L184: Pocona | M184: Pampa Grande | N184: Conda Baja | O184: -17.71981665 | P184: -65.38962687 | Q184: 2596.0 | R184: https://waterforpeople.s3.amazonaws.com/images/97d22ddd-e806-451b-b558-25b17e096f21.jpg | S184: 1 | T184: Conda Baja | U184: Concentrada | V184: Municipio | W184: 60 | X184: 60 | Y184: 60 | Z184: 0 | AA184: 180 | AB184: Si | AC184: Sistema por gravedad | AE184: Si | AH184: 2014 | AI184: Si | AL184: No | AO184: Si - se realizaron pruebas hoy | AP184: No | AR184: Si | AS184: Ausencia | AT184: No | AV184: Si | AW184: 2.2 | AX184: No | BE184: 1.6 | BF184: 12.5 | BG184: 24 | BH184: No | BM184: Si | BN184: Bueno | BO184: No | BT184: Si | BU184: Si | BV184: Entel | BW184: Si | BX184: No | BY184: Queman|Botan al rio, quebrada | BZ184: Si | CA184: unitel | CB184: Si | CC184: radio totora, causachun coca | CD184: Si | CE184: Si | CF184: 91b4c7512d9a1d77ce482a1d9c51ea
A185: hyvg-6dvc-xg0e | B185: Bolivia - Cochabamba - Pocona - Pampa Grande - Qaqa Huasi | C185: Boi-100-1 | D185: 3238710425 | E185: 03-01-2015 18:30:47 UTC | F185: Llasa | G185: 00:14:20 | H185: 1 | I185: Bolivia | J185: Cochabamba | L185: Pocona | M185: Pampa Grande | N185: Qaqa Huasi | O185: -17.74765855 | P185: -65.37684061 | Q185: 2590.0 | R185: https://waterforpeople.s3.amazonaws.com/images/8a306084-a875-4fb1-b06c-9398a9df110d.jpg | S185: 1 | T185: Qaqa Huasi | U185: Dispersa | V185: Comité de Agua | W185: 12 | X185: 12 | Y185: 12 | Z185: 0 | AA185: 36 | AB185: Si | AC185: Sistema por gravedad | AE185: Si | AH185: 1999 | AI185: Si | AL185: No | AO185: Si - se realizaron pruebas hoy | AP185: No | AR185: Si | AS185: Presencia | AT185: No | AV185: Si | AW185: 4.5 | AX185: No | BE185: 1.2 | BF185: 16.66666667 | BG185: 24 | BH185: No | BM185: Si | BN185: Malo | BO185: Si | BP185: El tanque de agua esta en mal estado, tiene filtracion por sus laterales-punto 1 | BT185: Si | BU185: Si | BV185: Entel | BW185: Si | BX185: No | BY185: Queman|Botan al rio, quebrada | BZ185: Si | CA185: unitel, ATB | CB185: Si | CC185: radio totora, causachun coca | CD185: No | CE185: No | CF185: e65d85fa6c673310553988cc7b5e91e8
A186: 3cpa-b6n4-fmwx | B186: Bolivia - Cochabamba - Pocona - Pampa Grande - Qaqa Huasi | C186: Boi-100-1 | D186: 3242670463 | E186: 03-01-2015 18:34:18 UTC | F186: Llasa | G186: 00:14:30 | H186: 1 | I186: Bolivia | J186: Cochabamba | L186: Pocona | M186: Pampa Grande | N186: Qaqa Huasi | O186: -17.76157389 | P186: -65.38713961 | Q186: 2810.0 | R186: https://waterforpeople.s3.amazonaws.com/images/d3bbe49e-5f10-4f7c-a807-67cce7ff5c86.jpg | S186: 1 | T186: Zona Puka Loma | U186: Dispersa | V186: Municipio | W186: 21 | X186: 21 | Y186: 21 | Z186: 0 | AA186: 63 | AB186: Si | AC186: Sistema por gravedad | AE186: Si | AH186: 2009 | AI186: Si | AL186: No | AO186: No | BE186: 0.2 | BF186: 100 | BG186: 24 | BH186: No | BM186: Si | BN186: Bueno | BO186: Si | BP186: Qaqa Huasi Puca loma, conecciones domiciliarias con cañerias negras-punto 2 | BT186: Si | BU186: Si | BV186: Entel | BW186: Si | BX186: No | BY186: Queman|Botan al rio, quebrada | BZ186: Si | CA186: ATB, unitel | CB186: Si | CC186: casuchun coca, radio totora | CD186: No | CE186: No | CF186: 7f9ef1b8edb2d6c3465c6b793e1322
A187: bsr3-bp4g-ngqb | B187: Bolivia - Cochabamba - Pocona - Pampa Grande - Thio Thio | C187: Boi-100-1 | D187: 3248590472 | E187: 03-01-2015 18:19:01 UTC | F187: Llasa | G187: 00:21:55 | H187: 1 | I187: Bolivia | J187: Cochabamba | L187: Pocona | M187: Pampa Grande | N187: Thio Thio | O187: -17.71398695 | P187: -65.3736669 | Q187: 2535.0 | R187: https://waterforpeople.s3.amazonaws.com/images/872fad09-0623-4a78-a52f-488ca0ae3f7b.jpg | S187: 1 | T187: Thio Thio | U187: Semi dispersa | V187: Comité de Agua | W187: 32 | X187: 20 | Y187: 20 | Z187: 0 | AA187: 60 | AB187: Si | AC187: Sistema por gravedad | AE187: Si | AH187: 2003 | AI187: Si | AL187: No | AO187: Si - se realizaron pruebas hoy | AP187: No | AR187: Si | AS187: Presencia | AT187: No | AV187: Si | AW187: 4.3 | AX187: No | BE187: 0.22 | BF187: 90.90909091 | BG187: 24 | BH187: No | BM187: Si | BN187: Bueno | BO187: Si | BP187: La comunidad construyo con sus propios recursos el tanque de agua para su consumo humano | BT187: Si | BU187: Si | BV187: Entel | BW187: Si | BX187: No | BY187: Botan al rio, quebrada | BZ187: Si | CA187: unitel | CB187: Si | CC187: causachun coca, radio totora | CD187: No | CE187: No | CF187: 378cd94f7176e4875ec3133a19f8dc39
A188: r5px-c44q-u1mk | B188: Bolivia - Cochabamba - Pocona - Pampa Loma - Churo Alto | C188: Boi-100-1 | D188: 3220830696 | E188: 10-06-2021 15:48:47 UTC | F188: Llasa | G188: 00:11:18 | H188: 1 | I188: Bolivia | J188: Cochabamba | L188: Pocona | M188: Pampa Loma | N188: Churo Alto | O188: -17.54287993 | P188: -65.49738436 | Q188: 3854.0 | R188: https://waterforpeople.s3.amazonaws.com/images/b46d087e-ab8a-471d-af56-d129b495fcfd.jpg | S188: 1 | T188: Churo Alto | U188: Dispersa | V188: Comité de Agua | W188: 20 | X188: 8 | Y188: 8 | Z188: 0 | AA188: 24 | AB188: Si | AC188: Sistema por gravedad | AE188: Si | AH188: 2018 | AI188: Si | AL188: No | AO188: Si - se realizaron pruebas hoy | AP188: No | AR188: Si | AS188: Ausencia | AT188: No | AV188: Si | AW188: 0.82 | AX188: No | BE188: 1.1 | BF188: 18.18181818 | BG188: 24 | BH188: No | BM188: Si | BN188: Bueno | BO188: No | BT188: Si | BU188: Si | BV188: Entel | BW188: Si | BX188: No | BY188: Queman|Botan al rio, quebrada | BZ188: Si | CA188: canal 7 | CB188: Si | CC188: chiwalaqui | CD188: No | CE188: No | CF188: d53746512591a9676bb3a21869ee5573
A189: 0e1x-nc5d-p7pm | B189: Bolivia - Cochabamba - Pocona - Pampa Loma - Jatun Kasa | C189: Boi-100-1 | D189: 3222480692 | E189: 11-06-2021 14:55:51 UTC | F189: Llasa | G189: 00:13:05 | H189: 1 | I189: Bolivia | J189: Cochabamba | L189: Pocona | M189: Pampa Loma | N189: Jatun Kasa | O189: -17.5880466 | P189: -65.45263033 | Q189: 3287.0 | R189: https://waterforpeople.s3.amazonaws.com/images/7aab8ab2-17ed-4f00-96a1-c8a253d55968.jpg | S189: 1 | T189: Jatun Kasa | U189: Dispersa | V189: Iglesia | W189: 18 | X189: 12 | Y189: 12 | Z189: 0 | AA189: 36 | AB189: Si | AC189: Sistema por gravedad | AE189: No | AH189: 1997 | AI189: Si | AL189: No | AO189: Si - se realizaron pruebas hoy | AP189: No | AR189: Si | AS189: Ausencia | AT189: No | AV189: Si | AW189: 2.85 | AX189: No | BE189: 0.3 | BF189: 66.66666667 | BG189: 24 | BH189: No | BM189: Si | BN189: Malo | BO189: No | BP189: Red con fugas | BT189: No | BU189: Si | BV189: Entel | BW189: Si | BX189: No | BY189: Queman|Botan al rio, quebrada | BZ189: No | CB189: Si | CC189: municipal pocona, la calle | CD189: No | CE189: No | CF189: 232a3991d236bcd4327e95595368bcd
A190: b57q-ss6s-6ad3 | B190: Bolivia - Cochabamba - Pocona - Pampa Loma - Mama Huasi Alto | C190: Boi-100-1 | D190: 3242740683 | E190: 11-06-2021 14:54:02 UTC | F190: Llasa | G190: 00:11:42 | H190: 1 | I190: Bolivia | J190: Cochabamba | L190: Pocona | M190: Pampa Loma | N190: Mama Huasi Alto | O190: -17.55277285 | P190: -65.48089006 | Q190: 3642.0 | R190: https://waterforpeople.s3.amazonaws.com/images/fce31f5c-fc9b-45e5-83a2-f78d08d98b6d.jpg | S190: 1 | T190: Mama Huasi Alto y Pujru Pujru | U190: Dispersa | V190: Municipio | W190: 80 | X190: 65 | Y190: 65 | Z190: 0 | AA190: 195 | AB190: Si | AC190: Sistema por gravedad | AE190: Si | AH190: 1999 | AI190: Si | AL190: No | AO190: Si - se realizaron pruebas hoy | AP190: No | AR190: Si | AS190: Ausencia | AT190: No | AV190: Si | AW190: 5.63 | AX190: No | BE190: 1 | BF190: 20 | BG190: 24 | BH190: No | BM190: Si | BN190: Bueno | BO190: Si | BT190: Si | BU190: Si | BV190: Entel | BW190: Si | BX190: No | BY190: Queman|Botan al rio, quebrada | BZ190: Si | CA190: ATB, UNITEL | CB190: Si | CC190: la calle, causachun coca | CD190: No | CE190: No | CF190: dabcb29805e576735e71f101b3530d
A191: 9u3g-ytfm-53sm | B191: Bolivia - Cochabamba - Pocona - Pampa Loma - Mama Huasi Bajo | C191: Boi-100-1 | D191: 3224540882 | E191: 11-06-2021 14:37:37 UTC | F191: Llasa | G191: 00:04:27 | H191: 1 | I191: Bolivia | J191: Cochabamba | L191: Pocona | M191: Pampa Loma | N191: Mama Huasi Bajo | O191: -17.57798254 | P191: -65.44365526 | Q191: 3501.0 | R191: https://waterforpeople.s3.amazonaws.com/images/58798d27-994f-4a74-a786-22434c223b98.jpg | S191: 1 | T191: Mama Huasi Bajo | U191: Dispersa | V191: Municipio | W191: 30 | X191: 30 | Y191: 30 | Z191: 0 | AA191: 90 | AB191: Si | AC191: Sistema por gravedad | AE191: Si | AH191: 2014 | AI191: Si | AL191: No | AO191: Si - se realizaron pruebas hoy | AP191: No | AR191: Si | AS191: Ausencia | AT191: No | AV191: Si | AW191: 1.48 | AX191: No | BE191: 1.2 | BF191: 16.66666667 | BG191: 24 | BH191: No | BM191: Si | BN191: Bueno | BO191: No | BT191: Si | BU191: Si | BV191: Entel | BW191: Si | BX191: No | BY191: Queman|Botan al rio, quebrada | BZ191: Si | CA191: unitel | CB191: Si | CC191: la calle, bella morena | CD191: No | CE191: No | CF191: 86b335bf08cc3b8bdc28f048c02be2
A192: 51cv-033y-npek | B192: Bolivia - Cochabamba - Pocona - Pampa Loma - Vacas Kuchu | C192: BOI-GALAXIJ5-08 | D192: 3240621267 | E192: 11-06-2021 15:00:27 UTC | F192: Pocona 1 | G192: 00:05:49 | H192: 1 | I192: Bolivia | J192: Cochabamba | L192: Pocona | M192: Pampa Loma | N192: Vacas Kuchu | O192: -17.59450839 | P192: -65.44446899 | Q192: 3452.0 | R192: https://waterforpeople.s3.amazonaws.com/images/b8881325-9e56-454f-8377-92145b2b7e0a.jpg | S192: 1 | T192: Vacas Kuchu | U192: Semi dispersa | V192: Otra ONG | W192: 29 | X192: 20 | Y192: 20 | Z192: 0 | AA192: 60 | AB192: Si | AC192: Sistema por gravedad | AE192: Si | AH192: 2014 | AI192: Si | AL192: No | AO192: Si - se realizaron pruebas hoy | AP192: No | AR192: Si | AS192: Ausencia | AT192: No | AV192: Si | AW192: 0.8 | AX192: No | BE192: 1 | BF192: 20 | BG192: 24 | BH192: No | BM192: Si | BN192: Bueno | BO192: No | BT192: Si | BU192: Si | BV192: Entel | BW192: Si | BX192: No | BY192: Queman|Entierran | BZ192: No | CB192: Si | CC192: Radio Totora y Pocona | CD192: No | CE192: No | CF192: 75d61331b9fa262a461cdb6b764530fb
A193: 1s2s-9vby-a7r8 | B193: Bolivia - Cochabamba - Pocona - Pampa Loma - Vacas Kuchu | C193: BOI-GALAXIJ5-08 | D193: 3242741190 | E193: 11-06-2021 15:00:50 UTC | F193: Pocona 1 | G193: 00:12:14 | H193: 1 | I193: Bolivia | J193: Cochabamba | L193: Pocona | M193: Pampa Loma | N193: Vacas Kuchu | O193: -17.59745787 | P193: -65.448036 | Q193: 3547.0 | R193: https://waterforpeople.s3.amazonaws.com/images/a5b3f090-ba1e-4c47-8ee7-a0fc75fcda97.jpg | S193: 1 | T193: Vacas Kuchu | U193: Semi dispersa | V193: Otra ONG | W193: 29 | X193: 20 | Y193: 20 | Z193: 0 | AA193: 60 | AB193: Si | AC193: Sistema por gravedad | AE193: No | AH193: 2014 | AI193: Si | AL193: No | AO193: Si - se realizaron pruebas hoy | AP193: No | AR193: Si | AS193: Ausencia | AT193: No | AV193: Si | AW193: 0.8 | AX193: No | BE193: 0.7 | BF193: 28.57142857 | BG193: 24 | BH193: No | BM193: Si | BN193: Bueno | BO193: No | BT193: Si | BU193: Si | BV193: Entel | BW193: Si | BX193: No | BY193: Queman|Entierran | BZ193: No | CB193: Si | CC193: Radio Totora y Pocona | CD193: No | CE193: No | CF193: 5e34f9cc382ecde49e8b7826ce0ba51
A194: 0vps-1yyn-pvh3 | B194: Bolivia - Cochabamba - Pocona - Phuyu Huasi - Quewiñal | C194: BOI-GALAXIJ5-02 | D194: 3252721015 | E194: 10-06-2021 16:02:22 UTC | F194: Pocona2 | G194: 00:23:32 | H194: 1 | I194: Bolivia | J194: Cochabamba | L194: Pocona | M194: Phuyu Huasi | N194: Chaupi Rancho | O194: -17.58084487 | P194: -65.39323103 | Q194: 3408.0 | R194: https://waterforpeople.s3.amazonaws.com/images/d1ac0692-42ea-481a-a04d-02a2b7a1f245.jpg | S194: 2 | T194: Quewiñal y Chaupi Rancho | U194: Dispersa | V194: Municipio|Otra ONG | W194: 10 | X194: 10 | Y194: 10 | Z194: 0 | AA194: =IF(Y194=0,"",(Y194*3)) -> 30 | AB194: Si | AC194: Sistema por gravedad | AE194: Si | AH194: 2019 | AI194: Si | AL194: No | AO194: Si - se realizaron pruebas hoy | AP194: No | AR194: Si | AS194: Presencia | AT194: No | AV194: Si | AW194: 0.61 | AX194: No | BE194: 0.8 | BF194: 25 | BG194: 24 | BH194: No | BM194: Si | BN194: Bueno | BO194: No | BT194: Si | BU194: Si | BV194: Entel | BW194: Si | BX194: No | BY194: Botan al rio, quebrada | BZ194: No | CB194: No | CD194: No | CE194: No | CF194: 6419baf84debeec95eeb7e304e272
A195: nnn5-yee5-5yw3 | B195: Bolivia - Cochabamba - Pocona - Phuyu Huasi - Cuesta Punta B | C195: Boi-100-1 | D195: 3234850633 | E195: 11-06-2021 13:31:06 UTC | F195: Llasa | G195: 00:08:06 | H195: 1 | I195: Bolivia | J195: Cochabamba | L195: Pocona | M195: Phuyu Huasi | N195: Cuesta Punta | O195: -17.5866617 | P195: -65.38354767 | Q195: 3291.0 | R195: https://waterforpeople.s3.amazonaws.com/images/e52a3059-59a3-4f21-9d5b-ba5a6cedb720.jpg | S195: 1 | T195: Cuesta Punta | U195: Semi dispersa | V195: Municipio | W195: 47 | X195: 47 | Y195: 47 | Z195: 0 | AA195: 141 | AB195: Si | AC195: Sistema por gravedad | AE195: Si | AH195: 2013 | AI195: Si | AL195: No | AO195: Si - se realizaron pruebas hoy | AP195: No | AR195: Si | AS195: Ausencia | AT195: No | AV195: Si | AW195: 1.42 | AX195: No | BE195: 1.3 | BF195: 15.38461538 | BG195: 24 | BH195: No | BM195: Si | BN195: Bueno | BO195: Si | BP195: la cominudad es cuesta punta | BT195: Si | BU195: Si | BV195: Entel|Tigo | BW195: Si | BX195: No | BY195: Queman|Botan al rio, quebrada | BZ195: Si | CA195: unitel, ATB | CB195: Si | CC195: bella morena, la calle | CD195: No | CE195: No | CF195: 0623fb32fbf8018697b56f76e661238
A196: cbvh-ce1c-u046 | B196: Bolivia - Cochabamba - Pocona - Phuyu Huasi - Cuesta Punta Arriba | C196: BOI-GALAXIJ5-02 | D196: 3236460964 | E196: 10-06-2021 16:05:09 UTC | F196: Pocona2 | G196: 00:04:16 | H196: 1 | I196: Bolivia | J196: Cochabamba | L196: Pocona | M196: Phuyu Huasi | N196: Cuesta Punta Arriba | O196: -17.59237582 | P196: -65.37567061 | Q196: 3290.0 | R196: https://waterforpeople.s3.amazonaws.com/images/84158b13-2151-4f78-a9c9-da8691d36ad5.jpg | S196: 1 | T196: Cuesta Punta Arriba | U196: Dispersa | V196: Municipio|Otra ONG | W196: 47 | X196: 47 | Y196: 47 | Z196: 0 | AA196: 141 | AB196: Si | AC196: Sistema por gravedad | AE196: Si | AH196: 2017 | AI196: Si | AL196: No | AO196: Si - se realizaron pruebas hoy | AP196: No | AR196: Si | AS196: Ausencia | AT196: No | AV196: Si | AW196: 0.76 | AX196: No | BE196: 1 | BF196: 20 | BG196: 24 | BH196: No | BM196: Si | BN196: Bueno | BO196: No | BT196: Si | BU196: Si | BV196: Entel | BW196: Si | BX196: No | BY196: Botan al rio, quebrada | BZ196: No | CB196: No | CD196: No | CE196: No | CF196: c88143ec863c107831c9e6fb86ad4a
A197: 20wv-h34u-jpxx | B197: Bolivia - Cochabamba - Pocona - Phuyu Huasi - Kullpana | C197: Boi-100-1 | D197: 3252720757 | E197: 11-06-2021 13:49:43 UTC | F197: Llasa | G197: 00:10:11 | H197: 1 | I197: Bolivia | J197: Cochabamba | L197: Pocona | M197: Phuyu Huasi | N197: Kullpana | O197: -17.56794617 | P197: -65.3887774 | Q197: 3217.0 | R197: https://waterforpeople.s3.amazonaws.com/images/760b173c-0785-4931-941a-c51ba738774b.jpg | S197: 0 | T197: Kullpana | U197: Semi dispersa | V197: Comité de Agua | W197: 15 | X197: 15 | Y197: 0 | Z197: 15 | AB197: No | AF197: Vertiente no protegida | BJ197: 4 | BK197: 200 | BL197: 4 | BQ197: No | BS197: ir a la alcaldia a pedir ayuda para la construccion de tanque | BT197: Si | BU197: Si | BV197: Entel | BW197: Si | BX197: No | BY197: Queman|Botan al rio, quebrada | BZ197: Si | CA197: unitel, ATB | CB197: Si | CC197: bella morena, la calle | CD197: No | CE197: No | CF197: 592079d290c99f128f9f98e48e2eca
A198: q1dd-vw62-mspm | B198: Bolivia - Cochabamba - Pocona - Phuyu Huasi - Oqhollu Mayu | C198: Boi-100-1 | D198: 3232640658 | E198: 11-06-2021 13:26:50 UTC | F198: Llasa | G198: 00:10:58 | H198: 1 | I198: Bolivia | J198: Cochabamba | L198: Pocona | M198: Phuyu Huasi | N198: Oqhollu Mayu | O198: -17.58329293 | P198: -65.38687234 | Q198: 3308.0 | R198: https://waterforpeople.s3.amazonaws.com/images/505260d3-0580-455d-aadd-0a0df3f172e0.jpg | S198: 1 | T198: Oqhollu Mayu | U198: Semi dispersa | V198: Municipio|Comité de Agua | W198: 28 | X198: 28 | Y198: 28 | Z198: 0 | AA198: 84 | AB198: Si | AC198: Sistema por gravedad | AE198: No | AH198: 1997 | AI198: Si | AL198: Si | AM198: 5 | AN198: 5 | AO198: Si - se realizaron pruebas hoy | AP198: No | AR198: Si | AS198: Ausencia | AT198: No | AV198: Si | AW198: 3.17 | AX198: No | BE198: 1.1 | BF198: 18.18181818 | BG198: 24 | BH198: No | BM198: Si | BN198: Malo | BO198: Si | BP198: Tanque en mal estado, SAP cumplio su vida util | BT198: Si | BU198: Si | BV198: Entel | BW198: Si | BX198: No | BY198: Queman|Botan al rio, quebrada | BZ198: Si | CA198: ATB, unitel | CB198: Si | CC198: radio bella morena, radio la calle | CD198: No | CE198: No | CF198: e0d314e91c5d8d7c547bd9d995b5722f
A199: 0vps-1yyn-pvh3 | B199: Bolivia - Cochabamba - Pocona - Phuyu Huasi - Quewiñal | C199: BOI-GALAXIJ5-02 | D199: 3252721015 | E199: 10-06-2021 16:02:22 UTC | F199: Pocona2 | G199: 00:23:32 | H199: 1 | I199: Bolivia | J199: Cochabamba | L199: Pocona | M199: Phuyu Huasi | N199: Quewiñal | O199: -17.58084487 | P199: -65.39323103 | Q199: 3408.0 | R199: https://waterforpeople.s3.amazonaws.com/images/d1ac0692-42ea-481a-a04d-02a2b7a1f245.jpg | S199: 2 | T199: Quewiñal y Chaupi Rancho | U199: Dispersa | V199: Municipio|Otra ONG | W199: 33 | X199: 33 | Y199: 33 | Z199: 0 | AA199: 99 | AB199: Si | AC199: Sistema por gravedad | AE199: Si | AH199: 2019 | AI199: Si | AL199: No | AO199: Si - se realizaron pruebas hoy | AP199: No | AR199: Si | AS199: Presencia | AT199: No | AV199: Si | AW199: 0.61 | AX199: No | BE199: 0.8 | BF199: 25 | BG199: 24 | BH199: No | BM199: Si | BN199: Bueno | BO199: No | BT199: Si | BU199: Si | BV199: Entel | BW199: Si | BX199: No | BY199: Botan al rio, quebrada | BZ199: No | CB199: No | CD199: No | CE199: No | CF199: 6419baf84debeec95eeb7e304e272
A200: pwx0-bgv8-xd0t | B200: Bolivia - Cochabamba - Pocona - Phuyu Huasi - Veliz Rancho | C200: BOI-GALAXIJ5-02 | D200: 3234920445 | E200: 11-06-2021 13:10:41 UTC | F200: Pocona2 | G200: 00:14:45 | H200: 1 | I200: Bolivia | J200: Cochabamba | L200: Pocona | M200: Phuyu Huasi | N200: Veliz Rancho | O200: -17.565388 | P200: -65.37317847 | Q200: 3241.0 | R200: https://waterforpeople.s3.amazonaws.com/images/c22a5612-f2a2-4ea8-b7ab-8728dafd9584.jpg | S200: 0 | T200: Veliz Rancho | U200: Dispersa | V200: Iglesia | W200: 29 | X200: 29 | Y200: 0 | Z200: 29 | AB200: No | AF200: Rio | BJ200: 80 | BK200: 80 | BL200: 4 | BQ200: No | BS200: no saben | BT200: No | BU200: Si | BV200: Entel | BW200: Si | BX200: No | BY200: Botan al rio, quebrada | BZ200: No | CB200: No | CD200: No | CE200: No | CF200: 37c4de2da9a4a8ecd77431986424a51e
... 203 more rows

Sheet ESRI_MAPINFO_SHEET (hidden)
